Body Name,Invoice Date,Department Code,Department,Expense Area Code,Expense Area,Expense Type Code,Expense Type,Amt Paid (�'s),Supplier Name,Extended Description,Transaction Number,Period
Rother District Council,25/04/2018,101RESOURCES,Resources,20216,Cost Of Collection,D2509,Consultants and Other Services,98.64,Stanford and Green Ltd,Consultants and Other Services,2009328,201901
Rother District Council,27/04/2018,091HOUSING,Housing and Community Services,20137,Car Parks,D1201,Equipment & Materials,"2,617.96",D M Building Services & Son Ltd,Equipment & Materials - Car Parks various,2010491,201903
Rother District Council,27/04/2018,091HOUSING,Housing and Community Services,20200,Housing Needs - HB (Housing Benefit),D2514,Accommodation Costs,290.00,MB Hotels Ltd,Accommodation Costs,2009382,201902
Rother District Council,04/05/2018,091HOUSING,Housing and Community Services,20200,Housing Needs - HB (Housing Benefit),D2514,Accommodation Costs,290.00,MB Hotels Ltd,Accommodation Costs,2009383,201902
Rother District Council,04/05/2018,091HOUSING,Housing and Community Services,20200,Housing Needs - HB (Housing Benefit),D2514,Accommodation Costs,194.29,MB Hotels Ltd,Accommodation Costs,2009377,201902
Rother District Council,25/05/2018,091HOUSING,Housing and Community Services,20200,Housing Needs - HB (Housing Benefit),D2514,Accommodation Costs,245.00,MB Hotels Ltd,Accommodation Costs,2009381,201902
Rother District Council,25/05/2018,091HOUSING,Housing and Community Services,20200,Housing Needs - HB (Housing Benefit),D2514,Accommodation Costs,245.00,MB Hotels Ltd,Accommodation Costs,2009379,201902
Rother District Council,25/05/2018,091HOUSING,Housing and Community Services,20200,Housing Needs - HB (Housing Benefit),D2514,Accommodation Costs,245.00,MB Hotels Ltd,Accommodation Costs,2009376,201902
Rother District Council,25/05/2018,091HOUSING,Housing and Community Services,20200,Housing Needs - HB (Housing Benefit),D2514,Accommodation Costs,245.00,MB Hotels Ltd,Accommodation Costs,2009378,201902
Rother District Council,25/05/2018,091HOUSING,Housing and Community Services,20200,Housing Needs - HB (Housing Benefit),D2514,Accommodation Costs,175.00,MB Hotels Ltd,Accommodation Costs,2009380,201902
Rother District Council,25/08/2018,081ACQUISIT,"Acquisitions, Transformation and Regeneration",20118,Tourism,D2513,Hired and Contracted services,"1,500.00",Rye Int. Jazz Festival,Hired and contracted services Rye Marketing Campaign,2010397,201903
Rother District Council,17/09/2018,091HOUSING,Housing and Community Services,20133,Refuse Collection,E2302,Third party payment private contractors,71.93,Kier Services - Environmental,Third party payment private contractors Commercial Waste Collection Contract,2008937,201901
Rother District Council,21/09/2018,999NOREPORT,Housing and Community Services,70714,Capital - Grants Halls and Community Projects,N1011,Capital Grants,"3,318.00",Winchelsea Beach Community Association,Capital Grants Community Grants Scheme,2008689,201901
Rother District Council,22/09/2018,081ACQUISIT,"Acquisitions, Transformation and Regeneration",20118,Tourism,D2513,Hired and Contracted services,"1,500.00",Rye Int. Jazz Festival,Hired and contracted services Rye Marketing Campaign,2010398,201903
Rother District Council,11/10/2018,091HOUSING,Housing and Community Services,20133,Refuse Collection,E2302,Third party payment private contractors,71.93,Kier Services - Environmental,Third party payment private contractors Commercial Waste Collection Contract,2008938,201901
Rother District Council,08/11/2018,101RESOURCES,Resources,20216,Cost Of Collection,D2513,Hired and Contracted services,50.00,Stanford and Green Ltd,Hired and contracted services Bailiff Fees-Council Tax,2009337,201901
Rother District Council,23/11/2018,041ENVIRON,Environmental Services,32143,EH Licenses and Registration R + W Partnership,D2513,Hired and Contracted services,280.00,Fairfield House Veterinary Surgery,Hired and contracted services EnvH-Veterinary Services for Licens,2009270,201901
Rother District Council,03/12/2018,101RESOURCES,Resources,20216,Cost Of Collection,D2513,Hired and Contracted services,75.00,Stanford and Green Ltd,Hired and contracted services Bailiff Fees-Council Tax,2009339,201901
Rother District Council,03/12/2018,101RESOURCES,Resources,20216,Cost Of Collection,D2513,Hired and Contracted services,235.00,Stanford and Green Ltd,Hired and contracted services Bailiff Fees-Council Tax,2009339,201901
Rother District Council,03/12/2018,041ENVIRON,Environmental Services,32143,EH Licenses and Registration R + W Partnership,D2513,Hired and Contracted services,280.00,Fairfield House Veterinary Surgery,Hired and contracted services EnvH-Veterinary Services for Licens,2009269,201901
Rother District Council,21/12/2018,999NOREPORT,Environmental Services,70706,Capital - Disable Facilities Grant,N1012,Capital Advances,"1,096.06",Peabody South East Ltd,Capital Advances Disabled Facilities Grant,2010412,201903
Rother District Council,21/12/2018,091HOUSING,Housing and Community Services,20111,Rye Sports Centre & Pool,B1100,Repairs to Premises,983.10,Alfa Electric Ltd,Repairs to Premises Lighting Repairs,2008704,201901
Rother District Council,15/01/2019,091HOUSING,Housing and Community Services,20107,Camber Beach & Foreshore,D2623,Radios and licences,556.50,Niro Together Ltd,Radios and licences,2008821,201901
Rother District Council,16/01/2019,101RESOURCES,Resources,20217,Reliefs & Benefits-Council Tax Benefit,D2513,Hired and Contracted services,"4,040.00",Hastings Advice and  Representation Centre (HARC),Grants made - SLA Contribution,2009257,201901
Rother District Council,22/01/2019,031RESOURCES,Executive Directors & Corporate Core,20173,Administrative Offices - Town Hall,B1100,Repairs to Premises,119.64,Alfa Electric Ltd,Repairs to Premises Repairs - Electrical Works,2008814,201901
Rother District Council,25/01/2019,091HOUSING,Housing and Community Services,20200,Housing Needs - HB (Housing Benefit),D2514,Accommodation Costs,139.29,MB Hotels Ltd,Accommodation Costs,2009400,201901
Rother District Council,25/01/2019,091HOUSING,Housing and Community Services,20200,Housing Needs - HB (Housing Benefit),D2514,Accommodation Costs,55.71,MB Hotels Ltd,Accommodation Costs,2009402,201901
Rother District Council,27/01/2019,091HOUSING,Housing and Community Services,20145,Maintenance Services,D1201,Equipment & Materials,44.98,Thorcraft Ltd,Equipment & Materials Purchase of Tools,2009529,201902
Rother District Council,28/01/2019,091HOUSING,Housing and Community Services,20204,Housing Administration Account,D2513,Hired and Contracted services,"1,885.00",Phoenix SIA Ltd,Security Services - vat,2008844,201901
Rother District Council,31/01/2019,091HOUSING,Housing and Community Services,20201,Homelessness and Prevention,D2513,Hired and Contracted services,750.00,Callcredit Limited,Hired and contracted services Service fee paid,2009040,201901
Rother District Council,31/01/2019,081ACQUISIT,"Acquisitions, Transformation and Regeneration",20153,"Elva Business Centre, Bexhill",B1100,Repairs to Premises,353.99,Alfa Electric Ltd,Repairs to Premises Repairs - Electrical Works,2008815,201901
Rother District Council,01/02/2019,101RESOURCES,Resources,20207,Reliefs & Benefits-Housing Benefit,D2509,Consultants and Other Services,425.00,Hbinfo Ltd,Consultants and Other Services Consultants Fees,2008931,201901
Rother District Council,04/02/2019,101RESOURCES,Resources,20240,Printing Services,E2302,Third party payment private contractors,545.30,Coloursped Services Ltd,Third party payment private contractors Maintenance Contracts-Printing,2010030,201902
Rother District Council,07/02/2019,091HOUSING,Housing and Community Services,20204,Housing Administration Account,A2203,Training,270.00,Shelter Training,Training,2008770,201901
Rother District Council,07/02/2019,091HOUSING,Housing and Community Services,20204,Housing Administration Account,A2203,Training,270.00,Shelter Training,Training,2008768,201901
Rother District Council,07/02/2019,091HOUSING,Housing and Community Services,20204,Housing Administration Account,A2203,Training,108.00,Shelter Training,Training,2008769,201901
Rother District Council,07/02/2019,091HOUSING,Housing and Community Services,20204,Housing Administration Account,A2203,Training,108.00,Shelter Training,Training,2008771,201901
Rother District Council,07/02/2019,091HOUSING,Housing and Community Services,20204,Housing Administration Account,A2203,Training,162.00,Shelter Training,Training,2008767,201901
Rother District Council,11/02/2019,091HOUSING,Housing and Community Services,20200,Housing Needs - HB (Housing Benefit),D2514,Accommodation Costs,490.00,Solutions Accommodation Providers Ltd,Accommodation Costs,2009275,201902
Rother District Council,13/02/2019,041ENVIRON,Environmental Services,20130,Crime and Disorder Initiatives,D1201,Equipment & Materials,"2,250.00",Keep Britain Tidy,Equipment & Materials - Safer Rother Partnership,2009274,201901
Rother District Council,13/02/2019,071STRAT,Strategy and Planning,20253,Conservation & Preservation,D2513,Hired and Contracted services,"1,000.00",Sussex Wildlife Trust,Hired and contracted services Contribution to Local Orgs,2008792,201901
Rother District Council,15/02/2019,091HOUSING,Housing and Community Services,20200,Housing Needs - HB (Housing Benefit),D2514,Accommodation Costs,-283.50,247 Transport Solutions Ltd,Removal/Storage of Furniture,2008633,201901
Rother District Council,21/02/2019,031RESOURCES,Executive Directors & Corporate Core,20173,Administrative Offices - Town Hall,B1100,Repairs to Premises,9.42,Littlewood Fencing Ltd,Repairs to Premises Purchase of Materials - Build Maint,2009468,201902
Rother District Council,22/02/2019,101RESOURCES,Resources,20222,Accountancy,D2633,Computer Equipment,424.68,Dell Corporation Ltd,Computer Equipment New Computer Hardware,2008987,201901
Rother District Council,22/02/2019,081ACQUISIT,"Acquisitions, Transformation and Regeneration",20266,Property Investment Strategy,B2422,Sewerage,55.54,Scottish Water Business Stream Limited,Sewage Charges,2008875,201901
Rother District Council,22/02/2019,091HOUSING,Housing and Community Services,20200,Housing Needs - HB (Housing Benefit),D2514,Accommodation Costs,195.00,MB Hotels Ltd,Accommodation Costs,2009404,201901
Rother District Council,22/02/2019,091HOUSING,Housing and Community Services,20200,Housing Needs - HB (Housing Benefit),D2514,Accommodation Costs,195.00,MB Hotels Ltd,Accommodation Costs,2009403,201901
Rother District Council,25/02/2019,091HOUSING,Housing and Community Services,20137,Car Parks,B1100,Repairs to Premises,24.95,Littlewood Fencing Ltd,Repairs to Premises Purchase of Materials - Build Maint,2008843,201901
Rother District Council,25/02/2019,101RESOURCES,Resources,20242,Communications-Phones,D2621,Telephones,270.00,TalkTalk Communications Ltd T/A TalkTalk Business,Telephones Broadband Connection,2008743,201901
Rother District Council,28/02/2019,999NOREPORT,Housing and Community Services,70705,Capital - Fairlight Coastal Protection Scheme,N1004,Architects & Consultant Fees,"1,100.00",W J Groundwater Ltd,Architects & Consultant Fees Capital-Architect and Conslt Fees,2009466,201902
Rother District Council,28/02/2019,091HOUSING,Housing and Community Services,20206,Syrians,D2513,Hired and Contracted services,158.76,247 Transport Solutions Ltd,Hired and contracted services Syrian Resettlement Programme - Travel,2009303,201901
Rother District Council,28/02/2019,081ACQUISIT,"Acquisitions, Transformation and Regeneration",20118,Tourism,D2513,Hired and Contracted services,"2,000.00",Hastings Borough Council,Hired and Contracted services,2008880,201901
Rother District Council,01/03/2019,081ACQUISIT,"Acquisitions, Transformation and Regeneration",20136,Regeneration,A2203,Training,220.00,CPT Ltd,Training,2008703,201901
Rother District Council,04/03/2019,091HOUSING,Housing and Community Services,20137,Car Parks,D1201,Equipment & Materials,"14,561.40",Cale UK Ltd,Equipment & Materials Ticket Machine Maintenance/ Repairs,2009037,201901
Rother District Council,04/03/2019,091HOUSING,Housing and Community Services,20261,"41 Jameson Mews, Bexhill on Sea",D2513,Hired and Contracted services,"7,500.00",Paramount Independent Property Services LLP,Hired and contracted services Service fee paid,2008637,201901
Rother District Council,05/03/2019,031RESOURCES,Executive Directors & Corporate Core,20163,District Council Elections,D2513,Hired and Contracted services,112.00,Phase 3 Consulting Ltd,Hired and contracted services election misc payment - net,2009634,201902
Rother District Council,06/03/2019,091HOUSING,Housing and Community Services,20108,Bexhill Promenade & Foreshore,B1100,Repairs to Premises,63.04,Littlewood Fencing Ltd,Repairs to Premises Purchase of Materials - Build Maint,2008841,201901
Rother District Council,06/03/2019,081ACQUISIT,"Acquisitions, Transformation and Regeneration",20118,Tourism,D2513,Hired and Contracted services,"1,250.00",Sussex Wildlife Trust,Hired and Contracted services,2010110,201903
Rother District Council,07/03/2019,101RESOURCES,Resources,20239,Computer Services,D2638,Photocopier Contracts,109.79,Ricoh UK Limited,Operational Leases Copier Rental and Service,2008755,201901
Rother District Council,08/03/2019,081ACQUISIT,"Acquisitions, Transformation and Regeneration",20146,West Trading Estate,B2202,Gas,164.22,Gazprom Marketing & Trading Retail Ltd,Gas Charges,2009250,201901
Rother District Council,08/03/2019,081ACQUISIT,"Acquisitions, Transformation and Regeneration",20266,Property Investment Strategy,B2202,Gas,164.22,Gazprom Marketing & Trading Retail Ltd,Gas Charges,2009251,201901
Rother District Council,08/03/2019,101RESOURCES,Resources,20216,Cost Of Collection,D2513,Hired and Contracted services,235.00,Stanford and Green Ltd,Hired and contracted services Bailiff Fees-Council Tax,2008889,201901
Rother District Council,09/03/2019,031RESOURCES,Executive Directors & Corporate Core,20163,District Council Elections,D2513,Hired and Contracted services,312.00,Battle Methodist Church,Hire of Premises (RDC) Hire of Premises (RDC),2009738,201902
Rother District Council,09/03/2019,101RESOURCES,Resources,20239,Computer Services,D2621,Telephones,67.50,TalkTalk Communications Ltd T/A TalkTalk Business,Telephones Broadband Connection,2008967,201901
Rother District Council,11/03/2019,101RESOURCES,Resources,20209,Corporate management,D2513,Hired and Contracted services,151.50,Lloyds Bank,Bank Charges,2008746,201901
Rother District Council,11/03/2019,101RESOURCES,Resources,20239,Computer Services,D2635,Computer Licences,"3,121.00",Cludo UK Ltd,Computer Licences Computer Licence Renewal,2008992,201901
Rother District Council,11/03/2019,041ENVIRON,Environmental Services,32134,EH Pollution R + W Partnership,D2513,Hired and Contracted services,60.00,South East Water Ltd,Hired and contracted services EnvH- Water Sampling,2009280,201901
Rother District Council,11/03/2019,081ACQUISIT,"Acquisitions, Transformation and Regeneration",20144,Property Management,D2513,Hired and Contracted services,"1,250.00",Hunt Commercial Property Ltd,Hired and contracted services Valuation Services,2010391,201903
Rother District Council,11/03/2019,081ACQUISIT,"Acquisitions, Transformation and Regeneration",20148,Misc Land & Buildings,B1100,Repairs to Premises,193.36,C Brewer and Sons Ltd,Repairs to Premises Purchase of Materials - Build Maint,2008861,201901
Rother District Council,11/03/2019,091HOUSING,Housing and Community Services,20235,Rye Community Help Point,B2311,Rents and service charges,"2,300.00",East Sussex County Council,Rents and service charges,2009004,201901
Rother District Council,12/03/2019,031RESOURCES,Executive Directors & Corporate Core,20163,District Council Elections,D2513,Hired and Contracted services,230.00,St Stephens Church PCC,Hire of Premises (RDC) Hire of Premises (RDC),2009718,201902
Rother District Council,12/03/2019,091HOUSING,Housing and Community Services,20128,Public Conveniences,B1100,Repairs to Premises,85.40,C Brewer and Sons Ltd,Repairs to Premises Purchase of Materials - Build Maint,2008862,201901
Rother District Council,12/03/2019,081ACQUISIT,"Acquisitions, Transformation and Regeneration",20154,Committee Property Account,B2422,Sewerage,75.44,Scottish Water Business Stream Limited,Sewage Charges,2008615,201901
Rother District Council,12/03/2019,081ACQUISIT,"Acquisitions, Transformation and Regeneration",20154,Committee Property Account,B2422,Sewerage,60.73,Scottish Water Business Stream Limited,Sewage Charges,2008616,201901
Rother District Council,13/03/2019,091HOUSING,Housing and Community Services,20202,Rother Letting Service,D2514,Accommodation Costs,803.08,Mr A Sharp & Mrs J Sharp,Accommodation Costs Homelessness services Housing Landlord Scheme - Rent payment,2008706,201901
Rother District Council,13/03/2019,091HOUSING,Housing and Community Services,20114,Bexhill Parks & Open Spaces,B2732,Grounds maintenance non-routine,936.00,East Sussex County Council,Repairs to Premises Parks- Tree Works,2009355,201902
Rother District Council,13/03/2019,091HOUSING,Housing and Community Services,20128,Public Conveniences,B1100,Repairs to Premises,19.49,C Brewer and Sons Ltd,Repairs to Premises Purchase of Materials - Build Maint,2008864,201901
Rother District Council,13/03/2019,071STRAT,Strategy and Planning,20248,"Complaints,Compliance,Enforce",D2622,Mobile Phones,10.00,O2 (UK) Ltd,Mobile Phones,2009056,201901
Rother District Council,13/03/2019,071STRAT,Strategy and Planning,20248,"Complaints,Compliance,Enforce",D2622,Mobile Phones,10.00,O2 (UK) Ltd,Mobile Phones,2009056,201901
Rother District Council,13/03/2019,071STRAT,Strategy and Planning,20248,"Complaints,Compliance,Enforce",D2622,Mobile Phones,10.12,O2 (UK) Ltd,Mobile Phones,2009056,201901
Rother District Council,13/03/2019,081ACQUISIT,"Acquisitions, Transformation and Regeneration",20122,Economic Development,D2622,Mobile Phones,10.00,O2 (UK) Ltd,Mobile Phones,2009061,201902
Rother District Council,13/03/2019,081ACQUISIT,"Acquisitions, Transformation and Regeneration",20122,Economic Development,D2622,Mobile Phones,10.00,O2 (UK) Ltd,Mobile Phones,2009061,201902
Rother District Council,13/03/2019,081ACQUISIT,"Acquisitions, Transformation and Regeneration",20122,Economic Development,D2622,Mobile Phones,10.00,O2 (UK) Ltd,Mobile Phones,2009061,201902
Rother District Council,13/03/2019,081ACQUISIT,"Acquisitions, Transformation and Regeneration",20122,Economic Development,D2622,Mobile Phones,10.00,O2 (UK) Ltd,Mobile Phones,2009061,201902
Rother District Council,13/03/2019,081ACQUISIT,"Acquisitions, Transformation and Regeneration",20122,Economic Development,D2622,Mobile Phones,10.00,O2 (UK) Ltd,Mobile Phones,2009061,201902
Rother District Council,13/03/2019,081ACQUISIT,"Acquisitions, Transformation and Regeneration",20121,Programme and Policy Office,D2622,Mobile Phones,10.00,O2 (UK) Ltd,Mobile Phones,2009061,201902
Rother District Council,13/03/2019,081ACQUISIT,"Acquisitions, Transformation and Regeneration",20243,Business Improvement,D2622,Mobile Phones,10.00,O2 (UK) Ltd,Mobile Phones,2009061,201902
Rother District Council,13/03/2019,081ACQUISIT,"Acquisitions, Transformation and Regeneration",20243,Business Improvement,D2622,Mobile Phones,10.00,O2 (UK) Ltd,Mobile Phones,2009061,201902
Rother District Council,13/03/2019,081ACQUISIT,"Acquisitions, Transformation and Regeneration",20122,Economic Development,D2622,Mobile Phones,10.00,O2 (UK) Ltd,Mobile Phones,2009061,201902
Rother District Council,13/03/2019,081ACQUISIT,"Acquisitions, Transformation and Regeneration",20263,"Head of Service Acquisitions, Transformation and Regeneration",D2622,Mobile Phones,10.00,O2 (UK) Ltd,Mobile Phones,2009061,201902
Rother District Council,13/03/2019,081ACQUISIT,"Acquisitions, Transformation and Regeneration",20122,Economic Development,D2622,Mobile Phones,10.00,O2 (UK) Ltd,Mobile Phones,2009058,201901
Rother District Council,13/03/2019,091HOUSING,Housing and Community Services,20120,Neighbourhood Services,D2622,Mobile Phones,10.00,O2 (UK) Ltd,Mobile Phones,2009058,201901
Rother District Council,13/03/2019,091HOUSING,Housing and Community Services,20120,Neighbourhood Services,D2622,Mobile Phones,10.00,O2 (UK) Ltd,Mobile Phones,2009058,201901
Rother District Council,13/03/2019,091HOUSING,Housing and Community Services,20120,Neighbourhood Services,D2622,Mobile Phones,10.00,O2 (UK) Ltd,Mobile Phones,2009058,201901
Rother District Council,13/03/2019,091HOUSING,Housing and Community Services,20120,Neighbourhood Services,D2622,Mobile Phones,10.00,O2 (UK) Ltd,Mobile Phones,2009058,201901
Rother District Council,13/03/2019,091HOUSING,Housing and Community Services,20120,Neighbourhood Services,D2622,Mobile Phones,10.00,O2 (UK) Ltd,Mobile Phones,2009058,201901
Rother District Council,13/03/2019,091HOUSING,Housing and Community Services,20120,Neighbourhood Services,D2622,Mobile Phones,10.00,O2 (UK) Ltd,Mobile Phones,2009058,201901
Rother District Council,13/03/2019,091HOUSING,Housing and Community Services,20109,Sports Development,D2622,Mobile Phones,10.00,O2 (UK) Ltd,Mobile Phones,2009058,201901
Rother District Council,13/03/2019,091HOUSING,Housing and Community Services,20120,Neighbourhood Services,D2622,Mobile Phones,10.00,O2 (UK) Ltd,Mobile Phones,2009058,201901
Rother District Council,13/03/2019,091HOUSING,Housing and Community Services,20120,Neighbourhood Services,D2622,Mobile Phones,10.00,O2 (UK) Ltd,Mobile Phones,2009058,201901
Rother District Council,13/03/2019,091HOUSING,Housing and Community Services,20120,Neighbourhood Services,D2622,Mobile Phones,10.00,O2 (UK) Ltd,Mobile Phones,2009058,201901
Rother District Council,13/03/2019,091HOUSING,Housing and Community Services,20120,Neighbourhood Services,D2622,Mobile Phones,10.00,O2 (UK) Ltd,Mobile Phones,2009058,201901
Rother District Council,13/03/2019,091HOUSING,Housing and Community Services,20120,Neighbourhood Services,D2622,Mobile Phones,10.00,O2 (UK) Ltd,Mobile Phones,2009058,201901
Rother District Council,13/03/2019,091HOUSING,Housing and Community Services,20120,Neighbourhood Services,D2622,Mobile Phones,10.00,O2 (UK) Ltd,Mobile Phones,2009058,201901
Rother District Council,13/03/2019,091HOUSING,Housing and Community Services,20120,Neighbourhood Services,D2622,Mobile Phones,10.00,O2 (UK) Ltd,Mobile Phones,2009058,201901
Rother District Council,13/03/2019,091HOUSING,Housing and Community Services,20120,Neighbourhood Services,D2622,Mobile Phones,10.00,O2 (UK) Ltd,Mobile Phones,2009058,201901
Rother District Council,13/03/2019,091HOUSING,Housing and Community Services,20120,Neighbourhood Services,D2622,Mobile Phones,10.00,O2 (UK) Ltd,Mobile Phones,2009058,201901
Rother District Council,13/03/2019,091HOUSING,Housing and Community Services,20120,Neighbourhood Services,D2622,Mobile Phones,10.00,O2 (UK) Ltd,Mobile Phones,2009058,201901
Rother District Council,13/03/2019,091HOUSING,Housing and Community Services,20120,Neighbourhood Services,D2622,Mobile Phones,10.00,O2 (UK) Ltd,Mobile Phones,2009058,201901
Rother District Council,13/03/2019,091HOUSING,Housing and Community Services,20120,Neighbourhood Services,D2622,Mobile Phones,10.00,O2 (UK) Ltd,Mobile Phones,2009058,201901
Rother District Council,13/03/2019,091HOUSING,Housing and Community Services,20120,Neighbourhood Services,D2622,Mobile Phones,10.00,O2 (UK) Ltd,Mobile Phones,2009058,201901
Rother District Council,13/03/2019,091HOUSING,Housing and Community Services,20120,Neighbourhood Services,D2622,Mobile Phones,10.00,O2 (UK) Ltd,Mobile Phones,2009058,201901
Rother District Council,13/03/2019,091HOUSING,Housing and Community Services,20120,Neighbourhood Services,D2622,Mobile Phones,10.00,O2 (UK) Ltd,Mobile Phones,2009058,201901
Rother District Council,13/03/2019,091HOUSING,Housing and Community Services,20120,Neighbourhood Services,D2622,Mobile Phones,10.00,O2 (UK) Ltd,Mobile Phones,2009058,201901
Rother District Council,13/03/2019,091HOUSING,Housing and Community Services,20120,Neighbourhood Services,D2622,Mobile Phones,10.00,O2 (UK) Ltd,Mobile Phones,2009058,201901
Rother District Council,13/03/2019,091HOUSING,Housing and Community Services,20120,Neighbourhood Services,D2622,Mobile Phones,16.91,O2 (UK) Ltd,Mobile Phones,2009058,201901
Rother District Council,13/03/2019,091HOUSING,Housing and Community Services,20120,Neighbourhood Services,D2622,Mobile Phones,10.00,O2 (UK) Ltd,Mobile Phones,2009058,201901
Rother District Council,13/03/2019,091HOUSING,Housing and Community Services,20120,Neighbourhood Services,D2622,Mobile Phones,10.00,O2 (UK) Ltd,Mobile Phones,2009058,201901
Rother District Council,13/03/2019,091HOUSING,Housing and Community Services,20120,Neighbourhood Services,D2622,Mobile Phones,12.66,O2 (UK) Ltd,Mobile Phones,2009058,201901
Rother District Council,13/03/2019,091HOUSING,Housing and Community Services,20120,Neighbourhood Services,D2622,Mobile Phones,10.07,O2 (UK) Ltd,Mobile Phones,2009058,201901
Rother District Council,13/03/2019,091HOUSING,Housing and Community Services,20120,Neighbourhood Services,D2622,Mobile Phones,10.00,O2 (UK) Ltd,Mobile Phones,2009058,201901
Rother District Council,13/03/2019,091HOUSING,Housing and Community Services,20120,Neighbourhood Services,D2622,Mobile Phones,10.00,O2 (UK) Ltd,Mobile Phones,2009058,201901
Rother District Council,13/03/2019,071STRAT,Strategy and Planning,20246,Planning Applications,D2622,Mobile Phones,10.00,O2 (UK) Ltd,Mobile Phones,2009056,201901
Rother District Council,13/03/2019,071STRAT,Strategy and Planning,20246,Planning Applications,D2622,Mobile Phones,10.00,O2 (UK) Ltd,Mobile Phones,2009056,201901
Rother District Council,13/03/2019,071STRAT,Strategy and Planning,20247,Service Manager Strategy and Planning,D2622,Mobile Phones,10.00,O2 (UK) Ltd,Mobile Phones,2009056,201901
Rother District Council,13/03/2019,041ENVIRON,Environmental Services,20198,Licensing Team,D2622,Mobile Phones,10.00,O2 (UK) Ltd,Mobile Phones,2009059,201901
Rother District Council,13/03/2019,041ENVIRON,Environmental Services,20198,Licensing Team,D2622,Mobile Phones,10.00,O2 (UK) Ltd,Mobile Phones,2009059,201901
Rother District Council,13/03/2019,041ENVIRON,Environmental Services,20198,Licensing Team,D2622,Mobile Phones,10.00,O2 (UK) Ltd,Mobile Phones,2009059,201901
Rother District Council,13/03/2019,041ENVIRON,Environmental Services,20198,Licensing Team,D2622,Mobile Phones,10.00,O2 (UK) Ltd,Mobile Phones,2009059,201901
Rother District Council,13/03/2019,041ENVIRON,Environmental Services,20198,Licensing Team,D2622,Mobile Phones,12.56,O2 (UK) Ltd,Mobile Phones,2009059,201901
Rother District Council,13/03/2019,041ENVIRON,Environmental Services,20199,Food and Safety Team,D2622,Mobile Phones,11.15,O2 (UK) Ltd,Mobile Phones,2009059,201901
Rother District Council,13/03/2019,041ENVIRON,Environmental Services,20199,Food and Safety Team,D2622,Mobile Phones,10.00,O2 (UK) Ltd,Mobile Phones,2009059,201901
Rother District Council,13/03/2019,041ENVIRON,Environmental Services,20199,Food and Safety Team,D2622,Mobile Phones,10.00,O2 (UK) Ltd,Mobile Phones,2009059,201901
Rother District Council,13/03/2019,041ENVIRON,Environmental Services,20199,Food and Safety Team,D2622,Mobile Phones,10.00,O2 (UK) Ltd,Mobile Phones,2009059,201901
Rother District Council,13/03/2019,041ENVIRON,Environmental Services,20199,Food and Safety Team,D2622,Mobile Phones,10.00,O2 (UK) Ltd,Mobile Phones,2009059,201901
Rother District Council,13/03/2019,041ENVIRON,Environmental Services,20199,Food and Safety Team,D2622,Mobile Phones,10.00,O2 (UK) Ltd,Mobile Phones,2009059,201901
Rother District Council,13/03/2019,041ENVIRON,Environmental Services,20199,Food and Safety Team,D2622,Mobile Phones,10.00,O2 (UK) Ltd,Mobile Phones,2009059,201901
Rother District Council,13/03/2019,041ENVIRON,Environmental Services,20199,Food and Safety Team,D2622,Mobile Phones,10.00,O2 (UK) Ltd,Mobile Phones,2009059,201901
Rother District Council,13/03/2019,041ENVIRON,Environmental Services,20199,Food and Safety Team,D2622,Mobile Phones,10.00,O2 (UK) Ltd,Mobile Phones,2009059,201901
Rother District Council,13/03/2019,041ENVIRON,Environmental Services,20199,Food and Safety Team,D2622,Mobile Phones,10.00,O2 (UK) Ltd,Mobile Phones,2009059,201901
Rother District Council,13/03/2019,041ENVIRON,Environmental Services,20199,Food and Safety Team,D2622,Mobile Phones,10.00,O2 (UK) Ltd,Mobile Phones,2009059,201901
Rother District Council,13/03/2019,041ENVIRON,Environmental Services,20199,Food and Safety Team,D2622,Mobile Phones,10.00,O2 (UK) Ltd,Mobile Phones,2009059,201901
Rother District Council,13/03/2019,041ENVIRON,Environmental Services,20199,Food and Safety Team,D2622,Mobile Phones,10.00,O2 (UK) Ltd,Mobile Phones,2009059,201901
Rother District Council,13/03/2019,041ENVIRON,Environmental Services,20198,Licensing Team,D2622,Mobile Phones,10.00,O2 (UK) Ltd,Mobile Phones,2009059,201901
Rother District Council,13/03/2019,041ENVIRON,Environmental Services,20198,Licensing Team,D2622,Mobile Phones,10.00,O2 (UK) Ltd,Mobile Phones,2009059,201901
Rother District Council,13/03/2019,041ENVIRON,Environmental Services,20187,Pollution,D2622,Mobile Phones,10.00,O2 (UK) Ltd,Mobile Phones,2009059,201901
Rother District Council,13/03/2019,041ENVIRON,Environmental Services,20187,Pollution,D2622,Mobile Phones,10.00,O2 (UK) Ltd,Mobile Phones,2009059,201901
Rother District Council,13/03/2019,041ENVIRON,Environmental Services,20187,Pollution,D2622,Mobile Phones,10.00,O2 (UK) Ltd,Mobile Phones,2009059,201901
Rother District Council,13/03/2019,041ENVIRON,Environmental Services,20187,Pollution,D2622,Mobile Phones,10.00,O2 (UK) Ltd,Mobile Phones,2009059,201901
Rother District Council,13/03/2019,041ENVIRON,Environmental Services,20187,Pollution,D2622,Mobile Phones,10.00,O2 (UK) Ltd,Mobile Phones,2009059,201901
Rother District Council,13/03/2019,041ENVIRON,Environmental Services,20187,Pollution,D2622,Mobile Phones,10.00,O2 (UK) Ltd,Mobile Phones,2009059,201901
Rother District Council,13/03/2019,041ENVIRON,Environmental Services,20187,Pollution,D2622,Mobile Phones,10.00,O2 (UK) Ltd,Mobile Phones,2009059,201901
Rother District Council,13/03/2019,041ENVIRON,Environmental Services,20187,Pollution,D2622,Mobile Phones,10.00,O2 (UK) Ltd,Mobile Phones,2009059,201901
Rother District Council,13/03/2019,041ENVIRON,Environmental Services,20187,Pollution,D2622,Mobile Phones,10.00,O2 (UK) Ltd,Mobile Phones,2009059,201901
Rother District Council,13/03/2019,041ENVIRON,Environmental Services,20187,Pollution,D2622,Mobile Phones,10.00,O2 (UK) Ltd,Mobile Phones,2009059,201901
Rother District Council,13/03/2019,041ENVIRON,Environmental Services,20187,Pollution,D2622,Mobile Phones,10.00,O2 (UK) Ltd,Mobile Phones,2009059,201901
Rother District Council,13/03/2019,041ENVIRON,Environmental Services,20187,Pollution,D2622,Mobile Phones,10.00,O2 (UK) Ltd,Mobile Phones,2009059,201901
Rother District Council,13/03/2019,041ENVIRON,Environmental Services,20187,Pollution,D2622,Mobile Phones,10.00,O2 (UK) Ltd,Mobile Phones,2009059,201901
Rother District Council,13/03/2019,031RESOURCES,Executive Directors & Corporate Core,32132,Joint Waste Contract Client Unit,D2622,Mobile Phones,10.00,O2 (UK) Ltd,Mobile Phones,2009060,201901
Rother District Council,13/03/2019,031RESOURCES,Executive Directors & Corporate Core,32132,Joint Waste Contract Client Unit,D2622,Mobile Phones,10.00,O2 (UK) Ltd,Mobile Phones,2009060,201901
Rother District Council,13/03/2019,031RESOURCES,Executive Directors & Corporate Core,32132,Joint Waste Contract Client Unit,D2622,Mobile Phones,10.00,O2 (UK) Ltd,Mobile Phones,2009060,201901
Rother District Council,13/03/2019,031RESOURCES,Executive Directors & Corporate Core,20180,Emergency Planning,D2622,Mobile Phones,10.00,O2 (UK) Ltd,Mobile Phones,2009060,201901
Rother District Council,13/03/2019,031RESOURCES,Executive Directors & Corporate Core,20179,Communications,D2622,Mobile Phones,10.00,O2 (UK) Ltd,Mobile Phones,2009060,201901
Rother District Council,13/03/2019,041ENVIRON,Environmental Services,20197,Service Manager Env Serv,D2622,Mobile Phones,10.00,O2 (UK) Ltd,Mobile Phones,2009059,201901
Rother District Council,13/03/2019,031RESOURCES,Executive Directors & Corporate Core,20183,Executive Directors,D2622,Mobile Phones,16.98,O2 (UK) Ltd,Mobile Phones,2009060,201901
Rother District Council,13/03/2019,031RESOURCES,Executive Directors & Corporate Core,20183,Executive Directors,D2622,Mobile Phones,30.00,O2 (UK) Ltd,Mobile Phones,2009060,201901
Rother District Council,13/03/2019,031RESOURCES,Executive Directors & Corporate Core,20183,Executive Directors,D2622,Mobile Phones,10.00,O2 (UK) Ltd,Mobile Phones,2009060,201901
Rother District Council,13/03/2019,031RESOURCES,Executive Directors & Corporate Core,20180,Emergency Planning,D2622,Mobile Phones,10.00,O2 (UK) Ltd,Mobile Phones,2009060,201901
Rother District Council,13/03/2019,031RESOURCES,Executive Directors & Corporate Core,20180,Emergency Planning,D2622,Mobile Phones,4.50,O2 (UK) Ltd,Mobile Phones,2009060,201901
Rother District Council,13/03/2019,031RESOURCES,Executive Directors & Corporate Core,32132,Joint Waste Contract Client Unit,D2622,Mobile Phones,10.00,O2 (UK) Ltd,Mobile Phones,2009060,201901
Rother District Council,13/03/2019,031RESOURCES,Executive Directors & Corporate Core,20185,Joint Waste procurement,D2622,Mobile Phones,10.00,O2 (UK) Ltd,Mobile Phones,2009060,201901
Rother District Council,13/03/2019,031RESOURCES,Executive Directors & Corporate Core,20162,Electoral Registration,D2622,Mobile Phones,10.00,O2 (UK) Ltd,Mobile Phones,2009060,201901
Rother District Council,13/03/2019,031RESOURCES,Executive Directors & Corporate Core,20171,Human Resources,D2622,Mobile Phones,10.00,O2 (UK) Ltd,Mobile Phones,2009060,201901
Rother District Council,13/03/2019,031RESOURCES,Executive Directors & Corporate Core,20171,Human Resources,D2622,Mobile Phones,10.00,O2 (UK) Ltd,Mobile Phones,2009060,201901
Rother District Council,13/03/2019,031RESOURCES,Executive Directors & Corporate Core,20158,Committee Service General Exp,D2622,Mobile Phones,10.00,O2 (UK) Ltd,Mobile Phones,2009060,201901
Rother District Council,13/03/2019,101RESOURCES,Resources,20226,Service Manager Finance and Welfare,D2622,Mobile Phones,10.00,O2 (UK) Ltd,Mobile Phones,2009060,201901
Rother District Council,13/03/2019,101RESOURCES,Resources,20222,Accountancy,D2622,Mobile Phones,10.00,O2 (UK) Ltd,Mobile Phones,2009057,201901
Rother District Council,13/03/2019,101RESOURCES,Resources,20222,Accountancy,D2622,Mobile Phones,10.00,O2 (UK) Ltd,Mobile Phones,2009057,201901
Rother District Council,13/03/2019,091HOUSING,Housing and Community Services,20262,Head of Service Housing and Community Services,D2622,Mobile Phones,10.00,O2 (UK) Ltd,Mobile Phones,2009058,201901
Rother District Council,13/03/2019,091HOUSING,Housing and Community Services,20264,Property Maintenance Team,D2622,Mobile Phones,10.00,O2 (UK) Ltd,Mobile Phones,2009058,201901
Rother District Council,13/03/2019,091HOUSING,Housing and Community Services,20264,Property Maintenance Team,D2622,Mobile Phones,10.00,O2 (UK) Ltd,Mobile Phones,2009058,201901
Rother District Council,13/03/2019,091HOUSING,Housing and Community Services,20264,Property Maintenance Team,D2622,Mobile Phones,15.64,O2 (UK) Ltd,Mobile Phones,2009058,201901
Rother District Council,13/03/2019,091HOUSING,Housing and Community Services,20236,Customer Services and Development,D2622,Mobile Phones,15.00,O2 (UK) Ltd,Mobile Phones,2009058,201901
Rother District Council,13/03/2019,091HOUSING,Housing and Community Services,20204,Housing Administration Account,D2622,Mobile Phones,10.00,O2 (UK) Ltd,Mobile Phones,2009058,201901
Rother District Council,13/03/2019,091HOUSING,Housing and Community Services,20204,Housing Administration Account,D2622,Mobile Phones,10.00,O2 (UK) Ltd,Mobile Phones,2009058,201901
Rother District Council,13/03/2019,091HOUSING,Housing and Community Services,20204,Housing Administration Account,D2622,Mobile Phones,10.00,O2 (UK) Ltd,Mobile Phones,2009058,201901
Rother District Council,13/03/2019,091HOUSING,Housing and Community Services,20264,Property Maintenance Team,D2622,Mobile Phones,10.00,O2 (UK) Ltd,Mobile Phones,2009058,201901
Rother District Council,13/03/2019,091HOUSING,Housing and Community Services,20264,Property Maintenance Team,D2622,Mobile Phones,10.00,O2 (UK) Ltd,Mobile Phones,2009058,201901
Rother District Council,13/03/2019,091HOUSING,Housing and Community Services,20264,Property Maintenance Team,D2622,Mobile Phones,10.00,O2 (UK) Ltd,Mobile Phones,2009058,201901
Rother District Council,13/03/2019,091HOUSING,Housing and Community Services,20264,Property Maintenance Team,D2622,Mobile Phones,10.00,O2 (UK) Ltd,Mobile Phones,2009058,201901
Rother District Council,13/03/2019,091HOUSING,Housing and Community Services,20204,Housing Administration Account,D2622,Mobile Phones,10.12,O2 (UK) Ltd,Mobile Phones,2009058,201901
Rother District Council,13/03/2019,091HOUSING,Housing and Community Services,20204,Housing Administration Account,D2622,Mobile Phones,10.00,O2 (UK) Ltd,Mobile Phones,2009058,201901
Rother District Council,13/03/2019,091HOUSING,Housing and Community Services,20204,Housing Administration Account,D2622,Mobile Phones,20.33,O2 (UK) Ltd,Mobile Phones,2009058,201901
Rother District Council,13/03/2019,091HOUSING,Housing and Community Services,20204,Housing Administration Account,D2622,Mobile Phones,10.00,O2 (UK) Ltd,Mobile Phones,2009058,201901
Rother District Council,13/03/2019,091HOUSING,Housing and Community Services,20204,Housing Administration Account,D2622,Mobile Phones,10.00,O2 (UK) Ltd,Mobile Phones,2009058,201901
Rother District Council,13/03/2019,091HOUSING,Housing and Community Services,20204,Housing Administration Account,D2622,Mobile Phones,10.00,O2 (UK) Ltd,Mobile Phones,2009058,201901
Rother District Council,13/03/2019,091HOUSING,Housing and Community Services,20204,Housing Administration Account,D2622,Mobile Phones,10.00,O2 (UK) Ltd,Mobile Phones,2009058,201901
Rother District Council,13/03/2019,091HOUSING,Housing and Community Services,20204,Housing Administration Account,D2622,Mobile Phones,10.00,O2 (UK) Ltd,Mobile Phones,2009058,201901
Rother District Council,13/03/2019,101RESOURCES,Resources,20239,Computer Services,D2622,Mobile Phones,10.00,O2 (UK) Ltd,Mobile Phones,2009057,201901
Rother District Council,13/03/2019,101RESOURCES,Resources,20239,Computer Services,D2622,Mobile Phones,10.00,O2 (UK) Ltd,Mobile Phones,2009057,201901
Rother District Council,13/03/2019,101RESOURCES,Resources,20215,Revenue and Benefits,D2622,Mobile Phones,10.00,O2 (UK) Ltd,Mobile Phones,2009057,201901
Rother District Council,13/03/2019,101RESOURCES,Resources,20215,Revenue and Benefits,D2622,Mobile Phones,10.00,O2 (UK) Ltd,Mobile Phones,2009057,201901
Rother District Council,13/03/2019,101RESOURCES,Resources,20215,Revenue and Benefits,D2622,Mobile Phones,10.00,O2 (UK) Ltd,Mobile Phones,2009057,201901
Rother District Council,13/03/2019,101RESOURCES,Resources,20215,Revenue and Benefits,D2622,Mobile Phones,10.00,O2 (UK) Ltd,Mobile Phones,2009057,201901
Rother District Council,13/03/2019,101RESOURCES,Resources,20215,Revenue and Benefits,D2622,Mobile Phones,10.00,O2 (UK) Ltd,Mobile Phones,2009057,201901
Rother District Council,13/03/2019,101RESOURCES,Resources,20215,Revenue and Benefits,D2622,Mobile Phones,10.00,O2 (UK) Ltd,Mobile Phones,2009057,201901
Rother District Council,13/03/2019,101RESOURCES,Resources,20215,Revenue and Benefits,D2622,Mobile Phones,10.00,O2 (UK) Ltd,Mobile Phones,2009057,201901
Rother District Council,13/03/2019,101RESOURCES,Resources,20239,Computer Services,D2622,Mobile Phones,10.00,O2 (UK) Ltd,Mobile Phones,2009057,201901
Rother District Council,13/03/2019,101RESOURCES,Resources,20239,Computer Services,D2622,Mobile Phones,11.50,O2 (UK) Ltd,Mobile Phones,2009057,201901
Rother District Council,13/03/2019,101RESOURCES,Resources,20239,Computer Services,D2622,Mobile Phones,10.00,O2 (UK) Ltd,Mobile Phones,2009057,201901
Rother District Council,13/03/2019,101RESOURCES,Resources,20239,Computer Services,D2622,Mobile Phones,10.00,O2 (UK) Ltd,Mobile Phones,2009057,201901
Rother District Council,14/03/2019,091HOUSING,Housing and Community Services,20128,Public Conveniences,B1100,Repairs to Premises,75.76,C Brewer and Sons Ltd,Repairs to Premises Purchase of Materials - Build Maint,2008860,201901
Rother District Council,14/03/2019,091HOUSING,Housing and Community Services,20123,Cemeteries,B1100,Repairs to Premises,109.66,Alfa Electric Ltd,Repairs to Premises Repairs - Electrical Works,2008918,201901
Rother District Council,14/03/2019,031RESOURCES,Executive Directors & Corporate Core,20176,Administrative Offices - Print Room,B1100,Repairs to Premises,45.00,Alfa Electric Ltd,Repairs to Premises Repairs - Electrical Works,2008917,201901
Rother District Council,14/03/2019,091HOUSING,Housing and Community Services,20145,Maintenance Services,C1101,Vehicle Repairs & Servicing,56.84,Autolec Motor Factors,Vehicle Repairs & Servicing,2008660,201901
Rother District Council,15/03/2019,091HOUSING,Housing and Community Services,20107,Camber Beach & Foreshore,C1104,Derv,1.90,Allstar Business Solutions,Derv Fuel Service fee payable on fuel cards,2009062,201901
Rother District Council,15/03/2019,091HOUSING,Housing and Community Services,20107,Camber Beach & Foreshore,C1104,Derv,37.27,Allstar Business Solutions,Derv,2009062,201901
Rother District Council,15/03/2019,091HOUSING,Housing and Community Services,20145,Maintenance Services,C1104,Derv,40.93,Allstar Business Solutions,Derv,2009062,201901
Rother District Council,15/03/2019,091HOUSING,Housing and Community Services,20145,Maintenance Services,C1104,Derv,67.50,Allstar Business Solutions,Derv,2009062,201901
Rother District Council,18/03/2019,091HOUSING,Housing and Community Services,20114,Bexhill Parks & Open Spaces,D1201,Equipment & Materials,141.42,Jewson Limited,Equipment & Materials Parks - Horticultural Sundries,2008622,201901
Rother District Council,18/03/2019,081ACQUISIT,"Acquisitions, Transformation and Regeneration",20266,Property Investment Strategy,D2513,Hired and Contracted services,"4,900.00",Savills (UK) Ltd,Hired and contracted services Valuation Services,2010188,201903
Rother District Council,18/03/2019,091HOUSING,Housing and Community Services,20114,Bexhill Parks & Open Spaces,B1100,Repairs to Premises,39.00,J. Parker Dutch Bulbs (Wholesale) Ltd,Repairs to Premises Parks- Purchase of Plants,2008993,201901
Rother District Council,18/03/2019,101RESOURCES,Resources,20222,Accountancy,D2738,Conferences,295.00,CIPFA Business Ltd,Conferences,2009594,201902
Rother District Council,19/03/2019,091HOUSING,Housing and Community Services,20200,Housing Needs - HB (Housing Benefit),D2514,Accommodation Costs,72.00,1066 Storage Services,Accommodation Costs Homelessness services BandB Removals,2009152,201901
Rother District Council,19/03/2019,091HOUSING,Housing and Community Services,20200,Housing Needs - HB (Housing Benefit),D2514,Accommodation Costs,445.00,1066 Removal Services,Accommodation Costs Homelessness services BandB Removals,2009155,201901
Rother District Council,19/03/2019,091HOUSING,Housing and Community Services,20145,Maintenance Services,D1201,Equipment & Materials,43.80,Jewson Limited,Equipment & Materials Purchase of Tools,2008623,201901
Rother District Council,19/03/2019,101RESOURCES,Resources,20241,Stationery,D2420,General office supplies (Stationery purchased from ext suppliers),338.00,Response Envelopes Limited,General office Supplies Stationery (Stationery Services to buy ONLY),2008685,201901
Rother District Council,19/03/2019,031RESOURCES,Executive Directors & Corporate Core,20163,District Council Elections,D2513,Hired and Contracted services,200.00,Etchingham Trust For Sports and Recreation,Hire of Premises (RDC) Hire of Premises (RDC),2009731,201902
Rother District Council,19/03/2019,081ACQUISIT,"Acquisitions, Transformation and Regeneration",20266,Property Investment Strategy,D2513,Hired and Contracted services,"1,552.00",Savills (UK) Ltd,Hired and contracted services Service fee paid,2010189,201903
Rother District Council,19/03/2019,091HOUSING,Housing and Community Services,20108,Bexhill Promenade & Foreshore,B1100,Repairs to Premises,10.29,Jewson Limited,Repairs to Premises Purchase of Materials - Build Maint,2008624,201901
Rother District Council,20/03/2019,091HOUSING,Housing and Community Services,20200,Housing Needs - HB (Housing Benefit),D2514,Accommodation Costs,385.00,Lets 2 Share Limited,Accommodation Costs Homelessness services Temp Accom - No VAT,2008658,201901
Rother District Council,20/03/2019,091HOUSING,Housing and Community Services,20200,Housing Needs - HB (Housing Benefit),D2514,Accommodation Costs,385.00,Lets 2 Share Limited,Accommodation Costs Homelessness services Temp Accom - No VAT,2008658,201901
Rother District Council,20/03/2019,091HOUSING,Housing and Community Services,20200,Housing Needs - HB (Housing Benefit),D2514,Accommodation Costs,385.00,Lets 2 Share Limited,Accommodation Costs Homelessness services Temp Accom - No VAT,2008658,201901
Rother District Council,20/03/2019,091HOUSING,Housing and Community Services,20107,Camber Beach & Foreshore,D1201,Equipment & Materials,63.00,Aspli Safety Ltd,Equipment & Materials - Life Saving Equipment,2008759,201901
Rother District Council,20/03/2019,101RESOURCES,Resources,20241,Stationery,D2420,General office supplies (Stationery purchased from ext suppliers),110.88,Blade Rubber Ltd,General office Supplies Stationery (Stationery Services to buy ONLY),2008691,201901
Rother District Council,20/03/2019,041ENVIRON,Environmental Services,32142,EH Taxi and Private Hire Licenses R + W Partnership,D2513,Hired and Contracted services,176.00,uCheck,Hired and contracted services AONB Management,2008747,201901
Rother District Council,20/03/2019,041ENVIRON,Environmental Services,32142,EH Taxi and Private Hire Licenses R + W Partnership,D2513,Hired and Contracted services,34.68,uCheck,Hired and contracted services AONB Management,2008747,201901
Rother District Council,20/03/2019,091HOUSING,Housing and Community Services,20114,Bexhill Parks & Open Spaces,B1100,Repairs to Premises,8.05,Palmstead Nurseries Ltd,Repairs to Premises Parks- Purchase of Plants,2008924,201901
Rother District Council,20/03/2019,091HOUSING,Housing and Community Services,20114,Bexhill Parks & Open Spaces,B1100,Repairs to Premises,204.44,Palmstead Nurseries Ltd,Repairs to Premises Parks- Purchase of Plants,2008924,201901
Rother District Council,20/03/2019,091HOUSING,Housing and Community Services,20114,Bexhill Parks & Open Spaces,B1100,Repairs to Premises,366.91,Palmstead Nurseries Ltd,Repairs to Premises Parks- Purchase of Plants,2008924,201901
Rother District Council,20/03/2019,091HOUSING,Housing and Community Services,20114,Bexhill Parks & Open Spaces,B1100,Repairs to Premises,338.87,Palmstead Nurseries Ltd,Repairs to Premises Parks- Purchase of Plants,2008924,201901
Rother District Council,20/03/2019,091HOUSING,Housing and Community Services,20114,Bexhill Parks & Open Spaces,B1100,Repairs to Premises,73.00,Palmstead Nurseries Ltd,Repairs to Premises Parks- Purchase of Plants,2008924,201901
Rother District Council,20/03/2019,091HOUSING,Housing and Community Services,20108,Bexhill Promenade & Foreshore,B1100,Repairs to Premises,17.57,C Brewer and Sons Ltd,Repairs to Premises Purchase of Materials - Build Maint,2008859,201901
Rother District Council,21/03/2019,101RESOURCES,Resources,20239,Computer Services,D2635,Computer Licences,"25,975.00",Chess Cybersecurity,Computer Licences Advnce Pay Maint/Upgrading Software,2008873,201901
Rother District Council,21/03/2019,081ACQUISIT,"Acquisitions, Transformation and Regeneration",20154,Committee Property Account,B2201,Electricity,55.91,Laser Energy Buying Group (Kent County Council Commercial Services),Electricity Charges,2008869,201901
Rother District Council,21/03/2019,091HOUSING,Housing and Community Services,20115,Rye Area Parks & Gardens,B2201,Electricity,30.41,Laser Energy Buying Group (Kent County Council Commercial Services),Electricity Charges,2008869,201901
Rother District Council,21/03/2019,091HOUSING,Housing and Community Services,20108,Bexhill Promenade & Foreshore,B2201,Electricity,55.91,Laser Energy Buying Group (Kent County Council Commercial Services),Electricity Charges,2008869,201901
Rother District Council,21/03/2019,081ACQUISIT,"Acquisitions, Transformation and Regeneration",20153,"Elva Business Centre, Bexhill",B2201,Electricity,920.55,Laser Energy Buying Group (Kent County Council Commercial Services),Electricity Charges,2008869,201901
Rother District Council,21/03/2019,081ACQUISIT,"Acquisitions, Transformation and Regeneration",20154,Committee Property Account,B2201,Electricity,47.05,Laser Energy Buying Group (Kent County Council Commercial Services),Electricity Charges,2008869,201901
Rother District Council,21/03/2019,081ACQUISIT,"Acquisitions, Transformation and Regeneration",20154,Committee Property Account,B2201,Electricity,55.91,Laser Energy Buying Group (Kent County Council Commercial Services),Electricity Charges,2008869,201901
Rother District Council,21/03/2019,081ACQUISIT,"Acquisitions, Transformation and Regeneration",20154,Committee Property Account,B2201,Electricity,55.92,Laser Energy Buying Group (Kent County Council Commercial Services),Electricity Charges,2008869,201901
Rother District Council,21/03/2019,091HOUSING,Housing and Community Services,20125,Coast Protection,B2201,Electricity,658.73,Laser Energy Buying Group (Kent County Council Commercial Services),Electricity Charges,2008869,201901
Rother District Council,21/03/2019,031RESOURCES,Executive Directors & Corporate Core,20176,Administrative Offices - Print Room,B2201,Electricity,376.08,Laser Energy Buying Group (Kent County Council Commercial Services),Electricity Charges,2008869,201901
Rother District Council,21/03/2019,031RESOURCES,Executive Directors & Corporate Core,20173,Administrative Offices - Town Hall,B2201,Electricity,"3,573.10",Laser Energy Buying Group (Kent County Council Commercial Services),Electricity Charges,2008869,201901
Rother District Council,21/03/2019,031RESOURCES,Executive Directors & Corporate Core,20173,Administrative Offices - Town Hall,B2201,Electricity,"-3,457.93",Laser Energy Buying Group (Kent County Council Commercial Services),Electricity Charges,2008869,201901
Rother District Council,21/03/2019,031RESOURCES,Executive Directors & Corporate Core,20173,Administrative Offices - Town Hall,B2201,Electricity,"4,272.16",Laser Energy Buying Group (Kent County Council Commercial Services),Electricity Charges,2008869,201901
Rother District Council,21/03/2019,031RESOURCES,Executive Directors & Corporate Core,20173,Administrative Offices - Town Hall,B2201,Electricity,"3,690.80",Laser Energy Buying Group (Kent County Council Commercial Services),Electricity Charges,2008869,201901
Rother District Council,21/03/2019,091HOUSING,Housing and Community Services,20128,Public Conveniences,B2201,Electricity,109.05,Laser Energy Buying Group (Kent County Council Commercial Services),Electricity Charges,2008869,201901
Rother District Council,21/03/2019,091HOUSING,Housing and Community Services,20128,Public Conveniences,B2201,Electricity,24.09,Laser Energy Buying Group (Kent County Council Commercial Services),Electricity Charges,2008869,201901
Rother District Council,21/03/2019,091HOUSING,Housing and Community Services,20137,Car Parks,D1201,Equipment & Materials,"11,358.36",Cale UK Ltd,Equipment & Materials Ticket Machine Maintenance/ Repairs,2008923,201901
Rother District Council,21/03/2019,081ACQUISIT,"Acquisitions, Transformation and Regeneration",20154,Committee Property Account,B2202,Gas,8.40,Laser Energy Buying Group (Kent County Council Commercial Services),Gas Charges,2008868,201901
Rother District Council,21/03/2019,081ACQUISIT,"Acquisitions, Transformation and Regeneration",20154,Committee Property Account,B2202,Gas,30.27,Laser Energy Buying Group (Kent County Council Commercial Services),Gas Charges,2008868,201901
Rother District Council,21/03/2019,031RESOURCES,Executive Directors & Corporate Core,20176,Administrative Offices - Print Room,B2202,Gas,95.57,Laser Energy Buying Group (Kent County Council Commercial Services),Gas Charges,2008868,201901
Rother District Council,21/03/2019,031RESOURCES,Executive Directors & Corporate Core,20173,Administrative Offices - Town Hall,B2202,Gas,680.57,Laser Energy Buying Group (Kent County Council Commercial Services),Gas Charges,2008868,201901
Rother District Council,21/03/2019,031RESOURCES,Executive Directors & Corporate Core,20175,Administrative Offices - T.H. Annex (NOT CHP),B2202,Gas,582.02,Laser Energy Buying Group (Kent County Council Commercial Services),Gas Charges,2008868,201901
Rother District Council,21/03/2019,091HOUSING,Housing and Community Services,20114,Bexhill Parks & Open Spaces,D2513,Hired and Contracted services,"4,050.00",John D Clarke Architects,Hired and contracted services Parks- Consultants Fees,2008693,201901
Rother District Council,21/03/2019,081ACQUISIT,"Acquisitions, Transformation and Regeneration",20154,Committee Property Account,B1100,Repairs to Premises,986.00,CountyClean Environmental Services Ltd,Repairs to Premises Pumps Maintenance/ Repairs,2008726,201901
Rother District Council,21/03/2019,081ACQUISIT,"Acquisitions, Transformation and Regeneration",20155,Investment properties,B1100,Repairs to Premises,45.00,Alfa Electric Ltd,Repairs to Premises Repairs - Electrical Works,2008919,201901
Rother District Council,22/03/2019,101RESOURCES,Resources,20207,Reliefs & Benefits-Housing Benefit,D2513,Hired and Contracted services,"4,662.06",Capita Business Services Ltd,Hired and contracted services Off-site resilience processing,2008874,201901
Rother District Council,22/03/2019,041ENVIRON,Environmental Services,32144,EH Environmental Services Admin R + W Partnership,D2513,Hired and Contracted services,505.00,CIEH-Chartered Institute of Environmental Health,Hired and contracted services Service fee paid,2008756,201901
Rother District Council,22/03/2019,101RESOURCES,Resources,20222,Accountancy,A2202,Recruitment expenses,"1,032.62",JPIMedia Publishing Ltd,Recruitment expenses Advertising Vacant Post,2008613,201901
Rother District Council,22/03/2019,101RESOURCES,Resources,20222,Accountancy,A2202,Recruitment expenses,670.54,JPIMedia Publishing Ltd,Recruitment expenses Advertising Vacant Post,2008614,201901
Rother District Council,22/03/2019,071STRAT,Strategy and Planning,20246,Planning Applications,D2519,Statutory Advertising,823.50,JPIMedia Publishing Ltd,Statutory Advertising Planadv - Rye + Battle Observer,2008666,201901
Rother District Council,22/03/2019,101RESOURCES,Resources,20242,Communications-Phones,D2621,Telephones,4.55,KCOM Group Plc,Telephones KCOM Smartnumber Charges,2008739,201901
Rother District Council,22/03/2019,101RESOURCES,Resources,20242,Communications-Phones,D2621,Telephones,8.39,KCOM Group Plc,Telephones KCOM Smartnumber Charges,2008663,201901
Rother District Council,22/03/2019,101RESOURCES,Resources,20242,Communications-Phones,D2621,Telephones,"2,117.90",KCOM Group Plc,Telephones KCOM Smartnumber Charges,2008664,201901
Rother District Council,22/03/2019,101RESOURCES,Resources,20242,Communications-Phones,D2621,Telephones,7.88,KCOM Group Plc,Telephones KCOM Smartnumber Charges,2008665,201901
Rother District Council,23/03/2019,091HOUSING,Housing and Community Services,20102,Rother Museum Services,D2923,Grants made,"2,125.00",Bexhill Museum Ltd,Grants made Rother Museum Services  - Annual Support Grant,2009842,201902
Rother District Council,23/03/2019,091HOUSING,Housing and Community Services,20137,Car Parks,B2421,Water,212.04,Scottish Water Business Stream Limited,Sewage Charges,2008617,201901
Rother District Council,23/03/2019,091HOUSING,Housing and Community Services,20128,Public Conveniences,B2422,Sewerage,487.05,Scottish Water Business Stream Limited,Sewage Charges,2008617,201901
Rother District Council,23/03/2019,101RESOURCES,Resources,20242,Communications-Phones,D2621,Telephones,80.19,Bexhill Museum Ltd,Telephones BT-Rental-General,2009965,201902
Rother District Council,23/03/2019,091HOUSING,Housing and Community Services,20137,Car Parks,B2421,Water,121.62,Scottish Water Business Stream Limited,Water Charges,2008617,201901
Rother District Council,23/03/2019,091HOUSING,Housing and Community Services,20128,Public Conveniences,B2421,Water,253.42,Scottish Water Business Stream Limited,Water Charges,2008617,201901
Rother District Council,24/03/2019,091HOUSING,Housing and Community Services,20234,Battle Community Help Point,B2311,Rents and service charges,"2,062.50",Tiger Tees Ltd,Rents and service charges Rents-CHP Battle,2008887,201901
Rother District Council,25/03/2019,091HOUSING,Housing and Community Services,20205,Housing Loans Account,D2514,Accommodation Costs,775.00,Chapmans of Hastings,Accommodation Costs Homelessness services BandB Removals,2008667,201901
Rother District Council,25/03/2019,091HOUSING,Housing and Community Services,20200,Housing Needs - HB (Housing Benefit),D2514,Accommodation Costs,336.00,Solutions Accommodation Providers Ltd,Accommodation Costs Homelessness services Temp Accom - No VAT,2008719,201901
Rother District Council,25/03/2019,091HOUSING,Housing and Community Services,20200,Housing Needs - HB (Housing Benefit),D2514,Accommodation Costs,392.00,Solutions Accommodation Providers Ltd,Accommodation Costs Homelessness services Temp Accom - No VAT,2008722,201901
Rother District Council,25/03/2019,091HOUSING,Housing and Community Services,20200,Housing Needs - HB (Housing Benefit),D2514,Accommodation Costs,392.00,Solutions Accommodation Providers Ltd,Accommodation Costs Homelessness services Temp Accom - No VAT,2008716,201901
Rother District Council,25/03/2019,091HOUSING,Housing and Community Services,20200,Housing Needs - HB (Housing Benefit),D2514,Accommodation Costs,392.00,Solutions Accommodation Providers Ltd,Accommodation Costs Homelessness services Temp Accom - No VAT,2008724,201901
Rother District Council,25/03/2019,091HOUSING,Housing and Community Services,20200,Housing Needs - HB (Housing Benefit),D2514,Accommodation Costs,392.00,Solutions Accommodation Providers Ltd,Accommodation Costs Homelessness services Temp Accom - No VAT,2008717,201901
Rother District Council,25/03/2019,091HOUSING,Housing and Community Services,20200,Housing Needs - HB (Housing Benefit),D2514,Accommodation Costs,280.00,Solutions Accommodation Providers Ltd,Accommodation Costs Homelessness services Temp Accom - No VAT,2008712,201901
Rother District Council,25/03/2019,091HOUSING,Housing and Community Services,20200,Housing Needs - HB (Housing Benefit),D2514,Accommodation Costs,145.60,Solutions Accommodation Providers Ltd,Accommodation Costs Homelessness services Temp Accom - No VAT,2008714,201901
Rother District Council,25/03/2019,091HOUSING,Housing and Community Services,20200,Housing Needs - HB (Housing Benefit),D2514,Accommodation Costs,98.00,Solutions Accommodation Providers Ltd,Accommodation costs Homelessness services Temp Accom - plus VAT,2008722,201901
Rother District Council,25/03/2019,091HOUSING,Housing and Community Services,20200,Housing Needs - HB (Housing Benefit),D2514,Accommodation Costs,98.00,Solutions Accommodation Providers Ltd,Accommodation costs Homelessness services Temp Accom - plus VAT,2008716,201901
Rother District Council,25/03/2019,091HOUSING,Housing and Community Services,20200,Housing Needs - HB (Housing Benefit),D2514,Accommodation Costs,84.00,Solutions Accommodation Providers Ltd,Accommodation costs Homelessness services Temp Accom - plus VAT,2008719,201901
Rother District Council,25/03/2019,091HOUSING,Housing and Community Services,20200,Housing Needs - HB (Housing Benefit),D2514,Accommodation Costs,98.00,Solutions Accommodation Providers Ltd,Accommodation costs Homelessness services Temp Accom - plus VAT,2008724,201901
Rother District Council,25/03/2019,091HOUSING,Housing and Community Services,20200,Housing Needs - HB (Housing Benefit),D2514,Accommodation Costs,70.00,Solutions Accommodation Providers Ltd,Accommodation costs Homelessness services Temp Accom - plus VAT,2008712,201901
Rother District Council,25/03/2019,091HOUSING,Housing and Community Services,20200,Housing Needs - HB (Housing Benefit),D2514,Accommodation Costs,98.00,Solutions Accommodation Providers Ltd,Accommodation costs Homelessness services Temp Accom - plus VAT,2008717,201901
Rother District Council,25/03/2019,091HOUSING,Housing and Community Services,20200,Housing Needs - HB (Housing Benefit),D2514,Accommodation Costs,36.40,Solutions Accommodation Providers Ltd,Accommodation costs Homelessness services Temp Accom - plus VAT,2008714,201901
Rother District Council,25/03/2019,041ENVIRON,Environmental Services,32134,EH Pollution R + W Partnership,D2632,Additional Computer Equipment,776.62,Dell Corporation Ltd,Additional Computer Equipment New PC/Computer,2008867,201901
Rother District Council,25/03/2019,091HOUSING,Housing and Community Services,20145,Maintenance Services,D2352,Clothing and Uniforms,6.66,Trade UK Account (Screwfix),Clothing and Uniforms Mens Protective-Other,2008686,201901
Rother District Council,25/03/2019,091HOUSING,Housing and Community Services,20137,Car Parks,D1201,Equipment & Materials,135.39,Cale UK Ltd,Equipment & Materials Ticket Machine Maintenance/ Repairs,2008690,201901
Rother District Council,25/03/2019,091HOUSING,Housing and Community Services,20115,Rye Area Parks & Gardens,B1100,Repairs to Premises,91.00,B E M Builders and  Decorators Ltd,Repairs to Premises Parks- Boundaries Repairs and Maintenance,2008510,201901
Rother District Council,25/03/2019,091HOUSING,Housing and Community Services,20115,Rye Area Parks & Gardens,B1100,Repairs to Premises,665.00,B E M Builders and  Decorators Ltd,Repairs to Premises Parks- Carpentry Repairs,2008510,201901
Rother District Council,25/03/2019,091HOUSING,Housing and Community Services,20115,Rye Area Parks & Gardens,B1100,Repairs to Premises,760.00,B E M Builders and  Decorators Ltd,Repairs to Premises Parks- Redecoration Works,2008510,201901
Rother District Council,25/03/2019,081ACQUISIT,"Acquisitions, Transformation and Regeneration",20148,Misc Land & Buildings,B1100,Repairs to Premises,"1,932.00",B E M Builders and  Decorators Ltd,Repairs to Premises Parks- Redecoration Works,2008510,201901
Rother District Council,25/03/2019,091HOUSING,Housing and Community Services,20114,Bexhill Parks & Open Spaces,B1100,Repairs to Premises,928.20,B E M Builders and  Decorators Ltd,Repairs to Premises Parks- Roofing Repairs,2008546,201901
Rother District Council,25/03/2019,091HOUSING,Housing and Community Services,20128,Public Conveniences,B1100,Repairs to Premises,57.87,Jewson Limited,Repairs to Premises Purchase of Materials - Build Maint,2008753,201901
Rother District Council,25/03/2019,091HOUSING,Housing and Community Services,20128,Public Conveniences,B1100,Repairs to Premises,24.98,Trade UK Account (Screwfix),Repairs to Premises Purchase of Materials - Build Maint,2008687,201901
Rother District Council,25/03/2019,091HOUSING,Housing and Community Services,20145,Maintenance Services,D1201,Equipment & Materials,14.55,C Brewer and Sons Ltd,Repairs to Premises Purchase of Materials - Build Maint,2008863,201901
Rother District Council,25/03/2019,091HOUSING,Housing and Community Services,20128,Public Conveniences,B1100,Repairs to Premises,315.89,Alfa Electric Ltd,Repairs to Premises Repairs - Electrical Works,2008707,201901
Rother District Council,25/03/2019,091HOUSING,Housing and Community Services,20128,Public Conveniences,B1100,Repairs to Premises,715.06,Alfa Electric Ltd,Repairs to Premises Repairs - Electrical Works,2008710,201901
Rother District Council,25/03/2019,091HOUSING,Housing and Community Services,20125,Coast Protection,E2302,Third party payment private contractors,"4,263.92",Kingsdown Compressed Air Systems Ltd,Third party payment private contractors - Fairlight Compressor Maintenance Contract,2009015,201901
Rother District Council,25/03/2019,091HOUSING,Housing and Community Services,20125,Coast Protection,E2302,Third party payment private contractors,"2,961.00",Kingsdown Compressed Air Systems Ltd,Third party payment private contractors - Fairlight Compressor Maintenance Contract,2009039,201901
Rother District Council,25/03/2019,101RESOURCES,Resources,20240,Printing Services,E2302,Third party payment private contractors,90.00,IDL UK,Third party payment private contractors Work by Outside Contractors,2008692,201901
Rother District Council,25/03/2019,091HOUSING,Housing and Community Services,20235,Rye Community Help Point,B2311,Rents and service charges,"2,300.00",East Sussex County Council,Rents and service charges,2009003,201901
Rother District Council,26/03/2019,091HOUSING,Housing and Community Services,20108,Bexhill Promenade & Foreshore,D1201,Equipment & Materials,77.50,Hampshire Flag Company Ltd,Equipment & Materials Flags,2008790,201901
Rother District Council,26/03/2019,091HOUSING,Housing and Community Services,20137,Car Parks,C2424,Car parking,600.00,William Cooke and Son (Farmers) Ltd,Repairs to Premises Car Park Maintenance,2010061,201903
Rother District Council,26/03/2019,091HOUSING,Housing and Community Services,20137,Car Parks,B1100,Repairs to Premises,350.00,B and G Environmental Services Limited,Repairs to Premises Drainage Clearance,2008711,201901
Rother District Council,26/03/2019,091HOUSING,Housing and Community Services,20108,Bexhill Promenade & Foreshore,B1100,Repairs to Premises,95.00,Haven Security Ltd,Repairs to Premises Intruder Alarm System Monitor/Maint,2008612,201901
Rother District Council,26/03/2019,081ACQUISIT,"Acquisitions, Transformation and Regeneration",20104,Ancient Monuments & Gazebo,B1100,Repairs to Premises,176.57,Alfa Electric Ltd,Repairs to Premises Repairs - Electrical Works,2008817,201901
Rother District Council,26/03/2019,091HOUSING,Housing and Community Services,20128,Public Conveniences,B1100,Repairs to Premises,194.64,Alfa Electric Ltd,Repairs to Premises Repairs - Electrical Works,2008920,201901
Rother District Council,26/03/2019,091HOUSING,Housing and Community Services,20115,Rye Area Parks & Gardens,B2421,Water,126.23,Scottish Water Business Stream Limited,Sewage Charges,2008618,201901
Rother District Council,26/03/2019,091HOUSING,Housing and Community Services,20234,Battle Community Help Point,B2422,Sewerage,59.37,Scottish Water Business Stream Limited,Sewage Charges,2008619,201901
Rother District Council,26/03/2019,091HOUSING,Housing and Community Services,20115,Rye Area Parks & Gardens,B2421,Water,88.28,Scottish Water Business Stream Limited,Water Charges,2008618,201901
Rother District Council,27/03/2019,999NOREPORT,Environmental Services,70706,Capital - Disable Facilities Grant,N1012,Capital Advances,"10,273.00",East Sussex County Council,Capital Advances Disabled Facilities Grant,2008763,201901
Rother District Council,27/03/2019,101RESOURCES,Resources,20240,Printing Services,D1201,Equipment & Materials,227.80,Coloursped Services Ltd,Equipment & Materials Platemaking Materials,2009024,201901
Rother District Council,27/03/2019,101RESOURCES,Resources,20216,Cost Of Collection,D2513,Hired and Contracted services,27.00,H M Land Registry,Hired and contracted services Council Tax-Land Registry Enquiries,2008745,201901
Rother District Council,27/03/2019,071STRAT,Strategy and Planning,20258,BC Dangerous Structures H+R Partnership,D2513,Hired and Contracted services,12.00,H M Land Registry,Hired and contracted services Env H- Land Registry,2008745,201901
Rother District Council,27/03/2019,071STRAT,Strategy and Planning,20246,Planning Applications,D2513,Hired and Contracted services,21.00,H M Land Registry,Hired and contracted services Land Registry - Planning,2008745,201901
Rother District Council,27/03/2019,031RESOURCES,Executive Directors & Corporate Core,20171,Human Resources,D2513,Hired and Contracted services,310.00,Steve Clifford & Associates Ltd,Hired and contracted services Occupational Health,2008751,201901
Rother District Council,27/03/2019,101RESOURCES,Resources,20216,Cost Of Collection,D2513,Hired and Contracted services,"2,435.00",Inform CPI Ltd,Hired and contracted services RV Finder,2008631,201901
Rother District Council,27/03/2019,091HOUSING,Housing and Community Services,20208,Care In The Community,D2513,Hired and Contracted services,300.00,Safe Partnership Ltd,Hired and contracted services Sanctuary DV Assistance Revenue,2008988,201901
Rother District Council,27/03/2019,081ACQUISIT,"Acquisitions, Transformation and Regeneration",20153,"Elva Business Centre, Bexhill",D2513,Hired and Contracted services,22.20,Harbrine Ltd,Hired and contracted services Service fee paid,2008836,201901
Rother District Council,27/03/2019,101RESOURCES,Resources,20209,Corporate management,D2513,Hired and Contracted services,"4,999.00",Arlingclose Ltd,Hired and contracted services Service fee paid,2008662,201901
Rother District Council,27/03/2019,101RESOURCES,Resources,20240,Printing Services,D2417,Photocopy Paper by external suppliers,98.82,Premier Paper Group Ltd,Photocopy Paper by external suppliers Colour Paper,2008661,201901
Rother District Council,27/03/2019,091HOUSING,Housing and Community Services,20114,Bexhill Parks & Open Spaces,B1100,Repairs to Premises,120.00,Sussex Ornamental Iron Ltd,Repairs to Premises Parks- Fencing Installation,2008750,201901
Rother District Council,27/03/2019,091HOUSING,Housing and Community Services,20114,Bexhill Parks & Open Spaces,B1100,Repairs to Premises,69.60,Palmstead Nurseries Ltd,Repairs to Premises Parks- Purchase of Plants,2008997,201902
Rother District Council,27/03/2019,091HOUSING,Housing and Community Services,20114,Bexhill Parks & Open Spaces,B1100,Repairs to Premises,161.16,Palmstead Nurseries Ltd,Repairs to Premises Parks- Purchase of Plants,2008997,201902
Rother District Council,27/03/2019,091HOUSING,Housing and Community Services,20114,Bexhill Parks & Open Spaces,B1100,Repairs to Premises,8.69,Palmstead Nurseries Ltd,Repairs to Premises Parks- Purchase of Plants,2008997,201902
Rother District Council,27/03/2019,091HOUSING,Housing and Community Services,20114,Bexhill Parks & Open Spaces,B1100,Repairs to Premises,10.69,Palmstead Nurseries Ltd,Repairs to Premises Parks- Purchase of Plants,2008997,201902
Rother District Council,27/03/2019,091HOUSING,Housing and Community Services,20114,Bexhill Parks & Open Spaces,B1100,Repairs to Premises,"1,323.83",Palmstead Nurseries Ltd,Repairs to Premises Parks- Purchase of Plants,2008997,201902
Rother District Council,27/03/2019,091HOUSING,Housing and Community Services,20114,Bexhill Parks & Open Spaces,B1100,Repairs to Premises,73.00,Palmstead Nurseries Ltd,Repairs to Premises Parks- Purchase of Plants,2008997,201902
Rother District Council,27/03/2019,081ACQUISIT,"Acquisitions, Transformation and Regeneration",20153,"Elva Business Centre, Bexhill",B1100,Repairs to Premises,32.52,Palmstead Nurseries Ltd,Repairs to Premises Parks- Purchase of Plants,2008997,201902
Rother District Council,27/03/2019,031RESOURCES,Executive Directors & Corporate Core,20175,Administrative Offices - T.H. Annex (NOT CHP),B1100,Repairs to Premises,95.54,Alfa Electric Ltd,Repairs to Premises Repairs - Electrical Works,2008816,201901
Rother District Council,27/03/2019,091HOUSING,Housing and Community Services,20128,Public Conveniences,B1100,Repairs to Premises,499.20,Baker Architectural Ltd,Repairs to Premises Repairs/Maintenance - various,2009014,201901
Rother District Council,27/03/2019,101RESOURCES,Resources,20242,Communications-Phones,D2621,Telephones,290.59,BT British Telecommunications plc,Telephones BT-Rental-General,2008893,201901
Rother District Council,27/03/2019,031RESOURCES,Executive Directors & Corporate Core,20178,Corporate Training,A2203,Training,"3,750.00",Trustmarque Solutions Ltd t/a S3,Training,2008994,201901
Rother District Council,28/03/2019,091HOUSING,Housing and Community Services,20205,Housing Loans Account,D2514,Accommodation Costs,485.00,Chapmans of Hastings,Accommodation Costs Homelessness services BandB Removals,2008669,201901
Rother District Council,28/03/2019,091HOUSING,Housing and Community Services,20200,Housing Needs - HB (Housing Benefit),D2514,Accommodation Costs,265.00,Chapmans of Hastings,Accommodation Costs Homelessness services BandB Removals,2008634,201901
Rother District Council,28/03/2019,091HOUSING,Housing and Community Services,20200,Housing Needs - HB (Housing Benefit),D2514,Accommodation Costs,150.00,Chapmans of Hastings,Accommodation Costs Homelessness services BandB Removals,2008635,201901
Rother District Council,28/03/2019,091HOUSING,Housing and Community Services,20205,Housing Loans Account,D2514,Accommodation Costs,600.00,Pride n Property,Accommodation Costs Homelessness services Deposit for Landlords,2009117,201901
Rother District Council,28/03/2019,091HOUSING,Housing and Community Services,20205,Housing Loans Account,D2514,Accommodation Costs,465.00,Oakfield Property Management Ltd,Accommodation Costs Homelessness services Deposit for Landlords,2008668,201901
Rother District Council,28/03/2019,091HOUSING,Housing and Community Services,20205,Housing Loans Account,D2514,Accommodation Costs,250.00,Masonbryant,Accommodation Costs Homelessness services Deposit for Landlords,2009095,201901
Rother District Council,28/03/2019,091HOUSING,Housing and Community Services,20205,Housing Loans Account,D2514,Accommodation Costs,500.00,Pride n Property,Accommodation Costs Homelessness services Rent in Advance for Homeless,2009117,201901
Rother District Council,28/03/2019,091HOUSING,Housing and Community Services,20205,Housing Loans Account,D2514,Accommodation Costs,465.00,Oakfield Property Management Ltd,Accommodation Costs Homelessness services Rent in Advance for Homeless,2008668,201901
Rother District Council,28/03/2019,091HOUSING,Housing and Community Services,20205,Housing Loans Account,D2514,Accommodation Costs,325.00,Masonbryant,Accommodation Costs Homelessness services Rent in Advance for Homeless,2009095,201901
Rother District Council,28/03/2019,101RESOURCES,Resources,20239,Computer Services,D2631,Computer Equip Maintenance,66.78,Dell Corporation Ltd,Computer Equip Maintenance Maintenance-File Servers,2008799,201901
Rother District Council,28/03/2019,101RESOURCES,Resources,20211,Public Accountabilty-Resources,D2738,Conferences,725.00,Solace,Conferences Officers Conference fees,2008696,201901
Rother District Council,28/03/2019,101RESOURCES,Resources,20239,Computer Services,D2509,Consultants and Other Services,184.26,Northgate Public Services (UK) Ltd,Consultants and Other Services Consultants Fees,2008732,201901
Rother District Council,28/03/2019,091HOUSING,Housing and Community Services,20114,Bexhill Parks & Open Spaces,D1201,Equipment & Materials,"28,711.00",Playsafe Playgorunds Ltd,Equipment & Materials - Parks- Playground Equipment,2008695,201901
Rother District Council,28/03/2019,031RESOURCES,Executive Directors & Corporate Core,32131,Sussex Training Partnership,D2513,Hired and Contracted services,400.00,Beckwith Consulting Ltd,Hired and contracted services Training Sussex Train Consor-Training Course,2009319,201901
Rother District Council,28/03/2019,081ACQUISIT,"Acquisitions, Transformation and Regeneration",20118,Tourism,D2517,Marketing,"2,000.00",Sweet & Dandy Ltd,Marketing Regular Marketing activities - Tourism,2008728,201901
Rother District Council,28/03/2019,031RESOURCES,Executive Directors & Corporate Core,20162,Electoral Registration,D2415,Printing by external suppliers,302.67,Electoral Reform Services Ltd,Printing by external suppliers Printing (Not from RDC Print Room),2008655,201901
Rother District Council,28/03/2019,091HOUSING,Housing and Community Services,20123,Cemeteries,B1100,Repairs to Premises,441.90,Bourne Amenity Ltd,Repairs to Premises Parks- Landscaping Works,2008723,201901
Rother District Council,28/03/2019,081ACQUISIT,"Acquisitions, Transformation and Regeneration",20155,Investment properties,B1100,Repairs to Premises,298.37,Alfa Electric Ltd,Repairs to Premises Repairs - Electrical Works,2008729,201901
Rother District Council,28/03/2019,091HOUSING,Housing and Community Services,20128,Public Conveniences,B1100,Repairs to Premises,182.33,Alfa Electric Ltd,Repairs to Premises Repairs - Electrical Works,2008727,201901
Rother District Council,28/03/2019,091HOUSING,Housing and Community Services,20138,Residual Highway Services,B1100,Repairs to Premises,"2,119.63",Alfa Electric Ltd,Repairs to Premises Repairs - Electrical Works,2008733,201901
Rother District Council,29/03/2019,091HOUSING,Housing and Community Services,20200,Housing Needs - HB (Housing Benefit),D2514,Accommodation Costs,385.00,Lets 2 Share Limited,Accommodation Costs Homelessness services Temp Accom - No VAT,2008659,201901
Rother District Council,29/03/2019,091HOUSING,Housing and Community Services,20200,Housing Needs - HB (Housing Benefit),D2514,Accommodation Costs,385.00,Lets 2 Share Limited,Accommodation Costs Homelessness services Temp Accom - No VAT,2008659,201901
Rother District Council,29/03/2019,091HOUSING,Housing and Community Services,20200,Housing Needs - HB (Housing Benefit),D2514,Accommodation Costs,385.00,Lets 2 Share Limited,Accommodation Costs Homelessness services Temp Accom - No VAT,2008659,201901
Rother District Council,29/03/2019,101RESOURCES,Resources,20239,Computer Services,D2632,Additional Computer Equipment,54.46,PCM Technology Solutions UK Ltd,Additional Computer Equipment New PC/Computer,2008700,201901
Rother District Council,29/03/2019,999NOREPORT,Housing and Community Services,70718,Capital - Sidley Recreation Ground,N1004,Architects & Consultant Fees,"1,100.00",Anderson Acoustics Ltd,Architects & Consultant Fees Capital-Architect and Conslt Fees,2008718,201901
Rother District Council,29/03/2019,999NOREPORT,"Acquisitions, Transformation and Regeneration",70725,Capital - Blackfriars,N1004,Architects & Consultant Fees,"1,000.00",GTA Civils Ltd,Architects & Consultant Fees Capital-Architect and Conslt Fees,2008764,201901
Rother District Council,29/03/2019,081ACQUISIT,"Acquisitions, Transformation and Regeneration",20153,"Elva Business Centre, Bexhill",B2612,Cleaning materials,100.00,Wightman and Parrish Ltd,Cleaning materials Premises,2008699,201901
Rother District Council,29/03/2019,031RESOURCES,Executive Directors & Corporate Core,20175,Administrative Offices - T.H. Annex (NOT CHP),B2612,Cleaning materials,123.68,Wightman and Parrish Ltd,Cleaning materials Premises,2008699,201901
Rother District Council,29/03/2019,071STRAT,Strategy and Planning,20246,Planning Applications,D2509,Consultants and Other Services,500.00,Rural Planning Ltd,Consultants and Other Services Consultants Fees,2008709,201901
Rother District Council,29/03/2019,101RESOURCES,Resources,20207,Reliefs & Benefits-Housing Benefit,D2639,Departmental Systems,"27,054.42",Capita Business Services Ltd,Departmental Systems Software for Academy System,2008977,201901
Rother District Council,29/03/2019,101RESOURCES,Resources,20216,Cost Of Collection,D2639,Departmental Systems,"27,054.42",Capita Business Services Ltd,Departmental Systems Software for Academy System,2008977,201901
Rother District Council,29/03/2019,101RESOURCES,Resources,20216,Cost Of Collection,D2513,Hired and Contracted services,"1,760.77",Capita Business Services Ltd,Departmental Systems Software for Academy System,2008758,201901
Rother District Council,29/03/2019,101RESOURCES,Resources,20216,Cost Of Collection,D2513,Hired and Contracted services,"8,693.00",Capita Business Services Ltd,Departmental Systems Software for Academy System,2008625,201901
Rother District Council,29/03/2019,101RESOURCES,Resources,20216,Cost Of Collection,D2639,Departmental Systems,"2,147.47",Capita Business Services Ltd,Departmental Systems Software for Academy System,2008926,201901
Rother District Council,29/03/2019,081ACQUISIT,"Acquisitions, Transformation and Regeneration",20146,West Trading Estate,B2201,Electricity,29.45,Opus Energy (Corporate) Ltd,Electricity Charges,2008762,201901
Rother District Council,29/03/2019,091HOUSING,Housing and Community Services,20108,Bexhill Promenade & Foreshore,D1201,Equipment & Materials,50.00,E.Y.E. Marine Ltd,Equipment & Materials Carriage/Handling Charge,2008802,201901
Rother District Council,29/03/2019,041ENVIRON,Environmental Services,32134,EH Pollution R + W Partnership,D1201,Equipment & Materials,18.00,Cirrus Research PLC,Equipment & Materials Carriage/Handling Charge,2008725,201901
Rother District Council,29/03/2019,041ENVIRON,Environmental Services,32134,EH Pollution R + W Partnership,D1201,Equipment & Materials,"7,172.50",Cirrus Research PLC,Equipment & Materials EnvH- Pollution Equipment,2008725,201901
Rother District Council,29/03/2019,091HOUSING,Housing and Community Services,20108,Bexhill Promenade & Foreshore,D1201,Equipment & Materials,"2,517.90",E.Y.E. Marine Ltd,Equipment & Materials Marker Buoys and Signs,2008802,201901
Rother District Council,29/03/2019,091HOUSING,Housing and Community Services,20145,Maintenance Services,D1201,Equipment & Materials,41.66,Trade UK Account (Screwfix),Equipment & Materials Purchase of Tools,2008980,201901
Rother District Council,29/03/2019,091HOUSING,Housing and Community Services,20132,Street & Beach Cleansing,D2923,Grants made,413.90,St Mary's Wood (EARA) Ltd,Grants made - Communities Street Clean Up grant,2008932,201901
Rother District Council,29/03/2019,091HOUSING,Housing and Community Services,20132,Street & Beach Cleansing,D2923,Grants made,693.75,Battle Town Council,Grants made - Communities Street Clean Up grant,2008670,201901
Rother District Council,29/03/2019,091HOUSING,Housing and Community Services,20132,Street & Beach Cleansing,D2923,Grants made,"2,550.00",Highwoods Preservation Society,Grants made - Communities Street Clean Up grant,2008671,201901
Rother District Council,29/03/2019,091HOUSING,Housing and Community Services,20132,Street & Beach Cleansing,D2923,Grants made,182.74,Camber Parish Council,Grants made - Communities Street Clean Up grant,2008672,201901
Rother District Council,29/03/2019,091HOUSING,Housing and Community Services,20132,Street & Beach Cleansing,D2923,Grants made,748.01,Mountfield Parish Council,Grants made - Communities Street Clean Up grant,2008673,201901
Rother District Council,29/03/2019,091HOUSING,Housing and Community Services,20132,Street & Beach Cleansing,D2923,Grants made,398.49,Bexhill Environmental Group,Grants made - Communities Street Clean Up grant,2008674,201901
Rother District Council,29/03/2019,091HOUSING,Housing and Community Services,20132,Street & Beach Cleansing,D2923,Grants made,250.00,1st Ninfield & Crowhurst Scout Group,Grants made - Communities Street Clean Up grant,2008675,201901
Rother District Council,29/03/2019,091HOUSING,Housing and Community Services,20132,Street & Beach Cleansing,D2923,Grants made,150.00,Bexhill Wheelers,Grants made - Communities Street Clean Up grant,2008676,201901
Rother District Council,29/03/2019,091HOUSING,Housing and Community Services,20132,Street & Beach Cleansing,D2923,Grants made,150.00,1066 Cycle Club,Grants made - Communities Street Clean Up grant,2008677,201901
Rother District Council,29/03/2019,091HOUSING,Housing and Community Services,20132,Street & Beach Cleansing,D2923,Grants made,399.83,Burwash Parish Council,Grants made - Communities Street Clean Up grant,2008678,201901
Rother District Council,29/03/2019,091HOUSING,Housing and Community Services,20132,Street & Beach Cleansing,D2923,Grants made,748.01,Dallington Parish Council,Grants made - Communities Street Clean Up grant,2008679,201901
Rother District Council,29/03/2019,091HOUSING,Housing and Community Services,20132,Street & Beach Cleansing,D2923,Grants made,"1,614.00",Rother Voluntary Action,Grants made - Communities Street Clean Up grant,2008680,201901
Rother District Council,29/03/2019,091HOUSING,Housing and Community Services,20132,Street & Beach Cleansing,D2923,Grants made,578.00,Strandliners,Grants made - Communities Street Clean Up grant,2008681,201901
Rother District Council,29/03/2019,091HOUSING,Housing and Community Services,20132,Street & Beach Cleansing,D2923,Grants made,"2,053.20",3rd Bexhill (St Michaels) Scout Group,Grants made - Communities Street Clean Up grant,2008682,201901
Rother District Council,29/03/2019,091HOUSING,Housing and Community Services,20132,Street & Beach Cleansing,D2923,Grants made,301.00,Bexhill Heritage,Grants made - Communities Street Clean Up grant,2008683,201901
Rother District Council,29/03/2019,091HOUSING,Housing and Community Services,20132,Street & Beach Cleansing,D2923,Grants made,100.00,Bexhill Old Town Preservation Society,Grants made - Communities Street Clean Up grant,2008684,201901
Rother District Council,29/03/2019,031RESOURCES,Executive Directors & Corporate Core,20171,Human Resources,D2513,Hired and Contracted services,119.41,Computershare Voucher Services,Hired and contracted services Child Care Voucher Service Charge,2009045,201901
Rother District Council,29/03/2019,101RESOURCES,Resources,20216,Cost Of Collection,D2513,Hired and Contracted services,75.00,H M Land Registry,Hired and contracted services Council Tax-Land Registry Enquiries,2008744,201901
Rother District Council,29/03/2019,041ENVIRON,Environmental Services,32144,EH Environmental Services Admin R + W Partnership,D2513,Hired and Contracted services,3.00,H M Land Registry,Hired and contracted services Env H- Land Registry,2008744,201901
Rother District Council,29/03/2019,071STRAT,Strategy and Planning,20246,Planning Applications,D2513,Hired and Contracted services,3.00,H M Land Registry,Hired and contracted services Land Registry - Planning,2008744,201901
Rother District Council,29/03/2019,081ACQUISIT,"Acquisitions, Transformation and Regeneration",20144,Property Management,D2513,Hired and Contracted services,6.00,H M Land Registry,Hired and contracted services Land Registry - Property Management,2008744,201901
Rother District Council,29/03/2019,091HOUSING,Housing and Community Services,20114,Bexhill Parks & Open Spaces,D2513,Hired and Contracted services,"1,500.00",Anderson Acoustics Ltd,Hired and contracted services Parks- Consultants Fees,2008718,201901
Rother District Council,29/03/2019,101RESOURCES,Resources,20216,Cost Of Collection,D2513,Hired and Contracted services,"3,485.35",Virtual Mail Room Ltd,Hired and contracted services RV Finder,2009158,201901
Rother District Council,29/03/2019,091HOUSING,Housing and Community Services,20200,Housing Needs - HB (Housing Benefit),D2513,Hired and Contracted services,678.44,Northgate Public Services (UK) Ltd,Hired and contracted services Scanning Services,2008737,201901
Rother District Council,29/03/2019,081ACQUISIT,"Acquisitions, Transformation and Regeneration",20118,Tourism,D2513,Hired and Contracted services,"2,000.00",Hastings Borough Council,Hired and contracted services Service fee paid,2008697,201901
Rother District Council,29/03/2019,041ENVIRON,Environmental Services,32134,EH Pollution R + W Partnership,D2513,Hired and Contracted services,50.00,DC Property Maintenance,Hired and contracted services Service fee paid,2009041,201901
Rother District Council,29/03/2019,031RESOURCES,Executive Directors & Corporate Core,20185,Joint Waste procurement,D2513,Hired and Contracted services,"3,547.50",Bevan Brittan LLP,Hired and contracted services Service fee paid,2008811,201901
Rother District Council,29/03/2019,031RESOURCES,Executive Directors & Corporate Core,20180,Emergency Planning,D2513,Hired and Contracted services,"1,973.21",Wealden District Council,Hired and contracted services Service fee paid,2008741,201901
Rother District Council,29/03/2019,999NOREPORT,Housing and Community Services,70726,Capital - Bexhill Cemetery Entrance/Driveway,D2513,Hired and Contracted services,"1,600.00",GTA Civils Ltd,Hired and contracted services Service fee paid,2008765,201901
Rother District Council,29/03/2019,081ACQUISIT,"Acquisitions, Transformation and Regeneration",20144,Property Management,D2513,Hired and Contracted services,"6,963.30",DVS Croydon Valuation Office,Hired and contracted services Valuation Services,2008698,201901
Rother District Council,29/03/2019,071STRAT,Strategy and Planning,20246,Planning Applications,D2513,Hired and Contracted services,333.80,Valuation Office Agency,Hired and contracted services Valuation Services,2008628,201901
Rother District Council,29/03/2019,071STRAT,Strategy and Planning,20246,Planning Applications,D2513,Hired and Contracted services,"1,124.40",Valuation Office Agency,Hired and contracted services Valuation Services,2008627,201901
Rother District Council,29/03/2019,091HOUSING,Housing and Community Services,20137,Car Parks,D2513,Hired and Contracted services,993.70,Valuation Office Agency,Hired and contracted services Valuation Services,2008629,201901
Rother District Council,29/03/2019,101RESOURCES,Resources,20240,Printing Services,D2417,Photocopy Paper by external suppliers,234.00,Premier Paper Group Ltd,Photocopy Paper by external supplier Wide Format Consumables,2008740,201901
Rother District Council,29/03/2019,101RESOURCES,Resources,20216,Cost Of Collection,D2626,Postages,"8,484.78",Virtual Mail Room Ltd,Postages - Virtual Mail Room,2009266,201901
Rother District Council,29/03/2019,101RESOURCES,Resources,20216,Cost Of Collection,D2626,Postages,"1,589.15",Virtual Mail Room Ltd,Postages - Virtual Mail Room,2009265,201901
Rother District Council,29/03/2019,101RESOURCES,Resources,20216,Cost Of Collection,D2626,Postages,"1,151.42",Virtual Mail Room Ltd,Postages - Virtual Mail Room,2008927,201901
Rother District Council,29/03/2019,091HOUSING,Housing and Community Services,20137,Car Parks,B1100,Repairs to Premises,186.75,Streetlights,Repairs to Premises Lighting Repairs,2008754,201901
Rother District Council,29/03/2019,091HOUSING,Housing and Community Services,20114,Bexhill Parks & Open Spaces,B1100,Repairs to Premises,"4,700.00",Colin A May,Repairs to Premises Parks - Playground Repairs,2008688,201901
Rother District Council,29/03/2019,091HOUSING,Housing and Community Services,20114,Bexhill Parks & Open Spaces,B1100,Repairs to Premises,217.28,Palmstead Nurseries Ltd,Repairs to Premises Parks- Purchase of Plants,2008998,201901
Rother District Council,29/03/2019,091HOUSING,Housing and Community Services,20114,Bexhill Parks & Open Spaces,B1100,Repairs to Premises,259.29,Palmstead Nurseries Ltd,Repairs to Premises Parks- Purchase of Plants,2008998,201901
Rother District Council,29/03/2019,091HOUSING,Housing and Community Services,20114,Bexhill Parks & Open Spaces,B1100,Repairs to Premises,"1,075.22",B E M Builders and  Decorators Ltd,Repairs to Premises Parks- Redecoration Works,2008738,201901
Rother District Council,29/03/2019,091HOUSING,Housing and Community Services,20128,Public Conveniences,B1100,Repairs to Premises,89.83,Alfa Electric Ltd,Repairs to Premises Repairs - Electrical Works,2008921,201901
Rother District Council,29/03/2019,091HOUSING,Housing and Community Services,20128,Public Conveniences,B1100,Repairs to Premises,252.35,Alfa Electric Ltd,Repairs to Premises Repairs - Electrical Works,2008777,201901
Rother District Council,29/03/2019,091HOUSING,Housing and Community Services,20128,Public Conveniences,B1100,Repairs to Premises,254.55,Alfa Electric Ltd,Repairs to Premises Repairs - Electrical Works,2008778,201901
Rother District Council,29/03/2019,091HOUSING,Housing and Community Services,20128,Public Conveniences,B1100,Repairs to Premises,595.41,Alfa Electric Ltd,Repairs to Premises Repairs - Electrical Works,2008775,201901
Rother District Council,29/03/2019,091HOUSING,Housing and Community Services,20128,Public Conveniences,B1100,Repairs to Premises,417.93,Alfa Electric Ltd,Repairs to Premises Repairs - Electrical Works,2008776,201901
Rother District Council,29/03/2019,091HOUSING,Housing and Community Services,20128,Public Conveniences,B1100,Repairs to Premises,590.11,Alfa Electric Ltd,Repairs to Premises Repairs - Electrical Works,2008781,201901
Rother District Council,29/03/2019,091HOUSING,Housing and Community Services,20128,Public Conveniences,B1100,Repairs to Premises,"1,106.61",Alfa Electric Ltd,Repairs to Premises Repairs - Electrical Works,2008782,201901
Rother District Council,29/03/2019,091HOUSING,Housing and Community Services,20128,Public Conveniences,B1100,Repairs to Premises,485.22,Alfa Electric Ltd,Repairs to Premises Repairs - Electrical Works,2008783,201901
Rother District Council,29/03/2019,091HOUSING,Housing and Community Services,20128,Public Conveniences,B1100,Repairs to Premises,289.99,Alfa Electric Ltd,Repairs to Premises Repairs - Electrical Works,2008779,201901
Rother District Council,29/03/2019,091HOUSING,Housing and Community Services,20128,Public Conveniences,B1100,Repairs to Premises,360.21,Alfa Electric Ltd,Repairs to Premises Repairs - Electrical Works,2008730,201901
Rother District Council,29/03/2019,091HOUSING,Housing and Community Services,20128,Public Conveniences,B1100,Repairs to Premises,765.03,Alfa Electric Ltd,Repairs to Premises Repairs - Electrical Works,2008731,201901
Rother District Council,29/03/2019,091HOUSING,Housing and Community Services,20128,Public Conveniences,B1100,Repairs to Premises,311.84,Alfa Electric Ltd,Repairs to Premises Repairs - Electrical Works,2008774,201901
Rother District Council,29/03/2019,091HOUSING,Housing and Community Services,20137,Car Parks,B1100,Repairs to Premises,228.97,Alfa Electric Ltd,Repairs to Premises Repairs - Electrical Works,2008780,201901
Rother District Council,29/03/2019,031RESOURCES,Executive Directors & Corporate Core,20176,Administrative Offices - Print Room,B1100,Repairs to Premises,"4,997.28",Alfa Electric Ltd,Repairs to Premises Specified Repairs and Works listed,2008784,201901
Rother District Council,29/03/2019,081ACQUISIT,"Acquisitions, Transformation and Regeneration",20266,Property Investment Strategy,B2422,Sewerage,73.09,Scottish Water Business Stream Limited,Sewage Charges,2008876,201901
Rother District Council,29/03/2019,091HOUSING,Housing and Community Services,20128,Public Conveniences,B2422,Sewerage,815.77,Scottish Water Business Stream Limited,Sewage Charges,2008760,201901
Rother District Council,29/03/2019,071STRAT,Strategy and Planning,20246,Planning Applications,D2519,Statutory Advertising,732.00,JPIMedia Publishing Ltd,Statutory Advertising Planadv - Rye + Battle Observer,2008835,201901
Rother District Council,29/03/2019,091HOUSING,Housing and Community Services,20128,Public Conveniences,B2421,Water,504.58,Scottish Water Business Stream Limited,Water Charges,2008760,201901
Rother District Council,29/03/2019,999NOREPORT,Resources,90000,Balance sheet all accounts,T1002,Childcare Vouchers,"1,837.00",Computershare Voucher Services,Childcare Vouchers,2009045,201901
Rother District Council,29/03/2019,091HOUSING,Housing and Community Services,20200,Housing Needs - HB (Housing Benefit),D2514,Accommodation Costs,-295.00,South Down Residential Ltd,Accommodation Costs,2008632,201901
Rother District Council,30/03/2019,071STRAT,Strategy and Planning,20244,General Planning Expenses,D1204,Newspapers & Periodicals,17.25,Pipers News Ltd,Newspapers & Periodicals Newspapers,2008736,201901
Rother District Council,30/03/2019,031RESOURCES,Executive Directors & Corporate Core,20159,Corporate Policy Making,D1204,Newspapers & Periodicals,17.25,Pipers News Ltd,Newspapers & Periodicals Newspapers,2008734,201901
Rother District Council,30/03/2019,031RESOURCES,Executive Directors & Corporate Core,20156,Representing Local Interest,D1204,Newspapers & Periodicals,17.25,Pipers News Ltd,Newspapers & Periodicals Newspapers,2008735,201901
Rother District Council,31/03/2019,091HOUSING,Housing and Community Services,20200,Housing Needs - HB (Housing Benefit),D2514,Accommodation Costs,588.00,LESSHOMELESS LTD,Accommodation Costs Homelessness services Temp Accom - No VAT,2008656,201901
Rother District Council,31/03/2019,091HOUSING,Housing and Community Services,20200,Housing Needs - HB (Housing Benefit),D2514,Accommodation Costs,"1,550.00",LESSHOMELESS LTD,Accommodation Costs Homelessness services Temp Accom - No VAT,2008656,201901
Rother District Council,31/03/2019,091HOUSING,Housing and Community Services,20200,Housing Needs - HB (Housing Benefit),D2514,Accommodation Costs,175.00,Specialist Care UK Group Ltd,Accommodation costs Homelessness services Temp Accom - plus VAT,2008990,201901
Rother District Council,31/03/2019,091HOUSING,Housing and Community Services,20200,Housing Needs - HB (Housing Benefit),D2514,Accommodation Costs,262.50,Specialist Care UK Group Ltd,Accommodation costs Homelessness services Temp Accom - plus VAT,2008650,201901
Rother District Council,31/03/2019,091HOUSING,Housing and Community Services,20200,Housing Needs - HB (Housing Benefit),D2514,Accommodation Costs,300.00,Specialist Care UK Group Ltd,Accommodation costs Homelessness services Temp Accom - plus VAT,2008640,201901
Rother District Council,31/03/2019,091HOUSING,Housing and Community Services,20200,Housing Needs - HB (Housing Benefit),D2514,Accommodation Costs,262.50,Specialist Care UK Group Ltd,Accommodation costs Homelessness services Temp Accom - plus VAT,2008648,201901
Rother District Council,31/03/2019,091HOUSING,Housing and Community Services,20200,Housing Needs - HB (Housing Benefit),D2514,Accommodation Costs,350.00,Specialist Care UK Group Ltd,Accommodation costs Homelessness services Temp Accom - plus VAT,2008643,201901
Rother District Council,31/03/2019,091HOUSING,Housing and Community Services,20200,Housing Needs - HB (Housing Benefit),D2514,Accommodation Costs,262.50,Specialist Care UK Group Ltd,Accommodation costs Homelessness services Temp Accom - plus VAT,2008645,201901
Rother District Council,31/03/2019,091HOUSING,Housing and Community Services,20200,Housing Needs - HB (Housing Benefit),D2514,Accommodation Costs,150.00,Specialist Care UK Group Ltd,Accommodation costs Homelessness services Temp Accom - plus VAT,2008652,201901
Rother District Council,31/03/2019,091HOUSING,Housing and Community Services,20200,Housing Needs - HB (Housing Benefit),D2514,Accommodation Costs,200.00,Specialist Care UK Group Ltd,Accommodation costs Homelessness services Temp Accom - plus VAT,2008653,201901
Rother District Council,31/03/2019,091HOUSING,Housing and Community Services,20200,Housing Needs - HB (Housing Benefit),D2514,Accommodation Costs,350.00,Specialist Care UK Group Ltd,Accommodation costs Homelessness services Temp Accom - plus VAT,2008646,201901
Rother District Council,31/03/2019,091HOUSING,Housing and Community Services,20200,Housing Needs - HB (Housing Benefit),D2514,Accommodation Costs,262.50,Specialist Care UK Group Ltd,Accommodation costs Homelessness services Temp Accom - plus VAT,2008644,201901
Rother District Council,31/03/2019,091HOUSING,Housing and Community Services,20200,Housing Needs - HB (Housing Benefit),D2514,Accommodation Costs,262.50,Specialist Care UK Group Ltd,Accommodation costs Homelessness services Temp Accom - plus VAT,2008641,201901
Rother District Council,31/03/2019,091HOUSING,Housing and Community Services,20200,Housing Needs - HB (Housing Benefit),D2514,Accommodation Costs,175.00,Specialist Care UK Group Ltd,Accommodation costs Homelessness services Temp Accom - plus VAT,2008647,201901
Rother District Council,31/03/2019,091HOUSING,Housing and Community Services,20200,Housing Needs - HB (Housing Benefit),D2514,Accommodation Costs,375.00,Specialist Care UK Group Ltd,Accommodation costs Homelessness services Temp Accom - plus VAT,2008651,201901
Rother District Council,31/03/2019,091HOUSING,Housing and Community Services,20200,Housing Needs - HB (Housing Benefit),D2514,Accommodation Costs,262.50,Specialist Care UK Group Ltd,Accommodation costs Homelessness services Temp Accom - plus VAT,2008649,201901
Rother District Council,31/03/2019,999NOREPORT,Resources,70712,Capital - ERP System Upgrade,N1004,Architects & Consultant Fees,"1,816.00",Embridge Consulting (UK) Ltd,Architects & Consultant Fees Capital-Architect and Conslt Fees,2008853,201901
Rother District Council,31/03/2019,999NOREPORT,Housing and Community Services,70704,Capital - Bexhill Leisure Centre,N1004,Architects & Consultant Fees,191.15,The Environment Partnership (TEP) Ltd,Architects & Consultant Fees Capital-Architect and Conslt Fees,2008879,201901
Rother District Council,31/03/2019,101RESOURCES,Resources,20222,Accountancy,D2639,Departmental Systems,123.34,Integra Associates Ltd,Computer Licences New Computer Software,2009157,201901
Rother District Council,31/03/2019,101RESOURCES,Resources,20222,Accountancy,D2635,Computer Licences,"1,133.21",Integra Associates Ltd,Computer Licences New Computer Software,2009156,201901
Rother District Council,31/03/2019,101RESOURCES,Resources,20239,Computer Services,D2509,Consultants and Other Services,108.15,Wilson's Express Hastings Ltd,Consultants and Other Services Consultants Fees,2008789,201901
Rother District Council,31/03/2019,091HOUSING,Housing and Community Services,20123,Cemeteries,B2611,Contract cleaning,120.00,Abacus Main Ltd,Contract cleaning Cemeteries - Chapel Cleaning,2008808,201901
Rother District Council,31/03/2019,091HOUSING,Housing and Community Services,20123,Cemeteries,B2611,Contract cleaning,40.00,Abacus Main Ltd,Contract cleaning Cemeteries - Chapel Cleaning,2008808,201901
Rother District Council,31/03/2019,091HOUSING,Housing and Community Services,20123,Cemeteries,B2611,Contract cleaning,80.00,Abacus Main Ltd,Contract cleaning Cemeteries - Chapel Cleaning,2008808,201901
Rother District Council,31/03/2019,091HOUSING,Housing and Community Services,20108,Bexhill Promenade & Foreshore,B2611,Contract cleaning,126.00,Abacus Main Ltd,Contract cleaning Office Cleaning,2008694,201901
Rother District Council,31/03/2019,031RESOURCES,Executive Directors & Corporate Core,20175,Administrative Offices - T.H. Annex (NOT CHP),B2611,Contract cleaning,380.00,Abacus Main Ltd,Contract cleaning Office Cleaning,2008626,201901
Rother District Council,31/03/2019,091HOUSING,Housing and Community Services,20145,Maintenance Services,C1104,Derv,1.90,Allstar Business Solutions,Derv Fuel Service fee payable on fuel cards,2009612,201902
Rother District Council,31/03/2019,091HOUSING,Housing and Community Services,20107,Camber Beach & Foreshore,C1104,Derv,1.90,Allstar Business Solutions,Derv Fuel Service fee payable on fuel cards,2009612,201902
Rother District Council,31/03/2019,091HOUSING,Housing and Community Services,20114,Bexhill Parks & Open Spaces,D1201,Equipment & Materials,843.00,Bourne Amenity Ltd,Equipment & Materials Parks - Horticultural Sundries,2009153,201901
Rother District Council,31/03/2019,091HOUSING,Housing and Community Services,20145,Maintenance Services,D1201,Equipment & Materials,53.06,E O Culverwell Ltd,Equipment & Materials Purchase of Tools,2008857,201901
Rother District Council,31/03/2019,101RESOURCES,Resources,20241,Stationery,D2420,General office supplies (Stationery purchased from ext suppliers),17.16,Lyreco UK Limited,General office Supplies Stationery (Stationery Services to buy ONLY),2009020,201901
Rother District Council,31/03/2019,101RESOURCES,Resources,20241,Stationery,D2420,General office supplies (Stationery purchased from ext suppliers),18.00,Lyreco UK Limited,General office Supplies Stationery (Stationery Services to buy ONLY),2009021,201901
Rother District Council,31/03/2019,101RESOURCES,Resources,20241,Stationery,D2420,General office supplies (Stationery purchased from ext suppliers),22.44,Lyreco UK Limited,General office Supplies Stationery (Stationery Services to buy ONLY),2009022,201901
Rother District Council,31/03/2019,101RESOURCES,Resources,20241,Stationery,D2420,General office supplies (Stationery purchased from ext suppliers),20.24,Lyreco UK Limited,General office Supplies Stationery (Stationery Services to buy ONLY),2009023,201901
Rother District Council,31/03/2019,101RESOURCES,Resources,20241,Stationery,D2420,General office supplies (Stationery purchased from ext suppliers),32.30,Lyreco UK Limited,General office Supplies Stationery (Stationery Services to buy ONLY),2009018,201901
Rother District Council,31/03/2019,101RESOURCES,Resources,20241,Stationery,D2420,General office supplies (Stationery purchased from ext suppliers),25.80,Lyreco UK Limited,General office Supplies Stationery (Stationery Services to buy ONLY),2009019,201901
Rother District Council,31/03/2019,091HOUSING,Housing and Community Services,20114,Bexhill Parks & Open Spaces,B2731,Grounds maintenance routine,"66,878.98",Idverde Limited,Grounds maintenance routine Parks-Grounds Maintenance Contracts,2009301,201901
Rother District Council,31/03/2019,101RESOURCES,Resources,20216,Cost Of Collection,D2509,Consultants and Other Services,816.42,allpay.net Ltd,Hired and contracted services Allpay Card/Rep/Let Chrg - Vatable,2009616,201902
Rother District Council,31/03/2019,101RESOURCES,Resources,20216,Cost Of Collection,D2509,Consultants and Other Services,21.17,allpay.net Ltd,Hired and contracted services Allpay Card/Rep/Let Chrg - Vatable,2009617,201902
Rother District Council,31/03/2019,101RESOURCES,Resources,20216,Cost Of Collection,D2509,Consultants and Other Services,16.93,allpay.net Ltd,Hired and contracted services Allpay Card/Rep/Let Chrg - Vatable,2009618,201902
Rother District Council,31/03/2019,101RESOURCES,Resources,20216,Cost Of Collection,D2509,Consultants and Other Services,40.70,allpay.net Ltd,Hired and contracted services Allpay Card/Rep/Let Chrg - Vatable,2009619,201902
Rother District Council,31/03/2019,091HOUSING,Housing and Community Services,20137,Car Parks,D2513,Hired and Contracted services,"1,730.17",Cobalt Telephone Technologies Ltd,Hired and contracted services Car Parks - RingGo service charges,2008787,201901
Rother District Council,31/03/2019,091HOUSING,Housing and Community Services,20137,Car Parks,D2513,Hired and Contracted services,"1,943.50",Jade Security Services Ltd,Hired and contracted services Cash Security Fees-Car Parks,2009163,201901
Rother District Council,31/03/2019,031RESOURCES,Executive Directors & Corporate Core,20173,Administrative Offices - Town Hall,D2513,Hired and Contracted services,102.10,Data Shredding Services Ltd,Hired and contracted services Charges - Confidential Office Waste,2008866,201901
Rother District Council,31/03/2019,101RESOURCES,Resources,20222,Accountancy,D2513,Hired and Contracted services,"15,000.00",Embridge Consulting (UK) Ltd,Hired and contracted services Consultancy Service per Contract,2008851,201901
Rother District Council,31/03/2019,101RESOURCES,Resources,20222,Accountancy,D2513,Hired and Contracted services,"2,000.00",Embridge Consulting (UK) Ltd,Hired and contracted services Consultancy Service per Contract,2008852,201901
Rother District Council,31/03/2019,081ACQUISIT,"Acquisitions, Transformation and Regeneration",20143,Community Strategy,D2513,Hired and Contracted services,33.34,Sussex Community Development Association,Hired and contracted services Hire of Meeting Room,2008933,201901
Rother District Council,31/03/2019,091HOUSING,Housing and Community Services,20200,Housing Needs - HB (Housing Benefit),D2513,Hired and Contracted services,36.00,NowMedical,Hired and contracted services Medical Assessments,2008995,201901
Rother District Council,31/03/2019,081ACQUISIT,"Acquisitions, Transformation and Regeneration",20146,West Trading Estate,D2513,Hired and Contracted services,"1,772.50",Clearway Environmental Services (UK) Ltd,Hired and contracted services Service fee paid,2008804,201901
Rother District Council,31/03/2019,081ACQUISIT,"Acquisitions, Transformation and Regeneration",20266,Property Investment Strategy,D2513,Hired and Contracted services,695.00,Clearway Environmental Services (UK) Ltd,Hired and contracted services Service fee paid,2008805,201901
Rother District Council,31/03/2019,041ENVIRON,Environmental Services,32142,EH Taxi and Private Hire Licenses R + W Partnership,D2513,Hired and Contracted services,308.00,DBS The Disclosure and Barring Service,Hired and contracted services Service fee paid,2008810,201901
Rother District Council,31/03/2019,091HOUSING,Housing and Community Services,20204,Housing Administration Account,D2513,Hired and Contracted services,"2,625.00",LHS Locata (Housing Services) Ltd,Hired and contracted services Service fee paid,2009486,201902
Rother District Council,31/03/2019,091HOUSING,Housing and Community Services,20206,Syrians,D2513,Hired and Contracted services,"1,012.50",Susanne Evershed,Hired and contracted services Syrian - Education - Exempt VAT,2008912,201901
Rother District Council,31/03/2019,091HOUSING,Housing and Community Services,20206,Syrians,D2513,Hired and Contracted services,214.33,247 Transport Solutions Ltd,Hired and contracted services Syrian Resettlement Programme - Travel,2009304,201901
Rother District Council,31/03/2019,031RESOURCES,Executive Directors & Corporate Core,20171,Human Resources,A2202,Recruitment expenses,695.00,Redactive Publishing Ltd,Recruitment expenses Advertising Vacant Post,2008801,201901
Rother District Council,31/03/2019,091HOUSING,Housing and Community Services,20114,Bexhill Parks & Open Spaces,B1100,Repairs to Premises,285.90,Bourne Amenity Ltd,Repairs to Premises Parks- Landscaping Works,2009042,201901
Rother District Council,31/03/2019,091HOUSING,Housing and Community Services,20114,Bexhill Parks & Open Spaces,B1100,Repairs to Premises,242.40,Bourne Amenity Ltd,Repairs to Premises Parks- Landscaping Works,2008721,201901
Rother District Council,31/03/2019,091HOUSING,Housing and Community Services,20114,Bexhill Parks & Open Spaces,B1100,Repairs to Premises,"4,905.00",Gristwood and Toms Limited,Repairs to Premises Parks- Tree Works,2009190,201901
Rother District Council,31/03/2019,091HOUSING,Housing and Community Services,20123,Cemeteries,B1100,Repairs to Premises,"1,500.00",Gristwood and Toms Limited,Repairs to Premises Parks- Tree Works,2009215,201901
Rother District Council,31/03/2019,091HOUSING,Housing and Community Services,20137,Car Parks,B1100,Repairs to Premises,"1,200.00",Gristwood and Toms Limited,Repairs to Premises Parks- Tree Works,2009215,201901
Rother District Council,31/03/2019,091HOUSING,Housing and Community Services,20137,Car Parks,B1100,Repairs to Premises,"2,046.00",CountyClean Environmental Services Ltd,Repairs to Premises Pumps Maintenance/ Repairs,2008818,201901
Rother District Council,31/03/2019,081ACQUISIT,"Acquisitions, Transformation and Regeneration",20154,Committee Property Account,B1100,Repairs to Premises,15.70,MC Glass (East Sussex) Ltd,Repairs to Premises Purchase of Materials - Build Maint,2008621,201901
Rother District Council,31/03/2019,081ACQUISIT,"Acquisitions, Transformation and Regeneration",20154,Committee Property Account,B1100,Repairs to Premises,15.00,F E Philcox Ltd,Repairs to Premises Purchase of Materials - Build Maint,2008915,201901
Rother District Council,31/03/2019,091HOUSING,Housing and Community Services,20108,Bexhill Promenade & Foreshore,B1100,Repairs to Premises,66.00,F E Philcox Ltd,Repairs to Premises Purchase of Materials - Build Maint,2008914,201901
Rother District Council,31/03/2019,081ACQUISIT,"Acquisitions, Transformation and Regeneration",20146,West Trading Estate,B1100,Repairs to Premises,6.49,Parker Building Supplies Ltd,Repairs to Premises Purchase of Materials - Build Maint,2008630,201901
Rother District Council,31/03/2019,091HOUSING,Housing and Community Services,20137,Car Parks,B1100,Repairs to Premises,17.00,Rye Hire Ltd,Repairs to Premises Purchase of Materials - Build Maint,2008978,201901
Rother District Council,31/03/2019,031RESOURCES,Executive Directors & Corporate Core,20179,Communications,E1101,Third party payment other LAs,"3,600.00",East Sussex County Council,Third party payment other LAs Communications - Officer costs,2008761,201901
Rother District Council,31/03/2019,091HOUSING,Housing and Community Services,20133,Refuse Collection,E2302,Third party payment private contractors,349.91,Biffa Waste Services Ltd,Third party payment private contractors Commercial Waste Collection Contract,2008772,201901
Rother District Council,31/03/2019,031RESOURCES,Executive Directors & Corporate Core,20171,Human Resources,A2203,Training,450.00,LAVAT Consulting Ltd (PSTAX),Training,2008871,201901
Rother District Council,31/03/2019,091HOUSING,Housing and Community Services,20145,Maintenance Services,C1104,Derv,38.33,Allstar Business Solutions,Derv,2009612,201902
Rother District Council,31/03/2019,091HOUSING,Housing and Community Services,20145,Maintenance Services,C1104,Derv,62.50,Allstar Business Solutions,Derv,2009612,201902
Rother District Council,31/03/2019,091HOUSING,Housing and Community Services,20145,Maintenance Services,C1104,Derv,74.22,Allstar Business Solutions,Derv,2009612,201902
Rother District Council,31/03/2019,091HOUSING,Housing and Community Services,20145,Maintenance Services,C1104,Derv,62.50,Allstar Business Solutions,Derv,2009612,201902
Rother District Council,31/03/2019,091HOUSING,Housing and Community Services,20107,Camber Beach & Foreshore,C1104,Derv,21.40,Allstar Business Solutions,Derv,2009612,201902
Rother District Council,31/03/2019,101RESOURCES,Resources,20222,Accountancy,D2513,Hired and Contracted services,"1,740.00",Embridge Consulting (UK) Ltd,Hired and Contracted services,2008872,201901
Rother District Council,01/04/2019,091HOUSING,Housing and Community Services,20200,Housing Needs - HB (Housing Benefit),D2514,Accommodation Costs,455.00,Paramount Independent Property Services LLP,Accommodation Costs Homelessness services Temp Accom - No VAT,2008639,201901
Rother District Council,01/04/2019,091HOUSING,Housing and Community Services,20200,Housing Needs - HB (Housing Benefit),D2514,Accommodation Costs,"1,755.00",Paramount Independent Property Services LLP,Accommodation Costs Homelessness services Temp Accom - No VAT,2008639,201901
Rother District Council,01/04/2019,091HOUSING,Housing and Community Services,20200,Housing Needs - HB (Housing Benefit),D2514,Accommodation Costs,385.00,Paramount Independent Property Services LLP,Accommodation Costs Homelessness services Temp Accom - No VAT,2008639,201901
Rother District Council,01/04/2019,091HOUSING,Housing and Community Services,20200,Housing Needs - HB (Housing Benefit),D2514,Accommodation Costs,180.00,Paramount Independent Property Services LLP,Accommodation Costs Homelessness services Temp Accom - No VAT,2008639,201901
Rother District Council,01/04/2019,091HOUSING,Housing and Community Services,20200,Housing Needs - HB (Housing Benefit),D2514,Accommodation Costs,768.00,Paramount Independent Property Services LLP,Accommodation Costs Homelessness services Temp Accom - No VAT,2008639,201901
Rother District Council,01/04/2019,091HOUSING,Housing and Community Services,20200,Housing Needs - HB (Housing Benefit),D2514,Accommodation Costs,45.00,Paramount Independent Property Services LLP,Accommodation Costs Homelessness services Temp Accom - No VAT,2008639,201901
Rother District Council,01/04/2019,091HOUSING,Housing and Community Services,20200,Housing Needs - HB (Housing Benefit),D2514,Accommodation Costs,315.00,REDACTED PERSONAL DATA,Accommodation Costs Homelessness services Temp Accom - No VAT,2008636,201901
Rother District Council,01/04/2019,091HOUSING,Housing and Community Services,20200,Housing Needs - HB (Housing Benefit),D2514,Accommodation Costs,-220.00,Paramount Independent Property Services LLP,Accommodation Costs Homelessness services Temp Accom - No VAT,2008870,201901
Rother District Council,01/04/2019,091HOUSING,Housing and Community Services,20200,Housing Needs - HB (Housing Benefit),D2514,Accommodation Costs,336.00,Solutions Accommodation Providers Ltd,Accommodation Costs Homelessness services Temp Accom - No VAT,2008826,201901
Rother District Council,01/04/2019,091HOUSING,Housing and Community Services,20200,Housing Needs - HB (Housing Benefit),D2514,Accommodation Costs,392.00,Solutions Accommodation Providers Ltd,Accommodation Costs Homelessness services Temp Accom - No VAT,2008825,201901
Rother District Council,01/04/2019,091HOUSING,Housing and Community Services,20200,Housing Needs - HB (Housing Benefit),D2514,Accommodation Costs,392.00,Solutions Accommodation Providers Ltd,Accommodation Costs Homelessness services Temp Accom - No VAT,2008828,201901
Rother District Council,01/04/2019,091HOUSING,Housing and Community Services,20200,Housing Needs - HB (Housing Benefit),D2514,Accommodation Costs,392.00,Solutions Accommodation Providers Ltd,Accommodation Costs Homelessness services Temp Accom - No VAT,2008824,201901
Rother District Council,01/04/2019,091HOUSING,Housing and Community Services,20200,Housing Needs - HB (Housing Benefit),D2514,Accommodation Costs,364.00,South Down Residential Ltd,Accommodation Costs Homelessness services Temp Accom - No VAT,2008654,201901
Rother District Council,01/04/2019,091HOUSING,Housing and Community Services,20200,Housing Needs - HB (Housing Benefit),D2514,Accommodation Costs,268.80,South Down Residential Ltd,Accommodation Costs Homelessness services Temp Accom - No VAT,2008654,201901
Rother District Council,01/04/2019,091HOUSING,Housing and Community Services,20200,Housing Needs - HB (Housing Benefit),D2514,Accommodation Costs,347.20,South Down Residential Ltd,Accommodation Costs Homelessness services Temp Accom - No VAT,2008654,201901
Rother District Council,01/04/2019,091HOUSING,Housing and Community Services,20200,Housing Needs - HB (Housing Benefit),D2514,Accommodation Costs,283.20,South Down Residential Ltd,Accommodation Costs Homelessness services Temp Accom - No VAT,2008654,201901
Rother District Council,01/04/2019,091HOUSING,Housing and Community Services,20200,Housing Needs - HB (Housing Benefit),D2514,Accommodation Costs,142.80,South Down Residential Ltd,Accommodation Costs Homelessness services Temp Accom - No VAT,2008654,201901
Rother District Council,01/04/2019,091HOUSING,Housing and Community Services,20200,Housing Needs - HB (Housing Benefit),D2514,Accommodation Costs,145.60,Solutions Accommodation Providers Ltd,Accommodation Costs Homelessness services Temp Accom - No VAT,2008823,201901
Rother District Council,01/04/2019,091HOUSING,Housing and Community Services,20200,Housing Needs - HB (Housing Benefit),D2514,Accommodation Costs,142.80,South Down Residential Ltd,Accommodation Costs Homelessness services Temp Accom - No VAT,2008654,201901
Rother District Council,01/04/2019,091HOUSING,Housing and Community Services,20200,Housing Needs - HB (Housing Benefit),D2514,Accommodation Costs,280.00,Solutions Accommodation Providers Ltd,Accommodation Costs Homelessness services Temp Accom - No VAT,2008822,201901
Rother District Council,01/04/2019,091HOUSING,Housing and Community Services,20200,Housing Needs - HB (Housing Benefit),D2514,Accommodation Costs,392.00,Solutions Accommodation Providers Ltd,Accommodation Costs Homelessness services Temp Accom - No VAT,2008827,201901
Rother District Council,01/04/2019,091HOUSING,Housing and Community Services,20200,Housing Needs - HB (Housing Benefit),D2514,Accommodation Costs,"13,950.00",UK Room Imperial,Accommodation costs Homelessness services Temp Accom - plus VAT,2008911,201901
Rother District Council,01/04/2019,091HOUSING,Housing and Community Services,20200,Housing Needs - HB (Housing Benefit),D2514,Accommodation Costs,98.00,Solutions Accommodation Providers Ltd,Accommodation costs Homelessness services Temp Accom - plus VAT,2008825,201901
Rother District Council,01/04/2019,091HOUSING,Housing and Community Services,20200,Housing Needs - HB (Housing Benefit),D2514,Accommodation Costs,98.00,Solutions Accommodation Providers Ltd,Accommodation costs Homelessness services Temp Accom - plus VAT,2008828,201901
Rother District Council,01/04/2019,091HOUSING,Housing and Community Services,20200,Housing Needs - HB (Housing Benefit),D2514,Accommodation Costs,70.80,South Down Residential Ltd,Accommodation costs Homelessness services Temp Accom - plus VAT,2008654,201901
Rother District Council,01/04/2019,091HOUSING,Housing and Community Services,20200,Housing Needs - HB (Housing Benefit),D2514,Accommodation Costs,178.50,South Down Residential Ltd,Accommodation costs Homelessness services Temp Accom - plus VAT,2008654,201901
Rother District Council,01/04/2019,091HOUSING,Housing and Community Services,20200,Housing Needs - HB (Housing Benefit),D2514,Accommodation Costs,413.00,South Down Residential Ltd,Accommodation costs Homelessness services Temp Accom - plus VAT,2008654,201901
Rother District Council,01/04/2019,091HOUSING,Housing and Community Services,20200,Housing Needs - HB (Housing Benefit),D2514,Accommodation Costs,118.00,South Down Residential Ltd,Accommodation costs Homelessness services Temp Accom - plus VAT,2008654,201901
Rother District Council,01/04/2019,091HOUSING,Housing and Community Services,20200,Housing Needs - HB (Housing Benefit),D2514,Accommodation Costs,67.20,South Down Residential Ltd,Accommodation costs Homelessness services Temp Accom - plus VAT,2008654,201901
Rother District Council,01/04/2019,091HOUSING,Housing and Community Services,20200,Housing Needs - HB (Housing Benefit),D2514,Accommodation Costs,86.80,South Down Residential Ltd,Accommodation costs Homelessness services Temp Accom - plus VAT,2008654,201901
Rother District Council,01/04/2019,091HOUSING,Housing and Community Services,20200,Housing Needs - HB (Housing Benefit),D2514,Accommodation Costs,59.00,South Down Residential Ltd,Accommodation costs Homelessness services Temp Accom - plus VAT,2008654,201901
Rother District Council,01/04/2019,091HOUSING,Housing and Community Services,20200,Housing Needs - HB (Housing Benefit),D2514,Accommodation Costs,98.00,Solutions Accommodation Providers Ltd,Accommodation costs Homelessness services Temp Accom - plus VAT,2008824,201901
Rother District Council,01/04/2019,091HOUSING,Housing and Community Services,20200,Housing Needs - HB (Housing Benefit),D2514,Accommodation Costs,91.00,South Down Residential Ltd,Accommodation costs Homelessness services Temp Accom - plus VAT,2008654,201901
Rother District Council,01/04/2019,091HOUSING,Housing and Community Services,20200,Housing Needs - HB (Housing Benefit),D2514,Accommodation Costs,84.00,Solutions Accommodation Providers Ltd,Accommodation costs Homelessness services Temp Accom - plus VAT,2008826,201901
Rother District Council,01/04/2019,091HOUSING,Housing and Community Services,20200,Housing Needs - HB (Housing Benefit),D2514,Accommodation Costs,35.70,South Down Residential Ltd,Accommodation costs Homelessness services Temp Accom - plus VAT,2008654,201901
Rother District Council,01/04/2019,091HOUSING,Housing and Community Services,20200,Housing Needs - HB (Housing Benefit),D2514,Accommodation Costs,36.40,Solutions Accommodation Providers Ltd,Accommodation costs Homelessness services Temp Accom - plus VAT,2008823,201901
Rother District Council,01/04/2019,091HOUSING,Housing and Community Services,20200,Housing Needs - HB (Housing Benefit),D2514,Accommodation Costs,35.70,South Down Residential Ltd,Accommodation costs Homelessness services Temp Accom - plus VAT,2008654,201901
Rother District Council,01/04/2019,091HOUSING,Housing and Community Services,20200,Housing Needs - HB (Housing Benefit),D2514,Accommodation Costs,70.00,Solutions Accommodation Providers Ltd,Accommodation costs Homelessness services Temp Accom - plus VAT,2008822,201901
Rother District Council,01/04/2019,091HOUSING,Housing and Community Services,20200,Housing Needs - HB (Housing Benefit),D2514,Accommodation Costs,98.00,Solutions Accommodation Providers Ltd,Accommodation costs Homelessness services Temp Accom - plus VAT,2008827,201901
Rother District Council,01/04/2019,101RESOURCES,Resources,20209,Corporate management,D2513,Hired and Contracted services,40.00,Lloyds Bank,Bank Charges,2009051,201901
Rother District Council,01/04/2019,101RESOURCES,Resources,20209,Corporate management,D2513,Hired and Contracted services,40.00,Lloyds Bank,Bank Charges,2009052,201901
Rother District Council,01/04/2019,101RESOURCES,Resources,20209,Corporate management,D2513,Hired and Contracted services,40.06,Lloyds Bank,Bank Charges,2009053,201901
Rother District Council,01/04/2019,101RESOURCES,Resources,20209,Corporate management,D2513,Hired and Contracted services,"1,093.67",Lloyds Bank,Bank Charges,2009055,201901
Rother District Council,01/04/2019,101RESOURCES,Resources,20209,Corporate management,D2513,Hired and Contracted services,20.01,Lloyds Bank,Bank Charges,2009046,201901
Rother District Council,01/04/2019,101RESOURCES,Resources,20209,Corporate management,D2513,Hired and Contracted services,682.72,Lloyds Bank,Bank Charges,2009047,201901
Rother District Council,01/04/2019,101RESOURCES,Resources,20209,Corporate management,D2513,Hired and Contracted services,464.28,Lloyds Bank,Bank Charges,2009048,201901
Rother District Council,01/04/2019,101RESOURCES,Resources,20209,Corporate management,D2513,Hired and Contracted services,40.00,Lloyds Bank,Bank Charges,2009049,201901
Rother District Council,01/04/2019,101RESOURCES,Resources,20209,Corporate management,D2513,Hired and Contracted services,20.40,Lloyds Bank,Bank Charges,2009050,201901
Rother District Council,01/04/2019,101RESOURCES,Resources,20209,Corporate management,D2513,Hired and Contracted services,40.00,Lloyds Bank,Bank Charges,2009054,201901
Rother District Council,01/04/2019,031RESOURCES,Executive Directors & Corporate Core,20162,Electoral Registration,D1203,Books And Publications,121.50,Thomson Reuters Ltd,Books And Publications Miscellaneous Legal Reference Books,2008840,201901
Rother District Council,01/04/2019,999NOREPORT,Resources,90000,Balance sheet all accounts,P1099,Owed by - Colonnade Bexhill Ltd,89.93,Merchant Rentals Ltd,Colonnade Restaurant Bexhill Ltd - purchases,2008847,201901
Rother District Council,01/04/2019,101RESOURCES,Resources,20239,Computer Services,D2509,Consultants and Other Services,"1,210.00",Northgate Public Services (UK) Ltd,Consultants and Other Services Consultants Fees,2008742,201901
Rother District Council,01/04/2019,081ACQUISIT,"Acquisitions, Transformation and Regeneration",20153,"Elva Business Centre, Bexhill",B2611,Contract cleaning,30.00,Just Maid 4 U,Contract cleaning Office Cleaning,2008794,201901
Rother District Council,01/04/2019,101RESOURCES,Resources,20229,Internal Drainage Boards,F1202,Drainage board levies,"63,002.00",Romney Marshes Area Internal Drainage Board,Drainage board levies Romney Marsh Area Internal Drainage,2008702,201901
Rother District Council,01/04/2019,031RESOURCES,Executive Directors & Corporate Core,20171,Human Resources,D1201,Equipment & Materials,59.40,Value Products Ltd,Equipment & Materials Health and Safety Act Equipment,2008806,201901
Rother District Council,01/04/2019,031RESOURCES,Executive Directors & Corporate Core,20173,Administrative Offices - Town Hall,D2513,Hired and Contracted services,226.59,Wealden and Eastbourne Lifeline,Equipment & Materials Purchase of Tools,2008620,201901
Rother District Council,01/04/2019,101RESOURCES,Resources,20219,Support To Elect Bodies/Grant,D2923,Grants made,"21,250.00",Rother District Citizens Advice Bureau,Grants made Bexhill and Rother CAB,2008701,201901
Rother District Council,01/04/2019,101RESOURCES,Resources,20216,Cost Of Collection,D2513,Hired and Contracted services,105.00,Her Majestys Court Service,Hired and contracted services Court Costs/Fees,2009322,201901
Rother District Council,01/04/2019,101RESOURCES,Resources,20239,Computer Services,D2635,Computer Licences,"14,819.00",Centerprise International Limited,Hired and contracted services Disaster Plan Subscription,2008638,201901
Rother District Council,01/04/2019,031RESOURCES,Executive Directors & Corporate Core,20174,Administrative Offices,D2513,Hired and Contracted services,68.35,Clearwater Technology Ltd,Hired and Contracted services Legionella Sampling and Monitoring,2008800,201901
Rother District Council,01/04/2019,041ENVIRON,Environmental Services,32134,EH Pollution R + W Partnership,D2513,Hired and Contracted services,335.00,Environmental Protection UK,Hired and contracted services Service fee paid,2009587,201902
Rother District Council,01/04/2019,101RESOURCES,Resources,20209,Corporate management,D2513,Hired and Contracted services,20.09,Merchant Rentals Ltd,Hired and contracted services Streamline Machine-Rental,2008846,201901
Rother District Council,01/04/2019,101RESOURCES,Resources,20212,Risk Management/Insurance,D2520,Insurance,"5,605.08",Zurich Insurance plc,Insurance Engineering Inspections,2009366,201901
Rother District Council,01/04/2019,031RESOURCES,Executive Directors & Corporate Core,20162,Electoral Registration,D2520,Insurance,36.00,Zurich Insurance plc,Insurance Excess on Liabilities,2009194,201901
Rother District Council,01/04/2019,101RESOURCES,Resources,20240,Printing Services,D2417,Photocopy Paper by external suppliers,491.41,Canon (UK) Ltd,Photocopy Paper by external supplier Wide Format Consumables,2008798,201901
Rother District Council,01/04/2019,091HOUSING,Housing and Community Services,20108,Bexhill Promenade & Foreshore,D2623,Radios and licences,11.92,Radio Relay,Radios and licences Radio/Transmitter Licences,2008793,201901
Rother District Council,01/04/2019,031RESOURCES,Executive Directors & Corporate Core,20176,Administrative Offices - Print Room,B1100,Repairs to Premises,58.00,ADT Fire and  Security Plc,Repairs to Premises Intruder Alarm System Monitor/Maint,2008850,201901
Rother District Council,01/04/2019,031RESOURCES,Executive Directors & Corporate Core,20175,Administrative Offices - T.H. Annex (NOT CHP),B1100,Repairs to Premises,58.00,ADT Fire and  Security Plc,Repairs to Premises Intruder Alarm System Monitor/Maint,2008849,201901
Rother District Council,01/04/2019,081ACQUISIT,"Acquisitions, Transformation and Regeneration",20148,Misc Land & Buildings,B1100,Repairs to Premises,849.56,Alfa Electric Ltd,Repairs to Premises Parks- Electrical Works,2009320,201901
Rother District Council,01/04/2019,091HOUSING,Housing and Community Services,20114,Bexhill Parks & Open Spaces,B1100,Repairs to Premises,170.00,Foxhills Tree Services Ltd,Repairs to Premises Parks- Tree Works,2008720,201901
Rother District Council,01/04/2019,091HOUSING,Housing and Community Services,20114,Bexhill Parks & Open Spaces,B1100,Repairs to Premises,4.41,Jewson Limited,Repairs to Premises Purchase of Materials - Build Maint,2008944,201901
Rother District Council,01/04/2019,031RESOURCES,Executive Directors & Corporate Core,20173,Administrative Offices - Town Hall,B1100,Repairs to Premises,11.58,Trade UK Account (Screwfix),Repairs to Premises Purchase of Materials - Build Maint,2008981,201901
Rother District Council,01/04/2019,091HOUSING,Housing and Community Services,20128,Public Conveniences,B1100,Repairs to Premises,152.79,Alfa Electric Ltd,Repairs to Premises Repairs - Electrical Works,2008882,201901
Rother District Council,01/04/2019,091HOUSING,Housing and Community Services,20123,Cemeteries,D2922,Subscriptions,455.00,Institute of Cemetery and Crematorium  Management,Subscriptions Parks- Subscriptions,2008832,201901
Rother District Council,01/04/2019,101RESOURCES,Resources,20242,Communications-Phones,D2621,Telephones,26.00,KCOM Group Plc,Telephones KCOM Smartnumber Charges,2008892,201901
Rother District Council,01/04/2019,101RESOURCES,Resources,20242,Communications-Phones,D2621,Telephones,645.43,KCOM Group Plc,Telephones KCOM Smartnumber Charges,2008894,201901
Rother District Council,01/04/2019,101RESOURCES,Resources,20242,Communications-Phones,D2621,Telephones,"9,916.14",KCOM Group Plc,Telephones KCOM Smartnumber Charges,2008925,201901
Rother District Council,01/04/2019,101RESOURCES,Resources,20239,Computer Services,D2621,Telephones,"2,250.20",Vodafone Limited,Telephones Leased Line Rental,2009508,201902
Rother District Council,01/04/2019,091HOUSING,Housing and Community Services,20107,Camber Beach & Foreshore,D2621,Telephones,29.48,Daisy Communications PLC,Telephones Telephone Call Costs + Line Rental,2008970,201901
Rother District Council,01/04/2019,091HOUSING,Housing and Community Services,20102,Rother Museum Services,D2621,Telephones,14.74,Daisy Communications PLC,Telephones Telephone Call Costs + Line Rental,2008970,201901
Rother District Council,01/04/2019,041ENVIRON,Environmental Services,32134,EH Pollution R + W Partnership,D2621,Telephones,14.74,Daisy Communications PLC,Telephones Telephone Call Costs + Line Rental,2008970,201901
Rother District Council,01/04/2019,031RESOURCES,Executive Directors & Corporate Core,20180,Emergency Planning,D2621,Telephones,14.74,Daisy Communications PLC,Telephones Telephone Call Costs + Line Rental,2008970,201901
Rother District Council,01/04/2019,101RESOURCES,Resources,20242,Communications-Phones,D2621,Telephones,108.66,Daisy Communications PLC,Telephones Telephone Call Costs + Line Rental,2008970,201901
Rother District Council,01/04/2019,101RESOURCES,Resources,20239,Computer Services,D2621,Telephones,29.48,Daisy Communications PLC,Telephones Telephone Call Costs + Line Rental,2008970,201901
Rother District Council,01/04/2019,031RESOURCES,Executive Directors & Corporate Core,20184,Rother 2020,E2302,Third party payment private contractors,991.70,NWT International Ltd T/a NWT Energy & NWT Solar,Third party payment private contractors Payments to Contractor,2008713,201901
Rother District Council,01/04/2019,031RESOURCES,Executive Directors & Corporate Core,20184,Rother 2020,E2302,Third party payment private contractors,822.50,NWT International Ltd T/a NWT Energy & NWT Solar,Third party payment private contractors Payments to Contractor,2008715,201901
Rother District Council,01/04/2019,031RESOURCES,Executive Directors & Corporate Core,20162,Electoral Registration,D1203,Books And Publications,121.50,Thomson Reuters Ltd,Books And Publications,2008840,201901
Rother District Council,02/04/2019,101RESOURCES,Resources,20239,Computer Services,D2632,Additional Computer Equipment,672.30,PCM Technology Solutions UK Ltd,Additional Computer Equipment New PC/Computer,2008766,201901
Rother District Council,02/04/2019,999NOREPORT,Environmental Services,70706,Capital - Disable Facilities Grant,N1012,Capital Advances,993.67,A and A J Bishop,Capital Advances Disabled Facilities Grant,2008964,201901
Rother District Council,02/04/2019,999NOREPORT,Environmental Services,70706,Capital - Disable Facilities Grant,N1012,Capital Advances,899.05,Peabody South East Ltd,Capital Advances Disabled Facilities Grant,2008942,201901
Rother District Council,02/04/2019,101RESOURCES,Resources,20239,Computer Services,D2635,Computer Licences,"14,940.00",GOSS Interactive Ltd,Computer Licences Website Management,2008773,201901
Rother District Council,02/04/2019,091HOUSING,Housing and Community Services,20123,Cemeteries,D2513,Hired and Contracted services,-80.00,Abacus Main Ltd,Contract cleaning Cemeteries - Chapel Cleaning,2008809,201901
Rother District Council,02/04/2019,081ACQUISIT,"Acquisitions, Transformation and Regeneration",20153,"Elva Business Centre, Bexhill",B2611,Contract cleaning,90.00,Just Maid 4 U,Contract cleaning Office Cleaning,2009189,201901
Rother District Council,02/04/2019,091HOUSING,Housing and Community Services,20107,Camber Beach & Foreshore,D1201,Equipment & Materials,898.25,Zephyr Racing Pennants Ltd,Equipment & Materials Flags,2008708,201901
Rother District Council,02/04/2019,031RESOURCES,Executive Directors & Corporate Core,20171,Human Resources,D1201,Equipment & Materials,52.95,Value Products Ltd,Equipment & Materials Health and Safety Act Equipment,2008807,201901
Rother District Council,02/04/2019,081ACQUISIT,"Acquisitions, Transformation and Regeneration",20153,"Elva Business Centre, Bexhill",D2513,Hired and Contracted services,375.00,Kileys Karpets,Hired and contracted services Service fee paid,2009174,201901
Rother District Council,02/04/2019,081ACQUISIT,"Acquisitions, Transformation and Regeneration",20140,"Housing Policy,Strategy & Dev",D2513,Hired and Contracted services,120.00,Arun District Council,Hired and contracted services Subscriptn-Sussex Empty Homes Forum,2008896,201901
Rother District Council,02/04/2019,101RESOURCES,Resources,20212,Risk Management/Insurance,D2520,Insurance,"4,166.67",Zurich Management Services Ltd,Insurance risk management,2008929,201901
Rother District Council,02/04/2019,091HOUSING,Housing and Community Services,20236,Customer Services and Development,D2626,Postages,130.00,Royal Mail Group Ltd,Postages P O Box Licence Fees/Costs,2008757,201901
Rother District Council,02/04/2019,091HOUSING,Housing and Community Services,20108,Bexhill Promenade & Foreshore,B1100,Repairs to Premises,278.81,Jewson Limited,Repairs to Premises Purchase of Materials - Build Maint,2009034,201902
Rother District Council,02/04/2019,091HOUSING,Housing and Community Services,20137,Car Parks,B1100,Repairs to Premises,388.13,Littlewood Fencing Ltd,Repairs to Premises Specified Repairs and Works listed,2008705,201901
Rother District Council,02/04/2019,081ACQUISIT,"Acquisitions, Transformation and Regeneration",20153,"Elva Business Centre, Bexhill",B2422,Sewerage,537.46,Scottish Water Business Stream Limited,Sewage Charges,2008855,201901
Rother District Council,02/04/2019,091HOUSING,Housing and Community Services,20128,Public Conveniences,B2422,Sewerage,51.10,Scottish Water Business Stream Limited,Sewage Charges,2008854,201901
Rother District Council,02/04/2019,091HOUSING,Housing and Community Services,20128,Public Conveniences,B2422,Sewerage,354.50,Scottish Water Business Stream Limited,Sewage Charges,2008856,201901
Rother District Council,02/04/2019,081ACQUISIT,"Acquisitions, Transformation and Regeneration",20153,"Elva Business Centre, Bexhill",B2422,Sewerage,235.00,CountyClean Environmental Services Ltd,Sewerage - Sewage/Cesspool Emptying,2008819,201901
Rother District Council,02/04/2019,041ENVIRON,Environmental Services,32141,EH Alcohol Licensing R + W Partnership,D2922,Subscriptions,300.00,Institute of Licensing Ltd,Subscriptions Instit of Licensing Corp Membership,2008795,201901
Rother District Council,02/04/2019,081ACQUISIT,"Acquisitions, Transformation and Regeneration",20142,Performance Management,D2922,Subscriptions,795.00,The Consultation Institute,Subscriptions Membership - Consultation Institute,2008752,201901
Rother District Council,02/04/2019,031RESOURCES,Executive Directors & Corporate Core,20171,Human Resources,D2922,Subscriptions,751.90,Croner-I,Subscriptions Subscription to Organisations,2009027,201901
Rother District Council,02/04/2019,101RESOURCES,Resources,20222,Accountancy,D2922,Subscriptions,"2,412.00",Association for Public Service Excellence (APSE),Subscriptions Subscription to Organisations,2008748,201901
Rother District Council,02/04/2019,101RESOURCES,Resources,20242,Communications-Phones,D2621,Telephones,"2,117.51",KCOM Group Plc,Telephones KCOM Smartnumber Charges,2008895,201901
Rother District Council,02/04/2019,101RESOURCES,Resources,20242,Communications-Phones,D2621,Telephones,51.53,TalkTalk Communications Ltd T/A TalkTalk Business,Telephones Telephone Call Costs + Line Rental,2009283,201901
Rother District Council,03/04/2019,091HOUSING,Housing and Community Services,20200,Housing Needs - HB (Housing Benefit),D2514,Accommodation Costs,"1,155.00",Lets 2 Share Limited,Accommodation Costs Homelessness services Temp Accom - No VAT,2008791,201901
Rother District Council,03/04/2019,101RESOURCES,Resources,20209,Corporate management,D2513,Hired and Contracted services,196.77,Capita Business Services Ltd,Bank Charges,2009289,201901
Rother District Council,03/04/2019,999NOREPORT,Environmental Services,70706,Capital - Disable Facilities Grant,N1012,Capital Advances,"1,324.46",The Build Works,Capital Advances Disabled Facilities Grant,2008949,201901
Rother District Council,03/04/2019,999NOREPORT,Environmental Services,70706,Capital - Disable Facilities Grant,N1012,Capital Advances,"2,590.65",A and A J Bishop,Capital Advances Disabled Facilities Grant,2008954,201901
Rother District Council,03/04/2019,999NOREPORT,Environmental Services,70706,Capital - Disable Facilities Grant,N1012,Capital Advances,"8,502.24",Mark Bishop Ltd,Capital Advances Disabled Facilities Grant,2008956,201901
Rother District Council,03/04/2019,999NOREPORT,Environmental Services,70706,Capital - Disable Facilities Grant,N1012,Capital Advances,"1,550.00",Southern Mobility Centres Ltd,Capital Advances Disabled Facilities Grant,2008960,201901
Rother District Council,03/04/2019,999NOREPORT,Environmental Services,70706,Capital - Disable Facilities Grant,N1012,Capital Advances,344.84,Peabody South East Ltd,Capital Advances Disabled Facilities Grant,2008961,201901
Rother District Council,03/04/2019,999NOREPORT,Environmental Services,70706,Capital - Disable Facilities Grant,N1012,Capital Advances,"7,790.62",Hedley Visick Ltd,Capital Advances Disabled Facilities Grant,2008962,201901
Rother District Council,03/04/2019,999NOREPORT,Environmental Services,70706,Capital - Disable Facilities Grant,N1012,Capital Advances,"1,168.60",Peabody South East Ltd,Capital Advances Disabled Facilities Grant,2008963,201901
Rother District Council,03/04/2019,999NOREPORT,Environmental Services,70706,Capital - Disable Facilities Grant,N1012,Capital Advances,"2,737.01",A and A J Bishop,Capital Advances Disabled Facilities Grant,2008958,201901
Rother District Council,03/04/2019,999NOREPORT,Environmental Services,70706,Capital - Disable Facilities Grant,N1012,Capital Advances,"1,795.00",Southern Mobility Centres Ltd,Capital Advances Disabled Facilities Grant,2008952,201901
Rother District Council,03/04/2019,999NOREPORT,Environmental Services,70706,Capital - Disable Facilities Grant,N1012,Capital Advances,360.00,Peabody South East Ltd,Capital Advances Disabled Facilities Grant,2008951,201901
Rother District Council,03/04/2019,091HOUSING,Housing and Community Services,20132,Street & Beach Cleansing,D1201,Equipment & Materials,"1,147.93",Wybone Ltd,Equipment & Materials Supply of Litter Bins,2008834,201901
Rother District Council,03/04/2019,101RESOURCES,Resources,20241,Stationery,D2420,General office supplies (Stationery purchased from ext suppliers),23.70,Office Depot UK Ltd,General office Supplies Stationery (Stationery Services to buy ONLY),2008812,201901
Rother District Council,03/04/2019,101RESOURCES,Resources,20216,Cost Of Collection,D2513,Hired and Contracted services,24.00,H M Land Registry,Hired and contracted services Council Tax-Land Registry Enquiries,2008968,201901
Rother District Council,03/04/2019,101RESOURCES,Resources,20216,Cost Of Collection,D2513,Hired and Contracted services,39.00,H M Land Registry,Hired and contracted services Council Tax-Land Registry Enquiries,2008968,201901
Rother District Council,03/04/2019,071STRAT,Strategy and Planning,20258,BC Dangerous Structures H+R Partnership,D2513,Hired and Contracted services,18.00,H M Land Registry,Hired and contracted services Env H- Land Registry,2008968,201901
Rother District Council,03/04/2019,041ENVIRON,Environmental Services,32144,EH Environmental Services Admin R + W Partnership,D2513,Hired and Contracted services,3.00,H M Land Registry,Hired and contracted services Env H- Land Registry,2008968,201901
Rother District Council,03/04/2019,071STRAT,Strategy and Planning,20246,Planning Applications,D2513,Hired and Contracted services,27.00,H M Land Registry,Hired and contracted services Land Registry - Planning,2008968,201901
Rother District Council,03/04/2019,071STRAT,Strategy and Planning,20246,Planning Applications,D2513,Hired and Contracted services,"2,700.00",East Sussex County Council,Hired and contracted services Plan - Ecological Advice,2008897,201901
Rother District Council,03/04/2019,101RESOURCES,Resources,20216,Cost Of Collection,D2513,Hired and Contracted services,"1,737.50",Inform CPI Ltd,Hired and contracted services RV Finder,2008839,201901
Rother District Council,03/04/2019,041ENVIRON,Environmental Services,20130,Crime and Disorder Initiatives,D2513,Hired and Contracted services,"2,500.00",Sussex Community Development Association,Hired and contracted services Service fee paid,2008803,201901
Rother District Council,03/04/2019,091HOUSING,Housing and Community Services,20128,Public Conveniences,B1100,Repairs to Premises,27.57,Howden Joinery Ltd,Repairs to Premises Purchase of Materials - Build Maint,2009005,201902
Rother District Council,03/04/2019,081ACQUISIT,"Acquisitions, Transformation and Regeneration",20154,Committee Property Account,B1100,Repairs to Premises,"1,213.37",Alfa Electric Ltd,Repairs to Premises Repairs - Electrical Works,2008881,201901
Rother District Council,03/04/2019,081ACQUISIT,"Acquisitions, Transformation and Regeneration",20153,"Elva Business Centre, Bexhill",B1100,Repairs to Premises,67.50,Alfa Electric Ltd,Repairs to Premises Repairs - Electrical Works,2008989,201901
Rother District Council,03/04/2019,081ACQUISIT,"Acquisitions, Transformation and Regeneration",20154,Committee Property Account,B1100,Repairs to Premises,45.00,Alfa Electric Ltd,Repairs to Premises Repairs - Electrical Works,2008999,201901
Rother District Council,03/04/2019,101RESOURCES,Resources,20211,Public Accountabilty-Resources,D2922,Subscriptions,"5,200.00",East Sussex County Council,Subscriptions Mem-Sparsity Partnrship Rural Servs,2009819,201903
Rother District Council,03/04/2019,031RESOURCES,Executive Directors & Corporate Core,20159,Corporate Policy Making,D2922,Subscriptions,"2,232.00",West Devon Borough Council,Subscriptions Mem-Sparsity Partnrship Rural Servs,2009458,201902
Rother District Council,03/04/2019,091HOUSING,Housing and Community Services,20200,Housing Needs - HB (Housing Benefit),D2513,Hired and Contracted services,82.50,Wealden and Eastbourne Lifeline,Hired and Contracted services,2009952,201902
Rother District Council,03/04/2019,041ENVIRON,Environmental Services,32144,EH Environmental Services Admin R + W Partnership,D2513,Hired and Contracted services,187.50,Rocksure Systems Ltd,Hired and Contracted services,2008657,201901
Rother District Council,03/04/2019,041ENVIRON,Environmental Services,32134,EH Pollution R + W Partnership,D2513,Hired and Contracted services,"2,100.00",Hastings and Rother Mediation Service,Hired and Contracted services,2008788,201901
Rother District Council,03/04/2019,031RESOURCES,Executive Directors & Corporate Core,20175,Administrative Offices - T.H. Annex (NOT CHP),B1100,Repairs to Premises,55.15,Phase Electrical Distributors Ltd,Repairs to Premises,2008820,201901
Rother District Council,04/04/2019,999NOREPORT,Resources,90000,Balance sheet all accounts,P1101,Vat Payments/(Receipts),"72,000.00",HM Revenue & Customs,Agreed Payment to VAT Office,2010637,201903
Rother District Council,04/04/2019,999NOREPORT,Resources,90000,Balance sheet all accounts,R2353,Camber Float,"2,000.00",Jade Security Services Ltd (CLIENT ACCOUNT),CAMBER FLOAT,2008848,201901
Rother District Council,04/04/2019,999NOREPORT,Environmental Services,70706,Capital - Disable Facilities Grant,N1012,Capital Advances,"4,000.00",Mark Bishop Ltd,Capital Advances Disabled Facilities Grant,2008945,201901
Rother District Council,04/04/2019,999NOREPORT,Environmental Services,70706,Capital - Disable Facilities Grant,N1012,Capital Advances,"1,049.14",Peabody South East Ltd,Capital Advances Disabled Facilities Grant,2008946,201901
Rother District Council,04/04/2019,999NOREPORT,Environmental Services,70706,Capital - Disable Facilities Grant,N1012,Capital Advances,"6,947.37",GMS Adaptations,Capital Advances Disabled Facilities Grant,2008947,201901
Rother District Council,04/04/2019,999NOREPORT,Environmental Services,70706,Capital - Disable Facilities Grant,N1012,Capital Advances,"5,094.55",Alfa Electric Ltd,Capital Advances Disabled Facilities Grant,2008948,201901
Rother District Council,04/04/2019,999NOREPORT,Environmental Services,70706,Capital - Disable Facilities Grant,N1012,Capital Advances,"4,336.35",A and A J Bishop,Capital Advances Disabled Facilities Grant,2008950,201901
Rother District Council,04/04/2019,999NOREPORT,Environmental Services,70706,Capital - Disable Facilities Grant,N1012,Capital Advances,272.26,Peabody South East Ltd,Capital Advances Disabled Facilities Grant,2008953,201901
Rother District Council,04/04/2019,999NOREPORT,Environmental Services,70706,Capital - Disable Facilities Grant,N1012,Capital Advances,991.60,Peabody South East Ltd,Capital Advances Disabled Facilities Grant,2008955,201901
Rother District Council,04/04/2019,999NOREPORT,Environmental Services,70706,Capital - Disable Facilities Grant,N1012,Capital Advances,"1,275.34",Peabody South East Ltd,Capital Advances Disabled Facilities Grant,2008957,201901
Rother District Council,04/04/2019,999NOREPORT,Environmental Services,70706,Capital - Disable Facilities Grant,N1012,Capital Advances,"1,010.56",Peabody South East Ltd,Capital Advances Disabled Facilities Grant,2008959,201901
Rother District Council,04/04/2019,101RESOURCES,Resources,20239,Computer Services,D2635,Computer Licences,"9,102.52",Capita Business Services Ltd,Computer Licences Maintenance/Upgrading of Software,2008865,201901
Rother District Council,04/04/2019,081ACQUISIT,"Acquisitions, Transformation and Regeneration",20153,"Elva Business Centre, Bexhill",B1100,Repairs to Premises,127.40,J M Waste Management Limited,Contract cleaning Office Cleaning,2009220,201902
Rother District Council,04/04/2019,091HOUSING,Housing and Community Services,20137,Car Parks,D1201,Equipment & Materials,"1,664.90",Cale UK Ltd,Equipment & Materials - Car Parks Tickets,2008930,201901
Rother District Council,04/04/2019,041ENVIRON,Environmental Services,20130,Crime and Disorder Initiatives,D1201,Equipment & Materials,"1,980.00",Besure Security Systems,Equipment & Materials - Safer Rother Partnership,2009029,201901
Rother District Council,04/04/2019,091HOUSING,Housing and Community Services,20137,Car Parks,D1201,Equipment & Materials,65.00,Cale UK Ltd,Equipment & Materials Carriage/Handling Charge,2008930,201901
Rother District Council,04/04/2019,101RESOURCES,Resources,20240,Printing Services,D2417,Photocopy Paper by external suppliers,10.00,Antalis Ltd,Equipment & Materials Carriage/Handling Charge,2009025,201901
Rother District Council,04/04/2019,091HOUSING,Housing and Community Services,20145,Maintenance Services,D1201,Equipment & Materials,257.63,Trade UK Account (Screwfix),Equipment & Materials Purchase of Tools,2009032,201901
Rother District Council,04/04/2019,091HOUSING,Housing and Community Services,20137,Car Parks,D1201,Equipment & Materials,46.50,Cale UK Ltd,Equipment & Materials Ticket Machine Maintenance/ Repairs,2008928,201901
Rother District Council,04/04/2019,101RESOURCES,Resources,20216,Cost Of Collection,D2513,Hired and Contracted services,9.00,H M Land Registry,Hired and contracted services Council Tax-Land Registry Enquiries,2009288,201901
Rother District Council,04/04/2019,071STRAT,Strategy and Planning,20258,BC Dangerous Structures H+R Partnership,D2513,Hired and Contracted services,15.00,H M Land Registry,Hired and contracted services Env H- Land Registry,2009288,201901
Rother District Council,04/04/2019,071STRAT,Strategy and Planning,20246,Planning Applications,D2513,Hired and Contracted services,33.00,H M Land Registry,Hired and contracted services Land Registry - Planning,2009288,201901
Rother District Council,04/04/2019,071STRAT,Strategy and Planning,20255,Local Development Framework,D2513,Hired and Contracted services,"5,037.00",LB Planning Ltd,Hired and contracted services LDF Consultancy,2009154,201901
Rother District Council,04/04/2019,041ENVIRON,Environmental Services,32133,EH Food Hyg / Idc / Water Purity R + W Partnership,D2513,Hired and Contracted services,"1,375.00",Chilled Foods Associates Ltd,Hired and contracted services Service fee paid,2008982,201901
Rother District Council,04/04/2019,041ENVIRON,Environmental Services,32133,EH Food Hyg / Idc / Water Purity R + W Partnership,D2513,Hired and Contracted services,"1,500.00",Chilled Foods Associates Ltd,Hired and contracted services Service fee paid,2008983,201901
Rother District Council,04/04/2019,091HOUSING,Housing and Community Services,20261,"41 Jameson Mews, Bexhill on Sea",D2513,Hired and Contracted services,"7,500.00",Paramount Independent Property Services LLP,Hired and contracted services Service fee paid,2008813,201901
Rother District Council,04/04/2019,101RESOURCES,Resources,20240,Printing Services,D2417,Photocopy Paper by external suppliers,58.95,Antalis Ltd,Photocopy Paper by external supplier Wide Format Consumables,2009025,201901
Rother District Council,04/04/2019,091HOUSING,Housing and Community Services,20204,Housing Administration Account,D2513,Hired and Contracted services,"2,197.00",Phoenix SIA Ltd,Security Services - vat,2008845,201901
Rother District Council,04/04/2019,031RESOURCES,Executive Directors & Corporate Core,32132,Joint Waste Contract Client Unit,D2527,Services for partnerships,"4,349.56",East Sussex County Council,Services for partnerships CLIENT Joint Waste Cost,2009238,201901
Rother District Council,04/04/2019,091HOUSING,Housing and Community Services,20128,Public Conveniences,B2422,Sewerage,330.00,CountyClean Environmental Services Ltd,Sewerage - Sewage/Cesspool Emptying,2008883,201901
Rother District Council,04/04/2019,031RESOURCES,Executive Directors & Corporate Core,32132,Joint Waste Contract Client Unit,E2302,Third party payment private contractors,"1,065,565.22",Kier Services - Environmental,Third party payment private contractors CORE Joint Waste Cost,2008838,201901
Rother District Council,04/04/2019,031RESOURCES,Executive Directors & Corporate Core,32132,Joint Waste Contract Client Unit,E2302,Third party payment private contractors,"16,667.00",Kier Services - Environmental,Third party payments private contractors - Joint Waste Exit Costs,2008837,201901
Rother District Council,04/04/2019,041ENVIRON,Environmental Services,32144,EH Environmental Services Admin R + W Partnership,A2203,Training,990.00,Mallard Consultancy Ltd,Training,2009105,201901
Rother District Council,04/04/2019,091HOUSING,Housing and Community Services,20108,Bexhill Promenade & Foreshore,D2507,Security Services,99.50,Besure Security Systems,Security Services,2009030,201902
Rother District Council,05/04/2019,091HOUSING,Housing and Community Services,20200,Housing Needs - HB (Housing Benefit),D2514,Accommodation Costs,780.00,MB Hotels Ltd,Accommodation Costs Homelessness services Temp Accom - No VAT,2008829,201901
Rother District Council,05/04/2019,091HOUSING,Housing and Community Services,20200,Housing Needs - HB (Housing Benefit),D2514,Accommodation Costs,585.00,MB Hotels Ltd,Accommodation Costs Homelessness services Temp Accom - No VAT,2008830,201901
Rother District Council,05/04/2019,091HOUSING,Housing and Community Services,20200,Housing Needs - HB (Housing Benefit),D2514,Accommodation Costs,390.00,MB Hotels Ltd,Accommodation Costs Homelessness services Temp Accom - No VAT,2008831,201901
Rother District Council,05/04/2019,091HOUSING,Housing and Community Services,20200,Housing Needs - HB (Housing Benefit),D2514,Accommodation Costs,585.00,MB Hotels Ltd,Accommodation Costs Homelessness services Temp Accom - No VAT,2008842,201901
Rother District Council,05/04/2019,999NOREPORT,"Acquisitions, Transformation and Regeneration",70725,Capital - Blackfriars,N1004,Architects & Consultant Fees,"3,889.98",Hill-Wood & Co. (Kent) Ltd,Architects & Consultant Fees Capital-Architect and Conslt Fees,2008884,201901
Rother District Council,05/04/2019,101RESOURCES,Resources,20209,Corporate management,D2513,Hired and Contracted services,30.00,Lloyds Bank,Bank Charges,2010296,201903
Rother District Council,05/04/2019,101RESOURCES,Resources,20209,Corporate management,D2513,Hired and Contracted services,60.00,Lloyds Bank,Bank Charges,2009925,201902
Rother District Council,05/04/2019,101RESOURCES,Resources,20209,Corporate management,D2513,Hired and Contracted services,247.00,Lloyds Bank,Bank Charges,2009282,201901
Rother District Council,05/04/2019,031RESOURCES,Executive Directors & Corporate Core,20173,Administrative Offices - Town Hall,B2612,Cleaning materials,200.02,Wightman and Parrish Ltd,Cleaning materials Premises,2008833,201901
Rother District Council,05/04/2019,081ACQUISIT,"Acquisitions, Transformation and Regeneration",20266,Property Investment Strategy,B2201,Electricity,40.00,SmartestEnergy Ltd,Electricity Charges,2008885,201901
Rother District Council,05/04/2019,081ACQUISIT,"Acquisitions, Transformation and Regeneration",20266,Property Investment Strategy,B2201,Electricity,526.17,SmartestEnergy Ltd,Electricity Charges,2008885,201901
Rother District Council,05/04/2019,101RESOURCES,Resources,20241,Stationery,D2420,General office supplies (Stationery purchased from ext suppliers),69.02,Office Depot UK Ltd,General office Supplies Stationery (Stationery Services to buy ONLY),2009954,201903
Rother District Council,05/04/2019,091HOUSING,Housing and Community Services,20206,Syrians,D2513,Hired and Contracted services,135.00,Freedom Leisure,Hired & Contracted Services Syrian Misc,2008886,201901
Rother District Council,05/04/2019,101RESOURCES,Resources,20216,Cost Of Collection,D2513,Hired and Contracted services,15.00,H M Land Registry,Hired and contracted services Council Tax-Land Registry Enquiries,2009287,201901
Rother District Council,05/04/2019,041ENVIRON,Environmental Services,32144,EH Environmental Services Admin R + W Partnership,D2513,Hired and Contracted services,6.00,H M Land Registry,Hired and contracted services Env H- Land Registry,2009287,201901
Rother District Council,05/04/2019,071STRAT,Strategy and Planning,20258,BC Dangerous Structures H+R Partnership,D2513,Hired and Contracted services,3.00,H M Land Registry,Hired and contracted services Env H- Land Registry,2009287,201901
Rother District Council,05/04/2019,071STRAT,Strategy and Planning,20246,Planning Applications,D2513,Hired and Contracted services,9.00,H M Land Registry,Hired and contracted services Land Registry - Planning,2009287,201901
Rother District Council,05/04/2019,041ENVIRON,Environmental Services,32142,EH Taxi and Private Hire Licenses R + W Partnership,D2513,Hired and Contracted services,132.00,uCheck,Hired and contracted services Service fee paid,2009044,201901
Rother District Council,05/04/2019,041ENVIRON,Environmental Services,32142,EH Taxi and Private Hire Licenses R + W Partnership,D2513,Hired and Contracted services,26.01,uCheck,Hired and contracted services Service fee paid,2009044,201901
Rother District Council,05/04/2019,101RESOURCES,Resources,20240,Printing Services,D2417,Photocopy Paper by external suppliers,367.39,Canon (UK) Ltd,Photocopy Paper by external supplier Wide Format Consumables,2008943,201901
Rother District Council,05/04/2019,101RESOURCES,Resources,20216,Cost Of Collection,D2415,Printing by external suppliers,"2,779.60",Motavation Publishing and Graphics Ltd,Printing by external suppliers Printing (Not from RDC Print Room),2009357,201901
Rother District Council,05/04/2019,031RESOURCES,Executive Directors & Corporate Core,20172,Facilities Management,D2312,Refreshments,313.95,UK Vending Ltd,Refreshments Water Cooler,2009593,201902
Rother District Council,05/04/2019,091HOUSING,Housing and Community Services,20125,Coast Protection,B1100,Repairs to Premises,"8,070.00",Woollard Earthmoving Ltd,Repairs to Premises - Beach maintenance,2008877,201901
Rother District Council,05/04/2019,081ACQUISIT,"Acquisitions, Transformation and Regeneration",20153,"Elva Business Centre, Bexhill",B1100,Repairs to Premises,195.00,CountyClean Environmental Services Ltd,Repairs to Premises - Cesspool Pumping station service/Call out,2008991,201901
Rother District Council,05/04/2019,031RESOURCES,Executive Directors & Corporate Core,20176,Administrative Offices - Print Room,B1100,Repairs to Premises,747.63,Alfa Electric Ltd,Repairs to Premises Repairs - Electrical Works,2009000,201901
Rother District Council,05/04/2019,031RESOURCES,Executive Directors & Corporate Core,20173,Administrative Offices - Town Hall,B1100,Repairs to Premises,"1,399.90",Alfa Electric Ltd,Repairs to Premises Repairs - Electrical Works,2009001,201901
Rother District Council,05/04/2019,091HOUSING,Housing and Community Services,20102,Rother Museum Services,B1100,Repairs to Premises,116.81,Stannah Lift Services Ltd,Repairs to Premises Specified Repairs and Works listed,2009264,201902
Rother District Council,05/04/2019,081ACQUISIT,"Acquisitions, Transformation and Regeneration",20153,"Elva Business Centre, Bexhill",B1100,Repairs to Premises,266.41,Stannah Lift Services Ltd,Repairs to Premises Specified Repairs and Works listed,2009038,201902
Rother District Council,05/04/2019,071STRAT,Strategy and Planning,20246,Planning Applications,D2519,Statutory Advertising,960.75,JPIMedia Publishing Ltd,Statutory Advertising Planadv - Rye + Battle Observer,2009007,201901
Rother District Council,06/04/2019,041ENVIRON,Environmental Services,32133,EH Food Hyg / Idc / Water Purity R + W Partnership,D2513,Hired and Contracted services,375.00,Chilled Foods Associates Ltd,Hired and contracted services Service fee paid,2009164,201901
Rother District Council,06/04/2019,091HOUSING,Housing and Community Services,20204,Housing Administration Account,A2202,Recruitment expenses,473.98,JPIMedia Publishing Ltd,Recruitment expenses Advertising Vacant Post,2009008,201901
Rother District Council,06/04/2019,101RESOURCES,Resources,20239,Computer Services,A2202,Recruitment expenses,473.98,JPIMedia Publishing Ltd,Recruitment expenses Advertising Vacant Post,2009009,201901
Rother District Council,06/04/2019,031RESOURCES,Executive Directors & Corporate Core,20170,Communications-Postages,D2626,Postages,"8,088.53",Pitney Bowes Purchase Power,Stock Accounts Town Hall Franking Machine,2009120,201901
Rother District Council,07/04/2019,091HOUSING,Housing and Community Services,20200,Housing Needs - HB (Housing Benefit),D2514,Accommodation Costs,350.00,Specialist Care UK Group Ltd,Accommodation costs Homelessness services Temp Accom - plus VAT,2008904,201901
Rother District Council,07/04/2019,091HOUSING,Housing and Community Services,20200,Housing Needs - HB (Housing Benefit),D2514,Accommodation Costs,350.00,Specialist Care UK Group Ltd,Accommodation costs Homelessness services Temp Accom - plus VAT,2008901,201901
Rother District Council,07/04/2019,091HOUSING,Housing and Community Services,20200,Housing Needs - HB (Housing Benefit),D2514,Accommodation Costs,262.50,Specialist Care UK Group Ltd,Accommodation costs Homelessness services Temp Accom - plus VAT,2008902,201901
Rother District Council,07/04/2019,091HOUSING,Housing and Community Services,20200,Housing Needs - HB (Housing Benefit),D2514,Accommodation Costs,375.00,Specialist Care UK Group Ltd,Accommodation costs Homelessness services Temp Accom - plus VAT,2008909,201901
Rother District Council,07/04/2019,091HOUSING,Housing and Community Services,20200,Housing Needs - HB (Housing Benefit),D2514,Accommodation Costs,262.50,Specialist Care UK Group Ltd,Accommodation costs Homelessness services Temp Accom - plus VAT,2008908,201901
Rother District Council,07/04/2019,091HOUSING,Housing and Community Services,20200,Housing Needs - HB (Housing Benefit),D2514,Accommodation Costs,175.00,Specialist Care UK Group Ltd,Accommodation costs Homelessness services Temp Accom - plus VAT,2008900,201901
Rother District Council,07/04/2019,091HOUSING,Housing and Community Services,20200,Housing Needs - HB (Housing Benefit),D2514,Accommodation Costs,300.00,Specialist Care UK Group Ltd,Accommodation costs Homelessness services Temp Accom - plus VAT,2008898,201901
Rother District Council,07/04/2019,091HOUSING,Housing and Community Services,20200,Housing Needs - HB (Housing Benefit),D2514,Accommodation Costs,262.50,Specialist Care UK Group Ltd,Accommodation costs Homelessness services Temp Accom - plus VAT,2008899,201901
Rother District Council,07/04/2019,091HOUSING,Housing and Community Services,20200,Housing Needs - HB (Housing Benefit),D2514,Accommodation Costs,262.50,Specialist Care UK Group Ltd,Accommodation costs Homelessness services Temp Accom - plus VAT,2008903,201901
Rother District Council,07/04/2019,091HOUSING,Housing and Community Services,20200,Housing Needs - HB (Housing Benefit),D2514,Accommodation Costs,262.50,Specialist Care UK Group Ltd,Accommodation costs Homelessness services Temp Accom - plus VAT,2008907,201901
Rother District Council,07/04/2019,091HOUSING,Housing and Community Services,20200,Housing Needs - HB (Housing Benefit),D2514,Accommodation Costs,350.00,Specialist Care UK Group Ltd,Accommodation costs Homelessness services Temp Accom - plus VAT,2008910,201901
Rother District Council,07/04/2019,091HOUSING,Housing and Community Services,20200,Housing Needs - HB (Housing Benefit),D2514,Accommodation Costs,175.00,Specialist Care UK Group Ltd,Accommodation costs Homelessness services Temp Accom - plus VAT,2008905,201901
Rother District Council,07/04/2019,091HOUSING,Housing and Community Services,20200,Housing Needs - HB (Housing Benefit),D2514,Accommodation Costs,262.50,Specialist Care UK Group Ltd,Accommodation costs Homelessness services Temp Accom - plus VAT,2008906,201901
Rother District Council,07/04/2019,031RESOURCES,Executive Directors & Corporate Core,20160,Public Accountability C/Ex,D2922,Subscriptions,712.00,District Councils Network,Subscriptions Subscription to Organisations,2008878,201901
Rother District Council,08/04/2019,091HOUSING,Housing and Community Services,20200,Housing Needs - HB (Housing Benefit),D2514,Accommodation Costs,330.40,South Down Residential Ltd,Accommodation Costs Homelessness services Temp Accom - No VAT,2008935,201901
Rother District Council,08/04/2019,091HOUSING,Housing and Community Services,20200,Housing Needs - HB (Housing Benefit),D2514,Accommodation Costs,102.00,South Down Residential Ltd,Accommodation Costs Homelessness services Temp Accom - No VAT,2008935,201901
Rother District Council,08/04/2019,091HOUSING,Housing and Community Services,20200,Housing Needs - HB (Housing Benefit),D2514,Accommodation Costs,142.80,South Down Residential Ltd,Accommodation Costs Homelessness services Temp Accom - No VAT,2008935,201901
Rother District Council,08/04/2019,091HOUSING,Housing and Community Services,20200,Housing Needs - HB (Housing Benefit),D2514,Accommodation Costs,268.80,South Down Residential Ltd,Accommodation Costs Homelessness services Temp Accom - No VAT,2008935,201901
Rother District Council,08/04/2019,091HOUSING,Housing and Community Services,20200,Housing Needs - HB (Housing Benefit),D2514,Accommodation Costs,364.00,South Down Residential Ltd,Accommodation Costs Homelessness services Temp Accom - No VAT,2008935,201901
Rother District Council,08/04/2019,091HOUSING,Housing and Community Services,20200,Housing Needs - HB (Housing Benefit),D2514,Accommodation Costs,142.80,South Down Residential Ltd,Accommodation Costs Homelessness services Temp Accom - No VAT,2008935,201901
Rother District Council,08/04/2019,091HOUSING,Housing and Community Services,20200,Housing Needs - HB (Housing Benefit),D2514,Accommodation Costs,347.20,South Down Residential Ltd,Accommodation Costs Homelessness services Temp Accom - No VAT,2008935,201901
Rother District Council,08/04/2019,091HOUSING,Housing and Community Services,20200,Housing Needs - HB (Housing Benefit),D2514,Accommodation Costs,141.60,South Down Residential Ltd,Accommodation Costs Homelessness services Temp Accom - No VAT,2008935,201901
Rother District Council,08/04/2019,091HOUSING,Housing and Community Services,20200,Housing Needs - HB (Housing Benefit),D2514,Accommodation Costs,315.00,REDACTED PERSONAL DATA,Accommodation Costs Homelessness services Temp Accom - No VAT,2008913,201901
Rother District Council,08/04/2019,091HOUSING,Housing and Community Services,20200,Housing Needs - HB (Housing Benefit),D2514,Accommodation Costs,35.70,South Down Residential Ltd,Accommodation costs Homelessness services Temp Accom - plus VAT,2008935,201901
Rother District Council,08/04/2019,091HOUSING,Housing and Community Services,20200,Housing Needs - HB (Housing Benefit),D2514,Accommodation Costs,86.80,South Down Residential Ltd,Accommodation costs Homelessness services Temp Accom - plus VAT,2008935,201901
Rother District Council,08/04/2019,091HOUSING,Housing and Community Services,20200,Housing Needs - HB (Housing Benefit),D2514,Accommodation Costs,82.60,South Down Residential Ltd,Accommodation costs Homelessness services Temp Accom - plus VAT,2008935,201901
Rother District Council,08/04/2019,091HOUSING,Housing and Community Services,20200,Housing Needs - HB (Housing Benefit),D2514,Accommodation Costs,51.00,South Down Residential Ltd,Accommodation costs Homelessness services Temp Accom - plus VAT,2008935,201901
Rother District Council,08/04/2019,091HOUSING,Housing and Community Services,20200,Housing Needs - HB (Housing Benefit),D2514,Accommodation Costs,236.00,South Down Residential Ltd,Accommodation costs Homelessness services Temp Accom - plus VAT,2008935,201901
Rother District Council,08/04/2019,091HOUSING,Housing and Community Services,20200,Housing Needs - HB (Housing Benefit),D2514,Accommodation Costs,67.20,South Down Residential Ltd,Accommodation costs Homelessness services Temp Accom - plus VAT,2008935,201901
Rother District Council,08/04/2019,091HOUSING,Housing and Community Services,20200,Housing Needs - HB (Housing Benefit),D2514,Accommodation Costs,91.00,South Down Residential Ltd,Accommodation costs Homelessness services Temp Accom - plus VAT,2008935,201901
Rother District Council,08/04/2019,091HOUSING,Housing and Community Services,20200,Housing Needs - HB (Housing Benefit),D2514,Accommodation Costs,35.70,South Down Residential Ltd,Accommodation costs Homelessness services Temp Accom - plus VAT,2008935,201901
Rother District Council,08/04/2019,091HOUSING,Housing and Community Services,20200,Housing Needs - HB (Housing Benefit),D2514,Accommodation Costs,153.00,South Down Residential Ltd,Accommodation costs Homelessness services Temp Accom - plus VAT,2008935,201901
Rother District Council,08/04/2019,091HOUSING,Housing and Community Services,20200,Housing Needs - HB (Housing Benefit),D2514,Accommodation Costs,25.50,South Down Residential Ltd,Accommodation costs Homelessness services Temp Accom - plus VAT,2008935,201901
Rother District Council,08/04/2019,091HOUSING,Housing and Community Services,20200,Housing Needs - HB (Housing Benefit),D2514,Accommodation Costs,35.40,South Down Residential Ltd,Accommodation costs Homelessness services Temp Accom - plus VAT,2008935,201901
Rother District Council,08/04/2019,101RESOURCES,Resources,20239,Computer Services,D2635,Computer Licences,"2,100.00",Dotted Eyes Ltd,Computer Licences Computer Licence Renewal,2008890,201901
Rother District Council,08/04/2019,091HOUSING,Housing and Community Services,20137,Car Parks,D1201,Equipment & Materials,191.66,Alfa Electric Ltd,Equipment & Materials - Car Parks various,2009223,201901
Rother District Council,08/04/2019,091HOUSING,Housing and Community Services,20114,Bexhill Parks & Open Spaces,D1201,Equipment & Materials,955.30,CED Ltd,Equipment & Materials Parks - Horticultural Sundries,2008979,201901
Rother District Council,08/04/2019,091HOUSING,Housing and Community Services,20109,Sports Development,D2923,Grants made,260.00,Adam Field,Grants made Sports Development Projects,2008985,201901
Rother District Council,08/04/2019,091HOUSING,Housing and Community Services,20132,Street & Beach Cleansing,D2513,Hired and Contracted services,60.00,East Sussex and Romney Marsh Hunt,Hired and contracted services Incineration of dead animals,2009013,201901
Rother District Council,08/04/2019,041ENVIRON,Environmental Services,32134,EH Pollution R + W Partnership,D2513,Hired and Contracted services,8.06,Wealden and Eastbourne Lifeline,Hired and contracted services Out Of Hours Call Answering Service,2008939,201901
Rother District Council,08/04/2019,041ENVIRON,Environmental Services,32134,EH Pollution R + W Partnership,D2513,Hired and Contracted services,13.30,Wealden and Eastbourne Lifeline,Hired and contracted services Out Of Hours Call Answering Service,2008940,201901
Rother District Council,08/04/2019,091HOUSING,Housing and Community Services,20137,Car Parks,B1100,Repairs to Premises,250.00,B and G Environmental Services Limited,Repairs to Premises Drainage Clearance,2009277,201901
Rother District Council,08/04/2019,091HOUSING,Housing and Community Services,20114,Bexhill Parks & Open Spaces,B1100,Repairs to Premises,140.00,M Taylor,Repairs to Premises Parks- Landscaping Works,2009191,201901
Rother District Council,08/04/2019,091HOUSING,Housing and Community Services,20114,Bexhill Parks & Open Spaces,B1100,Repairs to Premises,"1,216.67",MC Glass (East Sussex) Ltd,Repairs to Premises Repairs - Doors,2008891,201901
Rother District Council,08/04/2019,031RESOURCES,Executive Directors & Corporate Core,20175,Administrative Offices - T.H. Annex (NOT CHP),B1100,Repairs to Premises,166.34,Alfa Electric Ltd,Repairs to Premises Repairs - Electrical Works,2009428,201902
Rother District Council,08/04/2019,091HOUSING,Housing and Community Services,20109,Sports Development,D2927,Services Facilitated by External Grants,479.00,Adam Field,Services Facilitated by External Grants -Active Sussex Project workforce dev.,2008986,201901
Rother District Council,08/04/2019,031RESOURCES,Executive Directors & Corporate Core,20171,Human Resources,A2203,Training,350.00,Astutis Limited,Training,2010421,201903
Rother District Council,08/04/2019,101RESOURCES,Resources,20207,Reliefs & Benefits-Housing Benefit,F1001,Housing Benefit Payments,484.77,,Housing Benefit Payments,1003388,201901
Rother District Council,08/04/2019,101RESOURCES,Resources,20207,Reliefs & Benefits-Housing Benefit,F1001,Housing Benefit Payments,484.77,,Housing Benefit Payments,1003388,201901
Rother District Council,08/04/2019,101RESOURCES,Resources,20207,Reliefs & Benefits-Housing Benefit,F1001,Housing Benefit Payments,400.10,,Housing Benefit Payments,1003388,201901
Rother District Council,08/04/2019,101RESOURCES,Resources,20207,Reliefs & Benefits-Housing Benefit,F1001,Housing Benefit Payments,145.66,,Housing Benefit Payments,1003388,201901
Rother District Council,08/04/2019,101RESOURCES,Resources,20207,Reliefs & Benefits-Housing Benefit,F1001,Housing Benefit Payments,448.92,,Housing Benefit Payments,1003388,201901
Rother District Council,08/04/2019,101RESOURCES,Resources,20207,Reliefs & Benefits-Housing Benefit,F1001,Housing Benefit Payments,888.81,,Housing Benefit Payments,1003388,201901
Rother District Council,08/04/2019,101RESOURCES,Resources,20207,Reliefs & Benefits-Housing Benefit,F1001,Housing Benefit Payments,316.68,,Housing Benefit Payments,1003388,201901
Rother District Council,08/04/2019,101RESOURCES,Resources,20207,Reliefs & Benefits-Housing Benefit,F1001,Housing Benefit Payments,262.00,,Housing Benefit Payments,1003388,201901
Rother District Council,08/04/2019,101RESOURCES,Resources,20207,Reliefs & Benefits-Housing Benefit,F1001,Housing Benefit Payments,326.56,,Housing Benefit Payments,1003388,201901
Rother District Council,08/04/2019,101RESOURCES,Resources,20207,Reliefs & Benefits-Housing Benefit,F1001,Housing Benefit Payments,279.08,,Housing Benefit Payments,1003388,201901
Rother District Council,08/04/2019,101RESOURCES,Resources,20207,Reliefs & Benefits-Housing Benefit,F1001,Housing Benefit Payments,120.74,,Housing Benefit Payments,1003388,201901
Rother District Council,08/04/2019,101RESOURCES,Resources,20207,Reliefs & Benefits-Housing Benefit,F1001,Housing Benefit Payments,293.21,,Housing Benefit Payments,1003388,201901
Rother District Council,08/04/2019,101RESOURCES,Resources,20207,Reliefs & Benefits-Housing Benefit,F1001,Housing Benefit Payments,25.19,,Housing Benefit Payments,1003388,201901
Rother District Council,08/04/2019,101RESOURCES,Resources,20207,Reliefs & Benefits-Housing Benefit,F1001,Housing Benefit Payments,269.53,,Housing Benefit Payments,1003388,201901
Rother District Council,08/04/2019,101RESOURCES,Resources,20207,Reliefs & Benefits-Housing Benefit,F1001,Housing Benefit Payments,61.15,,Housing Benefit Payments,1003388,201901
Rother District Council,08/04/2019,101RESOURCES,Resources,20207,Reliefs & Benefits-Housing Benefit,F1001,Housing Benefit Payments,145.01,,Housing Benefit Payments,1003388,201901
Rother District Council,08/04/2019,101RESOURCES,Resources,20207,Reliefs & Benefits-Housing Benefit,F1001,Housing Benefit Payments,310.60,,Housing Benefit Payments,1003388,201901
Rother District Council,08/04/2019,101RESOURCES,Resources,20207,Reliefs & Benefits-Housing Benefit,F1001,Housing Benefit Payments,641.39,,Housing Benefit Payments,1003388,201901
Rother District Council,08/04/2019,101RESOURCES,Resources,20207,Reliefs & Benefits-Housing Benefit,F1001,Housing Benefit Payments,172.25,,Housing Benefit Payments,1003388,201901
Rother District Council,08/04/2019,101RESOURCES,Resources,20207,Reliefs & Benefits-Housing Benefit,F1001,Housing Benefit Payments,370.96,,Housing Benefit Payments,1003388,201901
Rother District Council,08/04/2019,101RESOURCES,Resources,20207,Reliefs & Benefits-Housing Benefit,F1001,Housing Benefit Payments,370.96,,Housing Benefit Payments,1003388,201901
Rother District Council,08/04/2019,101RESOURCES,Resources,20207,Reliefs & Benefits-Housing Benefit,F1001,Housing Benefit Payments,280.32,,Housing Benefit Payments,1003388,201901
Rother District Council,08/04/2019,101RESOURCES,Resources,20207,Reliefs & Benefits-Housing Benefit,F1001,Housing Benefit Payments,305.48,,Housing Benefit Payments,1003388,201901
Rother District Council,08/04/2019,101RESOURCES,Resources,20207,Reliefs & Benefits-Housing Benefit,F1001,Housing Benefit Payments,370.96,,Housing Benefit Payments,1003388,201901
Rother District Council,08/04/2019,101RESOURCES,Resources,20207,Reliefs & Benefits-Housing Benefit,F1001,Housing Benefit Payments,38.83,,Housing Benefit Payments,1003388,201901
Rother District Council,08/04/2019,101RESOURCES,Resources,20207,Reliefs & Benefits-Housing Benefit,F1001,Housing Benefit Payments,370.96,,Housing Benefit Payments,1003388,201901
Rother District Council,08/04/2019,101RESOURCES,Resources,20207,Reliefs & Benefits-Housing Benefit,F1001,Housing Benefit Payments,128.22,,Housing Benefit Payments,1003388,201901
Rother District Council,08/04/2019,101RESOURCES,Resources,20207,Reliefs & Benefits-Housing Benefit,F1001,Housing Benefit Payments,370.96,,Housing Benefit Payments,1003388,201901
Rother District Council,08/04/2019,101RESOURCES,Resources,20207,Reliefs & Benefits-Housing Benefit,F1001,Housing Benefit Payments,594.27,,Housing Benefit Payments,1003388,201901
Rother District Council,08/04/2019,101RESOURCES,Resources,20207,Reliefs & Benefits-Housing Benefit,F1001,Housing Benefit Payments,484.77,,Housing Benefit Payments,1003388,201901
Rother District Council,08/04/2019,101RESOURCES,Resources,20207,Reliefs & Benefits-Housing Benefit,F1001,Housing Benefit Payments,370.96,,Housing Benefit Payments,1003388,201901
Rother District Council,08/04/2019,101RESOURCES,Resources,20207,Reliefs & Benefits-Housing Benefit,F1001,Housing Benefit Payments,370.96,,Housing Benefit Payments,1003388,201901
Rother District Council,08/04/2019,101RESOURCES,Resources,20207,Reliefs & Benefits-Housing Benefit,F1001,Housing Benefit Payments,370.96,,Housing Benefit Payments,1003388,201901
Rother District Council,08/04/2019,101RESOURCES,Resources,20207,Reliefs & Benefits-Housing Benefit,F1001,Housing Benefit Payments,200.03,,Housing Benefit Payments,1003388,201901
Rother District Council,08/04/2019,101RESOURCES,Resources,20207,Reliefs & Benefits-Housing Benefit,F1001,Housing Benefit Payments,370.96,,Housing Benefit Payments,1003388,201901
Rother District Council,08/04/2019,101RESOURCES,Resources,20207,Reliefs & Benefits-Housing Benefit,F1001,Housing Benefit Payments,122.41,,Housing Benefit Payments,1003388,201901
Rother District Council,08/04/2019,101RESOURCES,Resources,20207,Reliefs & Benefits-Housing Benefit,F1001,Housing Benefit Payments,168.11,,Housing Benefit Payments,1003388,201901
Rother District Council,08/04/2019,101RESOURCES,Resources,20207,Reliefs & Benefits-Housing Benefit,F1001,Housing Benefit Payments,420.37,,Housing Benefit Payments,1003388,201901
Rother District Council,08/04/2019,101RESOURCES,Resources,20207,Reliefs & Benefits-Housing Benefit,F1001,Housing Benefit Payments,154.66,,Housing Benefit Payments,1003388,201901
Rother District Council,08/04/2019,101RESOURCES,Resources,20207,Reliefs & Benefits-Housing Benefit,F1001,Housing Benefit Payments,329.58,,Housing Benefit Payments,1003388,201901
Rother District Council,08/04/2019,101RESOURCES,Resources,20207,Reliefs & Benefits-Housing Benefit,F1001,Housing Benefit Payments,32.07,,Housing Benefit Payments,1003388,201901
Rother District Council,08/04/2019,101RESOURCES,Resources,20207,Reliefs & Benefits-Housing Benefit,F1001,Housing Benefit Payments,70.94,,Housing Benefit Payments,1003388,201901
Rother District Council,08/04/2019,101RESOURCES,Resources,20207,Reliefs & Benefits-Housing Benefit,F1001,Housing Benefit Payments,0.02,,Housing Benefit Payments,1003388,201901
Rother District Council,08/04/2019,101RESOURCES,Resources,20207,Reliefs & Benefits-Housing Benefit,F1001,Housing Benefit Payments,57.63,,Housing Benefit Payments,1003388,201901
Rother District Council,08/04/2019,101RESOURCES,Resources,20207,Reliefs & Benefits-Housing Benefit,F1001,Housing Benefit Payments,"1,809.28",,Housing Benefit Payments,1003388,201901
Rother District Council,08/04/2019,101RESOURCES,Resources,20207,Reliefs & Benefits-Housing Benefit,F1001,Housing Benefit Payments,327.28,,Housing Benefit Payments,1003388,201901
Rother District Council,08/04/2019,101RESOURCES,Resources,20207,Reliefs & Benefits-Housing Benefit,F1001,Housing Benefit Payments,177.72,,Housing Benefit Payments,1003388,201901
Rother District Council,08/04/2019,101RESOURCES,Resources,20207,Reliefs & Benefits-Housing Benefit,F1001,Housing Benefit Payments,368.46,,Housing Benefit Payments,1003388,201901
Rother District Council,08/04/2019,101RESOURCES,Resources,20207,Reliefs & Benefits-Housing Benefit,F1001,Housing Benefit Payments,356.73,,Housing Benefit Payments,1003388,201901
Rother District Council,08/04/2019,101RESOURCES,Resources,20207,Reliefs & Benefits-Housing Benefit,F1001,Housing Benefit Payments,280.64,,Housing Benefit Payments,1003388,201901
Rother District Council,08/04/2019,101RESOURCES,Resources,20207,Reliefs & Benefits-Housing Benefit,F1001,Housing Benefit Payments,370.96,,Housing Benefit Payments,1003388,201901
Rother District Council,08/04/2019,101RESOURCES,Resources,20207,Reliefs & Benefits-Housing Benefit,F1001,Housing Benefit Payments,324.70,,Housing Benefit Payments,1003388,201901
Rother District Council,08/04/2019,101RESOURCES,Resources,20207,Reliefs & Benefits-Housing Benefit,F1001,Housing Benefit Payments,337.75,,Housing Benefit Payments,1003388,201901
Rother District Council,08/04/2019,101RESOURCES,Resources,20207,Reliefs & Benefits-Housing Benefit,F1001,Housing Benefit Payments,590.60,,Housing Benefit Payments,1003388,201901
Rother District Council,08/04/2019,101RESOURCES,Resources,20207,Reliefs & Benefits-Housing Benefit,F1001,Housing Benefit Payments,570.60,,Housing Benefit Payments,1003388,201901
Rother District Council,08/04/2019,101RESOURCES,Resources,20207,Reliefs & Benefits-Housing Benefit,F1001,Housing Benefit Payments,700.20,,Housing Benefit Payments,1003388,201901
Rother District Council,08/04/2019,101RESOURCES,Resources,20207,Reliefs & Benefits-Housing Benefit,F1001,Housing Benefit Payments,484.77,,Housing Benefit Payments,1003388,201901
Rother District Council,08/04/2019,101RESOURCES,Resources,20207,Reliefs & Benefits-Housing Benefit,F1001,Housing Benefit Payments,223.55,,Housing Benefit Payments,1003388,201901
Rother District Council,08/04/2019,101RESOURCES,Resources,20207,Reliefs & Benefits-Housing Benefit,F1001,Housing Benefit Payments,41.75,,Housing Benefit Payments,1003388,201901
Rother District Council,08/04/2019,101RESOURCES,Resources,20207,Reliefs & Benefits-Housing Benefit,F1001,Housing Benefit Payments,484.77,,Housing Benefit Payments,1003388,201901
Rother District Council,08/04/2019,101RESOURCES,Resources,20207,Reliefs & Benefits-Housing Benefit,F1001,Housing Benefit Payments,162.77,,Housing Benefit Payments,1003388,201901
Rother District Council,08/04/2019,101RESOURCES,Resources,20207,Reliefs & Benefits-Housing Benefit,F1001,Housing Benefit Payments,339.65,,Housing Benefit Payments,1003388,201901
Rother District Council,08/04/2019,101RESOURCES,Resources,20207,Reliefs & Benefits-Housing Benefit,F1001,Housing Benefit Payments,600.00,,Housing Benefit Payments,1003388,201901
Rother District Council,08/04/2019,101RESOURCES,Resources,20207,Reliefs & Benefits-Housing Benefit,F1001,Housing Benefit Payments,483.72,,Housing Benefit Payments,1003388,201901
Rother District Council,08/04/2019,101RESOURCES,Resources,20207,Reliefs & Benefits-Housing Benefit,F1001,Housing Benefit Payments,120.16,,Housing Benefit Payments,1003388,201901
Rother District Council,08/04/2019,101RESOURCES,Resources,20207,Reliefs & Benefits-Housing Benefit,F1001,Housing Benefit Payments,461.65,,Housing Benefit Payments,1003388,201901
Rother District Council,08/04/2019,101RESOURCES,Resources,20207,Reliefs & Benefits-Housing Benefit,F1001,Housing Benefit Payments,408.08,,Housing Benefit Payments,1003388,201901
Rother District Council,08/04/2019,101RESOURCES,Resources,20207,Reliefs & Benefits-Housing Benefit,F1001,Housing Benefit Payments,55.95,,Housing Benefit Payments,1003388,201901
Rother District Council,08/04/2019,101RESOURCES,Resources,20207,Reliefs & Benefits-Housing Benefit,F1001,Housing Benefit Payments,370.96,,Housing Benefit Payments,1003388,201901
Rother District Council,08/04/2019,101RESOURCES,Resources,20207,Reliefs & Benefits-Housing Benefit,F1001,Housing Benefit Payments,103.87,,Housing Benefit Payments,1003388,201901
Rother District Council,08/04/2019,101RESOURCES,Resources,20207,Reliefs & Benefits-Housing Benefit,F1001,Housing Benefit Payments,"1,347.28",,Housing Benefit Payments,1003388,201901
Rother District Council,08/04/2019,101RESOURCES,Resources,20207,Reliefs & Benefits-Housing Benefit,F1001,Housing Benefit Payments,88.76,,Housing Benefit Payments,1003388,201901
Rother District Council,08/04/2019,101RESOURCES,Resources,20207,Reliefs & Benefits-Housing Benefit,F1001,Housing Benefit Payments,243.19,,Housing Benefit Payments,1003388,201901
Rother District Council,08/04/2019,101RESOURCES,Resources,20207,Reliefs & Benefits-Housing Benefit,F1001,Housing Benefit Payments,370.96,,Housing Benefit Payments,1003388,201901
Rother District Council,08/04/2019,101RESOURCES,Resources,20207,Reliefs & Benefits-Housing Benefit,F1001,Housing Benefit Payments,420.24,,Housing Benefit Payments,1003388,201901
Rother District Council,08/04/2019,101RESOURCES,Resources,20207,Reliefs & Benefits-Housing Benefit,F1001,Housing Benefit Payments,370.96,,Housing Benefit Payments,1003388,201901
Rother District Council,08/04/2019,101RESOURCES,Resources,20207,Reliefs & Benefits-Housing Benefit,F1001,Housing Benefit Payments,279.08,,Housing Benefit Payments,1003388,201901
Rother District Council,08/04/2019,101RESOURCES,Resources,20207,Reliefs & Benefits-Housing Benefit,F1001,Housing Benefit Payments,549.07,,Housing Benefit Payments,1003388,201901
Rother District Council,08/04/2019,101RESOURCES,Resources,20207,Reliefs & Benefits-Housing Benefit,F1001,Housing Benefit Payments,244.07,,Housing Benefit Payments,1003388,201901
Rother District Council,08/04/2019,101RESOURCES,Resources,20207,Reliefs & Benefits-Housing Benefit,F1001,Housing Benefit Payments,370.96,,Housing Benefit Payments,1003388,201901
Rother District Council,08/04/2019,101RESOURCES,Resources,20207,Reliefs & Benefits-Housing Benefit,F1001,Housing Benefit Payments,354.63,,Housing Benefit Payments,1003388,201901
Rother District Council,08/04/2019,101RESOURCES,Resources,20207,Reliefs & Benefits-Housing Benefit,F1001,Housing Benefit Payments,257.73,,Housing Benefit Payments,1003388,201901
Rother District Council,08/04/2019,101RESOURCES,Resources,20207,Reliefs & Benefits-Housing Benefit,F1001,Housing Benefit Payments,370.96,,Housing Benefit Payments,1003388,201901
Rother District Council,08/04/2019,101RESOURCES,Resources,20207,Reliefs & Benefits-Housing Benefit,F1001,Housing Benefit Payments,0.99,,Housing Benefit Payments,1003388,201901
Rother District Council,08/04/2019,101RESOURCES,Resources,20207,Reliefs & Benefits-Housing Benefit,F1001,Housing Benefit Payments,347.68,,Housing Benefit Payments,1003388,201901
Rother District Council,08/04/2019,101RESOURCES,Resources,20207,Reliefs & Benefits-Housing Benefit,F1001,Housing Benefit Payments,275.56,,Housing Benefit Payments,1003388,201901
Rother District Council,08/04/2019,101RESOURCES,Resources,20207,Reliefs & Benefits-Housing Benefit,F1001,Housing Benefit Payments,644.60,,Housing Benefit Payments,1003388,201901
Rother District Council,08/04/2019,101RESOURCES,Resources,20207,Reliefs & Benefits-Housing Benefit,F1001,Housing Benefit Payments,484.77,,Housing Benefit Payments,1003388,201901
Rother District Council,08/04/2019,101RESOURCES,Resources,20207,Reliefs & Benefits-Housing Benefit,F1001,Housing Benefit Payments,467.16,,Housing Benefit Payments,1003388,201901
Rother District Council,08/04/2019,101RESOURCES,Resources,20207,Reliefs & Benefits-Housing Benefit,F1001,Housing Benefit Payments,571.08,,Housing Benefit Payments,1003388,201901
Rother District Council,08/04/2019,101RESOURCES,Resources,20207,Reliefs & Benefits-Housing Benefit,F1001,Housing Benefit Payments,279.08,,Housing Benefit Payments,1003388,201901
Rother District Council,08/04/2019,101RESOURCES,Resources,20207,Reliefs & Benefits-Housing Benefit,F1001,Housing Benefit Payments,484.77,,Housing Benefit Payments,1003388,201901
Rother District Council,08/04/2019,101RESOURCES,Resources,20207,Reliefs & Benefits-Housing Benefit,F1001,Housing Benefit Payments,280.67,,Housing Benefit Payments,1003388,201901
Rother District Council,08/04/2019,101RESOURCES,Resources,20207,Reliefs & Benefits-Housing Benefit,F1001,Housing Benefit Payments,370.96,,Housing Benefit Payments,1003388,201901
Rother District Council,08/04/2019,101RESOURCES,Resources,20207,Reliefs & Benefits-Housing Benefit,F1001,Housing Benefit Payments,370.96,,Housing Benefit Payments,1003388,201901
Rother District Council,08/04/2019,101RESOURCES,Resources,20207,Reliefs & Benefits-Housing Benefit,F1001,Housing Benefit Payments,254.55,,Housing Benefit Payments,1003388,201901
Rother District Council,08/04/2019,101RESOURCES,Resources,20207,Reliefs & Benefits-Housing Benefit,F1001,Housing Benefit Payments,441.36,,Housing Benefit Payments,1003388,201901
Rother District Council,08/04/2019,101RESOURCES,Resources,20207,Reliefs & Benefits-Housing Benefit,F1001,Housing Benefit Payments,261.52,,Housing Benefit Payments,1003388,201901
Rother District Council,08/04/2019,101RESOURCES,Resources,20207,Reliefs & Benefits-Housing Benefit,F1001,Housing Benefit Payments,465.48,,Housing Benefit Payments,1003388,201901
Rother District Council,08/04/2019,101RESOURCES,Resources,20207,Reliefs & Benefits-Housing Benefit,F1001,Housing Benefit Payments,"2,029.06",,Housing Benefit Payments,1003388,201901
Rother District Council,08/04/2019,101RESOURCES,Resources,20207,Reliefs & Benefits-Housing Benefit,F1001,Housing Benefit Payments,279.08,,Housing Benefit Payments,1003388,201901
Rother District Council,08/04/2019,101RESOURCES,Resources,20207,Reliefs & Benefits-Housing Benefit,F1001,Housing Benefit Payments,189.92,,Housing Benefit Payments,1003388,201901
Rother District Council,08/04/2019,101RESOURCES,Resources,20207,Reliefs & Benefits-Housing Benefit,F1001,Housing Benefit Payments,357.89,,Housing Benefit Payments,1003388,201901
Rother District Council,08/04/2019,101RESOURCES,Resources,20207,Reliefs & Benefits-Housing Benefit,F1001,Housing Benefit Payments,370.96,,Housing Benefit Payments,1003388,201901
Rother District Council,08/04/2019,101RESOURCES,Resources,20207,Reliefs & Benefits-Housing Benefit,F1001,Housing Benefit Payments,580.20,,Housing Benefit Payments,1003388,201901
Rother District Council,08/04/2019,101RESOURCES,Resources,20207,Reliefs & Benefits-Housing Benefit,F1001,Housing Benefit Payments,248.96,,Housing Benefit Payments,1003388,201901
Rother District Council,08/04/2019,101RESOURCES,Resources,20207,Reliefs & Benefits-Housing Benefit,F1001,Housing Benefit Payments,323.30,,Housing Benefit Payments,1003388,201901
Rother District Council,08/04/2019,101RESOURCES,Resources,20207,Reliefs & Benefits-Housing Benefit,F1001,Housing Benefit Payments,256.60,,Housing Benefit Payments,1003388,201901
Rother District Council,08/04/2019,101RESOURCES,Resources,20207,Reliefs & Benefits-Housing Benefit,F1001,Housing Benefit Payments,272.92,,Housing Benefit Payments,1003388,201901
Rother District Council,08/04/2019,101RESOURCES,Resources,20207,Reliefs & Benefits-Housing Benefit,F1001,Housing Benefit Payments,64.60,,Housing Benefit Payments,1003388,201901
Rother District Council,08/04/2019,101RESOURCES,Resources,20207,Reliefs & Benefits-Housing Benefit,F1001,Housing Benefit Payments,484.77,,Housing Benefit Payments,1003388,201901
Rother District Council,08/04/2019,101RESOURCES,Resources,20207,Reliefs & Benefits-Housing Benefit,F1001,Housing Benefit Payments,370.96,,Housing Benefit Payments,1003388,201901
Rother District Council,08/04/2019,101RESOURCES,Resources,20207,Reliefs & Benefits-Housing Benefit,F1001,Housing Benefit Payments,263.45,,Housing Benefit Payments,1003388,201901
Rother District Council,08/04/2019,101RESOURCES,Resources,20207,Reliefs & Benefits-Housing Benefit,F1001,Housing Benefit Payments,90.35,,Housing Benefit Payments,1003388,201901
Rother District Council,08/04/2019,101RESOURCES,Resources,20207,Reliefs & Benefits-Housing Benefit,F1001,Housing Benefit Payments,30.00,,Housing Benefit Payments,1003388,201901
Rother District Council,08/04/2019,101RESOURCES,Resources,20207,Reliefs & Benefits-Housing Benefit,F1001,Housing Benefit Payments,424.16,,Housing Benefit Payments,1003388,201901
Rother District Council,08/04/2019,101RESOURCES,Resources,20207,Reliefs & Benefits-Housing Benefit,F1001,Housing Benefit Payments,554.40,,Housing Benefit Payments,1003388,201901
Rother District Council,08/04/2019,101RESOURCES,Resources,20207,Reliefs & Benefits-Housing Benefit,F1001,Housing Benefit Payments,231.31,,Housing Benefit Payments,1003388,201901
Rother District Council,08/04/2019,101RESOURCES,Resources,20207,Reliefs & Benefits-Housing Benefit,F1001,Housing Benefit Payments,370.96,,Housing Benefit Payments,1003388,201901
Rother District Council,08/04/2019,101RESOURCES,Resources,20207,Reliefs & Benefits-Housing Benefit,F1001,Housing Benefit Payments,484.77,,Housing Benefit Payments,1003388,201901
Rother District Council,08/04/2019,101RESOURCES,Resources,20207,Reliefs & Benefits-Housing Benefit,F1001,Housing Benefit Payments,43.25,,Housing Benefit Payments,1003388,201901
Rother District Council,08/04/2019,101RESOURCES,Resources,20207,Reliefs & Benefits-Housing Benefit,F1001,Housing Benefit Payments,500.38,,Housing Benefit Payments,1003388,201901
Rother District Council,08/04/2019,101RESOURCES,Resources,20207,Reliefs & Benefits-Housing Benefit,F1001,Housing Benefit Payments,552.99,,Housing Benefit Payments,1003388,201901
Rother District Council,08/04/2019,101RESOURCES,Resources,20207,Reliefs & Benefits-Housing Benefit,F1001,Housing Benefit Payments,276.55,,Housing Benefit Payments,1003388,201901
Rother District Council,08/04/2019,101RESOURCES,Resources,20207,Reliefs & Benefits-Housing Benefit,F1001,Housing Benefit Payments,347.00,,Housing Benefit Payments,1003388,201901
Rother District Council,08/04/2019,101RESOURCES,Resources,20207,Reliefs & Benefits-Housing Benefit,F1001,Housing Benefit Payments,370.96,,Housing Benefit Payments,1003388,201901
Rother District Council,08/04/2019,101RESOURCES,Resources,20207,Reliefs & Benefits-Housing Benefit,F1001,Housing Benefit Payments,330.16,,Housing Benefit Payments,1003388,201901
Rother District Council,08/04/2019,101RESOURCES,Resources,20207,Reliefs & Benefits-Housing Benefit,F1001,Housing Benefit Payments,62.79,,Housing Benefit Payments,1003388,201901
Rother District Council,08/04/2019,101RESOURCES,Resources,20207,Reliefs & Benefits-Housing Benefit,F1001,Housing Benefit Payments,126.50,,Housing Benefit Payments,1003388,201901
Rother District Council,08/04/2019,101RESOURCES,Resources,20207,Reliefs & Benefits-Housing Benefit,F1001,Housing Benefit Payments,249.04,,Housing Benefit Payments,1003388,201901
Rother District Council,08/04/2019,101RESOURCES,Resources,20207,Reliefs & Benefits-Housing Benefit,F1001,Housing Benefit Payments,583.52,,Housing Benefit Payments,1003388,201901
Rother District Council,08/04/2019,101RESOURCES,Resources,20207,Reliefs & Benefits-Housing Benefit,F1001,Housing Benefit Payments,347.32,,Housing Benefit Payments,1003388,201901
Rother District Council,08/04/2019,101RESOURCES,Resources,20207,Reliefs & Benefits-Housing Benefit,F1001,Housing Benefit Payments,370.96,,Housing Benefit Payments,1003388,201901
Rother District Council,08/04/2019,101RESOURCES,Resources,20207,Reliefs & Benefits-Housing Benefit,F1001,Housing Benefit Payments,248.28,,Housing Benefit Payments,1003388,201901
Rother District Council,08/04/2019,101RESOURCES,Resources,20207,Reliefs & Benefits-Housing Benefit,F1001,Housing Benefit Payments,484.77,,Housing Benefit Payments,1003388,201901
Rother District Council,08/04/2019,101RESOURCES,Resources,20207,Reliefs & Benefits-Housing Benefit,F1001,Housing Benefit Payments,360.00,,Housing Benefit Payments,1003388,201901
Rother District Council,08/04/2019,101RESOURCES,Resources,20207,Reliefs & Benefits-Housing Benefit,F1001,Housing Benefit Payments,209.08,,Housing Benefit Payments,1003388,201901
Rother District Council,08/04/2019,101RESOURCES,Resources,20207,Reliefs & Benefits-Housing Benefit,F1001,Housing Benefit Payments,180.28,,Housing Benefit Payments,1003388,201901
Rother District Council,08/04/2019,101RESOURCES,Resources,20207,Reliefs & Benefits-Housing Benefit,F1001,Housing Benefit Payments,370.96,,Housing Benefit Payments,1003388,201901
Rother District Council,08/04/2019,101RESOURCES,Resources,20207,Reliefs & Benefits-Housing Benefit,F1001,Housing Benefit Payments,370.96,,Housing Benefit Payments,1003388,201901
Rother District Council,08/04/2019,101RESOURCES,Resources,20207,Reliefs & Benefits-Housing Benefit,F1001,Housing Benefit Payments,398.36,,Housing Benefit Payments,1003388,201901
Rother District Council,08/04/2019,101RESOURCES,Resources,20207,Reliefs & Benefits-Housing Benefit,F1001,Housing Benefit Payments,305.30,,Housing Benefit Payments,1003388,201901
Rother District Council,08/04/2019,101RESOURCES,Resources,20207,Reliefs & Benefits-Housing Benefit,F1001,Housing Benefit Payments,15.00,,Housing Benefit Payments,1003388,201901
Rother District Council,08/04/2019,101RESOURCES,Resources,20207,Reliefs & Benefits-Housing Benefit,F1001,Housing Benefit Payments,158.24,,Housing Benefit Payments,1003388,201901
Rother District Council,08/04/2019,101RESOURCES,Resources,20207,Reliefs & Benefits-Housing Benefit,F1001,Housing Benefit Payments,347.88,,Housing Benefit Payments,1003388,201901
